Workbook

Sheet Main
N1: MF3 | O1: MF2 | P1: MF1 | T1: =INDEX(Q2:R750,MATCH(F8,Q2:Q750,0),2) -> 16501 | U1: mf1 | V1: wrt cat avg | W1: =IF(VALUE(C12)>C16,1,0) -> 0 | X1: =IF(VALUE(D12)>D16,1,0) -> 0 | Y1: =IF(VALUE(E12)>E16,1,0) -> 0 | Z1: =IF(VALUE(F12)>F16,1,0) -> 0 | AA1: =IF(VALUE(G12)>G16,1,0) -> 0 | AC1: =SUM(W1:AA1) -> 0 | AE1: mf1 | AF1: =COUNTIF(AE2:AE749,"?*") -> 2 | AH1: No | AJ1: mf2 | AL1: mf3
N2: =IF(ISNUMBER(SEARCH($H$16,Q2)),MAX($N$1,N1)+1,0) -> 0 | O2: =IF(ISNUMBER(SEARCH($H$11,Q2)),MAX($O$1,O1)+1,0) -> 0 | P2: =IF(ISNUMBER(SEARCH($H$6,Q2)),MAX($P$1,P1)+1,0) -> 0 | Q2: Axis Equity | R2: 10780 | T2: =INDEX(Q2:R750,MATCH(F13,Q2:Q750,0),2) -> 114 | U2: mf2 | V2: wrt sensex | W2: =IF(VALUE(C12)>C18,1,0) -> 0 | X2: =IF(VALUE(D12)>D18,1,0) -> 0 | Y2: =IF(VALUE(E12)>E18,1,0) -> 0 | Z2: =IF(VALUE(F12)>F18,1,0) -> 0 | AA2: =IF(VALUE(G12)>G18,1,0) -> 0 | AC2: =SUM(W2:AA2) -> 0 | AE2: =IFERROR(VLOOKUP(ROWS($AE$2:AE2),P2:Q750,2,0),"") -> IDFC Premier Equity Direct | AF2: =OFFSET(AE2,,,COUNTIF($AE$2:$AE$749,"?*"),) -> IDFC Premier Equity Direct | AH2: Yes | AJ2: =IFERROR(VLOOKUP(ROWS($AJ$2:AJ2),O2:Q750,3,0),"") -> Franklin India Bluechip | AL2: =IFERROR(VLOOKUP(ROWS(AL$2:$AL2),N2:Q750,4,0),"") -> Quantum Long Term Equity
B3: Mutual Fund Portfolio Comparison Tool | N3: =IF(ISNUMBER(SEARCH($H$16,Q3)),MAX($N$1,N2)+1,0) -> 0 | O3: =IF(ISNUMBER(SEARCH($H$11,Q3)),MAX($O$1,O2)+1,0) -> 0 | P3: 0 | Q3: Axis Equity Direct | R3: 15682 | T3: =INDEX(Q2:R750,MATCH(F18,Q2:Q750,0),2) -> 3181 | U3: mf3 | V3: wrt Nifty | W3: =IF(VALUE(C12)>C22,1,0) -> 0 | X3: =IF(VALUE(D12)>D22,1,0) -> 0 | Y3: =IF(VALUE(E12)>E22,1,0) -> 0 | Z3: =IF(VALUE(F12)>F22,1,0) -> 0 | AA3: =IF(VALUE(G12)>G22,1,0) -> 0 | AC3: =SUM(W3:AA3) -> 0 | AE3: =IFERROR(VLOOKUP(ROWS($AE$2:AE3),P3:Q751,2,0),"") -> IDFC Premier Equity Regular | AG3: =F8 -> IDFC Premier Equity Direct | AJ3: =IFERROR(VLOOKUP(ROWS($AJ$2:AJ3),O3:Q751,3,0),"") -> Franklin India Bluechip Direct | AL3: =IFERROR(VLOOKUP(ROWS(AL$2:$AL3),N3:Q751,4,0),"") -> 
N4: 0 | O4: 0 | P4: 0 | Q4: Axis Focused 25 | R4: 14951 | W4: =SUM(W1:W3) -> 0 | X4: =SUM(X1:X3) -> 0 | Y4: =SUM(Y1:Y3) -> 0 | Z4: =SUM(Z1:Z3) -> 0 | AA4: =SUM(AA1:AA3) -> 0 | AE4: =IFERROR(VLOOKUP(ROWS($AE$2:AE4),P4:Q752,2,0),"") ->  | AJ4: =IFERROR(VLOOKUP(ROWS(AJ$2:$AJ4),O4:Q752,3,0),"") -> Franklin India Flexi Cap | AL4: =IFERROR(VLOOKUP(ROWS(AL$2:$AL4),N4:Q752,4,0),"") -> 
N5: 0 | O5: 0 | P5: 0 | Q5: Axis Focused 25 Direct | R5: 15684 | AE5: =IFERROR(VLOOKUP(ROWS($AE$2:AE5),P5:Q753,2,0),"") ->  | AJ5: =IFERROR(VLOOKUP(ROWS(AJ$2:$AJ5),O5:Q753,3,0),"") -> Franklin India Flexi Cap Direct | AL5: =IFERROR(VLOOKUP(ROWS(AL$2:$AL5),N5:Q753,4,0),"") -> 
B6: Type the first few letters of the MF scheme you need in the green area. | H6: idfc pre | L6: MF1 | N6: 0 | O6: 0 | P6: 0 | Q6: Axis Long Term Equity | R6: 10826 | AE6: =IFERROR(VLOOKUP(ROWS($AE$2:AE6),P6:Q754,2,0),"") ->  | AJ6: =IFERROR(VLOOKUP(ROWS(AJ$2:$AJ6),O6:Q754,3,0),"") -> Franklin India High Growth Companies | AL6: =IFERROR(VLOOKUP(ROWS(AL$2:$AL6),N6:Q754,4,0),"") -> 
N7: 0 | O7: 0 | P7: 0 | Q7: Axis Long Term Equity Direct | R7: 15688 | AE7: =IFERROR(VLOOKUP(ROWS($AE$2:AE7),P7:Q755,2,0),"") ->  | AJ7: =IFERROR(VLOOKUP(ROWS(AJ$2:$AJ7),O7:Q755,3,0),"") -> Franklin India High Growth Companies Direct | AL7: =IFERROR(VLOOKUP(ROWS(AL$2:$AL7),N7:Q755,4,0),"") -> 
B8: Then select the scheme you need from the drop-down list | F8: IDFC Premier Equity Direct | N8: 0 | O8: 0 | P8: 0 | Q8: Axis Midcap | R8: 12052 | AE8: =IFERROR(VLOOKUP(ROWS($AE$2:AE8),P8:Q756,2,0),"") ->  | AJ8: =IFERROR(VLOOKUP(ROWS(AJ$2:$AJ8),O8:Q756,3,0),"") -> Franklin India Index BSE Sensex | AL8: =IFERROR(VLOOKUP(ROWS(AL$2:$AL8),N8:Q756,4,0),"") -> 
N9: 0 | O9: 0 | P9: 0 | Q9: Axis Midcap Direct | R9: 15690 | AE9: =IFERROR(VLOOKUP(ROWS($AE$2:AE9),P9:Q757,2,0),"") ->  | AJ9: =IFERROR(VLOOKUP(ROWS(AJ$2:$AJ9),O9:Q757,3,0),"") -> Franklin India Index BSE Sensex Direct | AL9: =IFERROR(VLOOKUP(ROWS(AL$2:$AL9),N9:Q757,4,0),"") -> 
N10: 0 | O10: 0 | P10: 0 | Q10: Baroda Pioneer Banking and Financial Services | R10: 14946 | AE10: =IFERROR(VLOOKUP(ROWS($AE$2:AE10),P10:Q758,2,0),"") ->  | AJ10: =IFERROR(VLOOKUP(ROWS(AJ$2:$AJ10),O10:Q758,3,0),"") -> Franklin India Index NSE Nifty | AL10: =IFERROR(VLOOKUP(ROWS(AL$2:$AL10),N10:Q758,4,0),"") -> 
B11: Type the first few letters of the MF scheme you need in the green area. | H11: franklin india | L11: MF2 | N11: 0 | O11: 0 | P11: 0 | Q11: Baroda Pioneer Banking and Financial Services Direct | R11: 15698 | AE11: =IFERROR(VLOOKUP(ROWS($AE$2:AE11),P11:Q759,2,0),"") ->  | AJ11: =IFERROR(VLOOKUP(ROWS(AJ$2:$AJ11),O11:Q759,3,0),"") -> Franklin India Index NSE Nifty Direct | AL11: =IFERROR(VLOOKUP(ROWS(AL$2:$AL11),N11:Q759,4,0),"") -> 
N12: 0 | O12: 0 | P12: 0 | Q12: Baroda Pioneer ELSS 96 | R12: 32 | AE12: =IFERROR(VLOOKUP(ROWS($AE$2:AE12),P12:Q760,2,0),"") ->  | AJ12: =IFERROR(VLOOKUP(ROWS(AJ$2:$AJ12),O12:Q760,3,0),"") -> Franklin India Opportunities | AL12: =IFERROR(VLOOKUP(ROWS(AL$2:$AL12),N12:Q760,4,0),"") -> 
B13: Then select the scheme you need from the drop-down list | F13: Franklin India Bluechip | N13: 0 | O13: 0 | P13: 0 | Q13: Baroda Pioneer ELSS 96 Direct | R13: 17119 | AE13: =IFERROR(VLOOKUP(ROWS($AE$2:AE13),P13:Q761,2,0),"") ->  | AJ13: =IFERROR(VLOOKUP(ROWS(AJ$2:$AJ13),O13:Q761,3,0),"") -> Franklin India Opportunities Direct | AL13: =IFERROR(VLOOKUP(ROWS(AL$2:$AL13),N13:Q761,4,0),"") -> 
N14: 0 | O14: 0 | P14: 0 | Q14: Baroda Pioneer Growth | R14: 1820 | AE14: =IFERROR(VLOOKUP(ROWS($AE$2:AE14),P14:Q762,2,0),"") ->  | AJ14: =IFERROR(VLOOKUP(ROWS(AJ$2:$AJ14),O14:Q762,3,0),"") -> Franklin India Prima | AL14: =IFERROR(VLOOKUP(ROWS(AL$2:$AL14),N14:Q762,4,0),"") -> 
N15: 0 | O15: 0 | P15: 0 | Q15: Baroda Pioneer Growth Direct | R15: 15707 | AE15: =IFERROR(VLOOKUP(ROWS($AE$2:AE15),P15:Q763,2,0),"") ->  | AJ15: =IFERROR(VLOOKUP(ROWS(AJ$2:$AJ15),O15:Q763,3,0),"") -> Franklin India Prima Direct | AL15: =IFERROR(VLOOKUP(ROWS(AL$2:$AL15),N15:Q763,4,0),"") -> 
B16: Type the first few letters of the MF scheme you need in the green area. | H16: quantum long | L16: MF3 | N16: 0 | O16: 0 | P16: 0 | Q16: Baroda Pioneer Infrastructure | R16: 11194 | AE16: =IFERROR(VLOOKUP(ROWS($AE$2:AE16),P16:Q764,2,0),"") ->  | AJ16: =IFERROR(VLOOKUP(ROWS(AJ$2:$AJ16),O16:Q764,3,0),"") -> Franklin India Prima Plus | AL16: =IFERROR(VLOOKUP(ROWS(AL$2:$AL16),N16:Q764,4,0),"") -> 
N17: 0 | O17: 0 | P17: 0 | Q17: Baroda Pioneer Infrastructure Direct | R17: 15766 | AE17: =IFERROR(VLOOKUP(ROWS($AE$2:AE17),P17:Q765,2,0),"") ->  | AJ17: =IFERROR(VLOOKUP(ROWS(AJ$2:$AJ17),O17:Q765,3,0),"") -> Franklin India Prima Plus Direct | AL17: =IFERROR(VLOOKUP(ROWS(AL$2:$AL17),N17:Q765,4,0),"") -> 
B18: Then select the scheme you need from the drop-down list | F18: Quantum Long Term Equity | N18: 0 | O18: 0 | P18: 0 | Q18: Baroda Pioneer PSU Equity | R18: 11534 | AE18: =IFERROR(VLOOKUP(ROWS($AE$2:AE18),P18:Q766,2,0),"") ->  | AJ18: =IFERROR(VLOOKUP(ROWS(AJ$2:$AJ18),O18:Q766,3,0),"") -> Franklin India Smaller Companies | AL18: =IFERROR(VLOOKUP(ROWS(AL$2:$AL18),N18:Q766,4,0),"") -> 
N19: 0 | O19: 0 | P19: 0 | Q19: Baroda Pioneer PSU Equity Direct | R19: 15783 | AE19: =IFERROR(VLOOKUP(ROWS($AE$2:AE19),P19:Q767,2,0),"") ->  | AJ19: =IFERROR(VLOOKUP(ROWS(AJ$2:$AJ19),O19:Q767,3,0),"") -> Franklin India Smaller Companies Direct | AL19: =IFERROR(VLOOKUP(ROWS(AL$2:$AL19),N19:Q767,4,0),"") -> 
N20: 0 | O20: 0 | P20: 0 | Q20: Birla Sun Life Advantage | R20: 27 | AE20: =IFERROR(VLOOKUP(ROWS($AE$2:AE20),P20:Q768,2,0),"") ->  | AJ20: =IFERROR(VLOOKUP(ROWS(AJ$2:$AJ20),O20:Q768,3,0),"") -> Franklin India Taxshield | AL20: =IFERROR(VLOOKUP(ROWS(AL$2:$AL20),N20:Q768,4,0),"") -> 
N21: 0 | O21: 0 | P21: 0 | Q21: Birla Sun Life Advantage Direct | R21: 15697 | AE21: =IFERROR(VLOOKUP(ROWS($AE$2:AE21),P21:Q769,2,0),"") ->  | AJ21: =IFERROR(VLOOKUP(ROWS(AJ$2:$AJ21),O21:Q769,3,0),"") -> Franklin India Taxshield Direct | AL21: =IFERROR(VLOOKUP(ROWS(AL$2:$AL21),N21:Q769,4,0),"") -> 
B22: Click to view MF1 Fund Page at VR Online | N22: 0 | O22: 0 | P22: 0 | Q22: Birla Sun Life Asset Allocation Aggressive | R22: 2049 | AE22: =IFERROR(VLOOKUP(ROWS($AE$2:AE22),P22:Q770,2,0),"") ->  | AJ22: =IFERROR(VLOOKUP(ROWS(AJ$2:$AJ22),O22:Q770,3,0),"") ->  | AL22: =IFERROR(VLOOKUP(ROWS(AL$2:$AL22),N22:Q770,4,0),"") -> 
N23: 0 | O23: 0 | P23: 0 | Q23: Birla Sun Life Asset Allocation Aggressive Direct | R23: 15704 | AE23: =IFERROR(VLOOKUP(ROWS($AE$2:AE23),P23:Q771,2,0),"") ->  | AJ23: =IFERROR(VLOOKUP(ROWS(AJ$2:$AJ23),O23:Q771,3,0),"") ->  | AL23: =IFERROR(VLOOKUP(ROWS(AL$2:$AL23),N23:Q771,4,0),"") -> 
B24: Click to view MF2 Fund Page at VR Online | N24: 0 | O24: 0 | P24: 0 | Q24: Birla Sun Life Buy India | R24: 726 | AE24: =IFERROR(VLOOKUP(ROWS($AE$2:AE24),P24:Q772,2,0),"") ->  | AJ24: =IFERROR(VLOOKUP(ROWS(AJ$2:$AJ24),O24:Q772,3,0),"") ->  | AL24: =IFERROR(VLOOKUP(ROWS(AL$2:$AL24),N24:Q772,4,0),"") -> 
N25: 0 | O25: 0 | P25: 0 | Q25: Birla Sun Life Buy India Direct | R25: 15881 | AE25: =IFERROR(VLOOKUP(ROWS($AE$2:AE25),P25:Q773,2,0),"") ->  | AJ25: =IFERROR(VLOOKUP(ROWS(AJ$2:$AJ25),O25:Q773,3,0),"") ->  | AL25: =IFERROR(VLOOKUP(ROWS(AL$2:$AL25),N25:Q773,4,0),"") -> 
B26: Click to view MF3 Fund Page at VR Online | N26: 0 | O26: 0 | P26: 0 | Q26: Birla Sun Life Commodity Equities - Global Agri | R26: 9316 | AE26: =IFERROR(VLOOKUP(ROWS($AE$2:AE26),P26:Q774,2,0),"") ->  | AJ26: =IFERROR(VLOOKUP(ROWS(AJ$2:$AJ26),O26:Q774,3,0),"") ->  | AL26: =IFERROR(VLOOKUP(ROWS(AL$2:$AL26),N26:Q774,4,0),"") -> 
N27: 0 | O27: 0 | P27: 0 | Q27: Birla Sun Life Commodity Equities - Global Agri Direct | R27: 15805 | AE27: =IFERROR(VLOOKUP(ROWS($AE$2:AE27),P27:Q775,2,0),"") ->  | AJ27: =IFERROR(VLOOKUP(ROWS(AJ$2:$AJ27),O27:Q775,3,0),"") ->  | AL27: =IFERROR(VLOOKUP(ROWS(AL$2:$AL27),N27:Q775,4,0),"") -> 
N28: 0 | O28: 0 | P28: 0 | Q28: Birla Sun Life Dividend Yield Plus | R28: 1530 | AE28: =IFERROR(VLOOKUP(ROWS($AE$2:AE28),P28:Q776,2,0),"") ->  | AJ28: =IFERROR(VLOOKUP(ROWS(AJ$2:$AJ28),O28:Q776,3,0),"") ->  | AL28: =IFERROR(VLOOKUP(ROWS(AL$2:$AL28),N28:Q776,4,0),"") -> 
N29: 0 | O29: 0 | P29: 0 | Q29: Birla Sun Life Dividend Yield Plus Direct | R29: 15813 | AE29: =IFERROR(VLOOKUP(ROWS($AE$2:AE29),P29:Q777,2,0),"") ->  | AJ29: =IFERROR(VLOOKUP(ROWS(AJ$2:$AJ29),O29:Q777,3,0),"") ->  | AL29: =IFERROR(VLOOKUP(ROWS(AL$2:$AL29),N29:Q777,4,0),"") -> 
N30: 0 | O30: 0 | P30: 0 | Q30: Birla Sun Life Equity | R30: 561 | AE30: =IFERROR(VLOOKUP(ROWS($AE$2:AE30),P30:Q778,2,0),"") ->  | AJ30: =IFERROR(VLOOKUP(ROWS(AJ$2:$AJ30),O30:Q778,3,0),"") ->  | AL30: =IFERROR(VLOOKUP(ROWS(AL$2:$AL30),N30:Q778,4,0),"") -> 
N31: 0 | O31: 0 | P31: 0 | Q31: Birla Sun Life Equity Direct | R31: 15741 | AE31: =IFERROR(VLOOKUP(ROWS($AE$2:AE31),P31:Q779,2,0),"") ->  | AJ31: =IFERROR(VLOOKUP(ROWS(AJ$2:$AJ31),O31:Q779,3,0),"") ->  | AL31: =IFERROR(VLOOKUP(ROWS(AL$2:$AL31),N31:Q779,4,0),"") -> 
N32: 0 | O32: 0 | P32: 0 | Q32: Birla Sun Life Frontline Equity | R32: 1400 | AE32: =IFERROR(VLOOKUP(ROWS($AE$2:AE32),P32:Q780,2,0),"") ->  | AJ32: =IFERROR(VLOOKUP(ROWS(AJ$2:$AJ32),O32:Q780,3,0),"") ->  | AL32: =IFERROR(VLOOKUP(ROWS(AL$2:$AL32),N32:Q780,4,0),"") -> 
N33: 0 | O33: 0 | P33: 0 | Q33: Birla Sun Life Frontline Equity Direct | R33: 15831 | AE33: =IFERROR(VLOOKUP(ROWS($AE$2:AE33),P33:Q781,2,0),"") ->  | AJ33: =IFERROR(VLOOKUP(ROWS(AJ$2:$AJ33),O33:Q781,3,0),"") ->  | AL33: =IFERROR(VLOOKUP(ROWS(AL$2:$AL33),N33:Q781,4,0),"") -> 
N34: 0 | O34: 0 | P34: 0 | Q34: Birla Sun Life Index | R34: 1445 | AE34: =IFERROR(VLOOKUP(ROWS($AE$2:AE34),P34:Q782,2,0),"") ->  | AJ34: =IFERROR(VLOOKUP(ROWS(AJ$2:$AJ34),O34:Q782,3,0),"") ->  | AL34: =IFERROR(VLOOKUP(ROWS(AL$2:$AL34),N34:Q782,4,0),"") -> 
N35: 0 | O35: 0 | P35: 0 | Q35: Birla Sun Life Index Direct | R35: 15769 | AE35: =IFERROR(VLOOKUP(ROWS($AE$2:AE35),P35:Q783,2,0),"") ->  | AJ35: =IFERROR(VLOOKUP(ROWS(AJ$2:$AJ35),O35:Q783,3,0),"") ->  | AL35: =IFERROR(VLOOKUP(ROWS(AL$2:$AL35),N35:Q783,4,0),"") -> 
N36: 0 | O36: 0 | P36: 0 | Q36: Birla Sun Life India GenNext | R36: 2787 | AE36: =IFERROR(VLOOKUP(ROWS($AE$2:AE36),P36:Q784,2,0),"") ->  | AJ36: =IFERROR(VLOOKUP(ROWS(AJ$2:$AJ36),O36:Q784,3,0),"") ->  | AL36: =IFERROR(VLOOKUP(ROWS(AL$2:$AL36),N36:Q784,4,0),"") -> 
N37: 0 | O37: 0 | P37: 0 | Q37: Birla Sun Life India GenNext Direct | R37: 15834 | AE37: =IFERROR(VLOOKUP(ROWS($AE$2:AE37),P37:Q785,2,0),"") ->  | AJ37: =IFERROR(VLOOKUP(ROWS(AJ$2:$AJ37),O37:Q785,3,0),"") ->  | AL37: =IFERROR(VLOOKUP(ROWS(AL$2:$AL37),N37:Q785,4,0),"") -> 
N38: 0 | O38: 0 | P38: 0 | Q38: Birla Sun Life India Opportunities | R38: 1824 | AE38: =IFERROR(VLOOKUP(ROWS($AE$2:AE38),P38:Q786,2,0),"") ->  | AJ38: =IFERROR(VLOOKUP(ROWS(AJ$2:$AJ38),O38:Q786,3,0),"") ->  | AL38: =IFERROR(VLOOKUP(ROWS(AL$2:$AL38),N38:Q786,4,0),"") -> 
N39: 0 | O39: 0 | P39: 0 | Q39: Birla Sun Life India Opportunities Direct | R39: 15901 | AE39: =IFERROR(VLOOKUP(ROWS($AE$2:AE39),P39:Q787,2,0),"") ->  | AJ39: =IFERROR(VLOOKUP(ROWS(AJ$2:$AJ39),O39:Q787,3,0),"") ->  | AL39: =IFERROR(VLOOKUP(ROWS(AL$2:$AL39),N39:Q787,4,0),"") -> 
N40: 0 | O40: 0 | P40: 0 | Q40: Birla Sun Life India Reforms | R40: 11196 | AE40: =IFERROR(VLOOKUP(ROWS($AE$2:AE40),P40:Q788,2,0),"") ->  | AJ40: =IFERROR(VLOOKUP(ROWS(AJ$2:$AJ40),O40:Q788,3,0),"") ->  | AL40: =IFERROR(VLOOKUP(ROWS(AL$2:$AL40),N40:Q788,4,0),"") -> 
N41: 0 | O41: 0 | P41: 0 | Q41: Birla Sun Life India Reforms Direct | R41: 15837 | AE41: =IFERROR(VLOOKUP(ROWS($AE$2:AE41),P41:Q789,2,0),"") ->  | AJ41: =IFERROR(VLOOKUP(ROWS(AJ$2:$AJ41),O41:Q789,3,0),"") ->  | AL41: =IFERROR(VLOOKUP(ROWS(AL$2:$AL41),N41:Q789,4,0),"") -> 
N42: 0 | O42: 0 | P42: 0 | Q42: Birla Sun Life Infrastructure | R42: 3161 | AE42: =IFERROR(VLOOKUP(ROWS($AE$2:AE42),P42:Q790,2,0),"") ->  | AJ42: =IFERROR(VLOOKUP(ROWS(AJ$2:$AJ42),O42:Q790,3,0),"") ->  | AL42: =IFERROR(VLOOKUP(ROWS(AL$2:$AL42),N42:Q790,4,0),"") -> 
N43: 0 | O43: 0 | P43: 0 | Q43: Birla Sun Life Infrastructure Direct | R43: 15846 | AE43: =IFERROR(VLOOKUP(ROWS($AE$2:AE43),P43:Q791,2,0),"") ->  | AJ43: =IFERROR(VLOOKUP(ROWS(AJ$2:$AJ43),O43:Q791,3,0),"") ->  | AL43: =IFERROR(VLOOKUP(ROWS(AL$2:$AL43),N43:Q791,4,0),"") -> 
N44: 0 | O44: 0 | P44: 0 | Q44: Birla Sun Life International Equity Plan A | R44: 5802 | AE44: =IFERROR(VLOOKUP(ROWS($AE$2:AE44),P44:Q792,2,0),"") ->  | AJ44: =IFERROR(VLOOKUP(ROWS(AJ$2:$AJ44),O44:Q792,3,0),"") ->  | AL44: =IFERROR(VLOOKUP(ROWS(AL$2:$AL44),N44:Q792,4,0),"") -> 
N45: 0 | O45: 0 | P45: 0 | Q45: Birla Sun Life International Equity Plan A Direct | R45: 15903 | AE45: =IFERROR(VLOOKUP(ROWS($AE$2:AE45),P45:Q793,2,0),"") ->  | AJ45: =IFERROR(VLOOKUP(ROWS(AJ$2:$AJ45),O45:Q793,3,0),"") ->  | AL45: =IFERROR(VLOOKUP(ROWS(AL$2:$AL45),N45:Q793,4,0),"") -> 
N46: 0 | O46: 0 | P46: 0 | Q46: Birla Sun Life International Equity Plan B | R46: 5804 | AE46: =IFERROR(VLOOKUP(ROWS($AE$2:AE46),P46:Q794,2,0),"") ->  | AJ46: =IFERROR(VLOOKUP(ROWS(AJ$2:$AJ46),O46:Q794,3,0),"") ->  | AL46: =IFERROR(VLOOKUP(ROWS(AL$2:$AL46),N46:Q794,4,0),"") -> 
N47: 0 | O47: 0 | P47: 0 | Q47: Birla Sun Life International Equity Plan B Direct | R47: 15905 | AE47: =IFERROR(VLOOKUP(ROWS($AE$2:AE47),P47:Q795,2,0),"") ->  | AJ47: =IFERROR(VLOOKUP(ROWS(AJ$2:$AJ47),O47:Q795,3,0),"") ->  | AL47: =IFERROR(VLOOKUP(ROWS(AL$2:$AL47),N47:Q795,4,0),"") -> 
N48: 0 | O48: 0 | P48: 0 | Q48: Birla Sun Life Long Term Advantage | R48: 3590 | AE48: =IFERROR(VLOOKUP(ROWS($AE$2:AE48),P48:Q796,2,0),"") ->  | AJ48: =IFERROR(VLOOKUP(ROWS(AJ$2:$AJ48),O48:Q796,3,0),"") ->  | AL48: =IFERROR(VLOOKUP(ROWS(AL$2:$AL48),N48:Q796,4,0),"") -> 
N49: 0 | O49: 0 | P49: 0 | Q49: Birla Sun Life Long Term Advantage Direct | R49: 15908 | AE49: =IFERROR(VLOOKUP(ROWS($AE$2:AE49),P49:Q797,2,0),"") ->  | AJ49: =IFERROR(VLOOKUP(ROWS(AJ$2:$AJ49),O49:Q797,3,0),"") ->  | AL49: =IFERROR(VLOOKUP(ROWS(AL$2:$AL49),N49:Q797,4,0),"") -> 
N50: 0 | O50: 0 | P50: 0 | Q50: Birla Sun Life Mid Cap | R50: 1439 | AE50: =IFERROR(VLOOKUP(ROWS($AE$2:AE50),P50:Q798,2,0),"") ->  | AJ50: =IFERROR(VLOOKUP(ROWS(AJ$2:$AJ50),O50:Q798,3,0),"") ->  | AL50: =IFERROR(VLOOKUP(ROWS(AL$2:$AL50),N50:Q798,4,0),"") -> 
N51: 0 | O51: 0 | P51: 0 | Q51: Birla Sun Life Mid Cap Direct | R51: 15870 | AE51: =IFERROR(VLOOKUP(ROWS($AE$2:AE51),P51:Q799,2,0),"") ->  | AJ51: =IFERROR(VLOOKUP(ROWS(AJ$2:$AJ51),O51:Q799,3,0),"") ->  | AL51: =IFERROR(VLOOKUP(ROWS(AL$2:$AL51),N51:Q799,4,0),"") -> 
N52: 0 | O52: 0 | P52: 0 | Q52: Birla Sun Life MNC | R52: 787 | AE52: =IFERROR(VLOOKUP(ROWS($AE$2:AE52),P52:Q800,2,0),"") ->  | AJ52: =IFERROR(VLOOKUP(ROWS(AJ$2:$AJ52),O52:Q800,3,0),"") ->  | AL52: =IFERROR(VLOOKUP(ROWS(AL$2:$AL52),N52:Q800,4,0),"") -> 
N53: 0 | O53: 0 | P53: 0 | Q53: Birla Sun Life MNC Direct | R53: 15872 | AE53: =IFERROR(VLOOKUP(ROWS($AE$2:AE53),P53:Q801,2,0),"") ->  | AJ53: =IFERROR(VLOOKUP(ROWS(AJ$2:$AJ53),O53:Q801,3,0),"") ->  | AL53: =IFERROR(VLOOKUP(ROWS(AL$2:$AL53),N53:Q801,4,0),"") -> 
N54: 0 | O54: 0 | P54: 0 | Q54: Birla Sun Life New Millennium | R54: 727 | AE54: =IFERROR(VLOOKUP(ROWS($AE$2:AE54),P54:Q802,2,0),"") ->  | AJ54: =IFERROR(VLOOKUP(ROWS(AJ$2:$AJ54),O54:Q802,3,0),"") ->  | AL54: =IFERROR(VLOOKUP(ROWS(AL$2:$AL54),N54:Q802,4,0),"") -> 
N55: 0 | O55: 0 | P55: 0 | Q55: Birla Sun Life New Millennium Direct | R55: 15878 | AE55: =IFERROR(VLOOKUP(ROWS($AE$2:AE55),P55:Q803,2,0),"") ->  | AJ55: =IFERROR(VLOOKUP(ROWS(AJ$2:$AJ55),O55:Q803,3,0),"") ->  | AL55: =IFERROR(VLOOKUP(ROWS(AL$2:$AL55),N55:Q803,4,0),"") -> 
N56: 0 | O56: 0 | P56: 0 | Q56: Birla Sun Life Nifty ETF | R56: 13012 | AE56: =IFERROR(VLOOKUP(ROWS($AE$2:AE56),P56:Q804,2,0),"") ->  | AJ56: =IFERROR(VLOOKUP(ROWS(AJ$2:$AJ56),O56:Q804,3,0),"") ->  | AL56: =IFERROR(VLOOKUP(ROWS(AL$2:$AL56),N56:Q804,4,0),"") -> 
N57: 0 | O57: 0 | P57: 0 | Q57: Birla Sun Life Pure Value | R57: 6778 | AE57: =IFERROR(VLOOKUP(ROWS($AE$2:AE57),P57:Q805,2,0),"") ->  | AJ57: =IFERROR(VLOOKUP(ROWS(AJ$2:$AJ57),O57:Q805,3,0),"") ->  | AL57: =IFERROR(VLOOKUP(ROWS(AL$2:$AL57),N57:Q805,4,0),"") -> 
N58: 0 | O58: 0 | P58: 0 | Q58: Birla Sun Life Pure Value Direct | R58: 15879 | AE58: =IFERROR(VLOOKUP(ROWS($AE$2:AE58),P58:Q806,2,0),"") ->  | AJ58: =IFERROR(VLOOKUP(ROWS(AJ$2:$AJ58),O58:Q806,3,0),"") ->  | AL58: =IFERROR(VLOOKUP(ROWS(AL$2:$AL58),N58:Q806,4,0),"") -> 
N59: 0 | O59: 0 | P59: 0 | Q59: Birla Sun Life Small & Midcap | R59: 5006 | AE59: =IFERROR(VLOOKUP(ROWS($AE$2:AE59),P59:Q807,2,0),"") ->  | AJ59: =IFERROR(VLOOKUP(ROWS(AJ$2:$AJ59),O59:Q807,3,0),"") ->  | AL59: =IFERROR(VLOOKUP(ROWS(AL$2:$AL59),N59:Q807,4,0),"") -> 
N60: 0 | O60: 0 | P60: 0 | Q60: Birla Sun Life Small & Midcap Direct | R60: 15935 | AE60: =IFERROR(VLOOKUP(ROWS($AE$2:AE60),P60:Q808,2,0),"") ->  | AJ60: =IFERROR(VLOOKUP(ROWS(AJ$2:$AJ60),O60:Q808,3,0),"") ->  | AL60: =IFERROR(VLOOKUP(ROWS(AL$2:$AL60),N60:Q808,4,0),"") -> 
N61: 0 | O61: 0 | P61: 0 | Q61: Birla Sun Life Special Situations | R61: 6550 | AE61: =IFERROR(VLOOKUP(ROWS($AE$2:AE61),P61:Q809,2,0),"") ->  | AJ61: =IFERROR(VLOOKUP(ROWS(AJ$2:$AJ61),O61:Q809,3,0),"") ->  | AL61: =IFERROR(VLOOKUP(ROWS(AL$2:$AL61),N61:Q809,4,0),"") -> 
N62: 0 | O62: 0 | P62: 0 | Q62: Birla Sun Life Special Situations Direct | R62: 15892 | AE62: =IFERROR(VLOOKUP(ROWS($AE$2:AE62),P62:Q810,2,0),"") ->  | AJ62: =IFERROR(VLOOKUP(ROWS(AJ$2:$AJ62),O62:Q810,3,0),"") ->  | AL62: =IFERROR(VLOOKUP(ROWS(AL$2:$AL62),N62:Q810,4,0),"") -> 
N63: 0 | O63: 0 | P63: 0 | Q63: Birla Sun Life Tax Plan | R63: 590 | AE63: =IFERROR(VLOOKUP(ROWS($AE$2:AE63),P63:Q811,2,0),"") ->  | AJ63: =IFERROR(VLOOKUP(ROWS(AJ$2:$AJ63),O63:Q811,3,0),"") ->  | AL63: =IFERROR(VLOOKUP(ROWS(AL$2:$AL63),N63:Q811,4,0),"") -> 
N64: 0 | O64: 0 | P64: 0 | Q64: Birla Sun Life Tax Plan Direct | R64: 15886 | AE64: =IFERROR(VLOOKUP(ROWS($AE$2:AE64),P64:Q812,2,0),"") ->  | AJ64: =IFERROR(VLOOKUP(ROWS(AJ$2:$AJ64),O64:Q812,3,0),"") ->  | AL64: =IFERROR(VLOOKUP(ROWS(AL$2:$AL64),N64:Q812,4,0),"") -> 
N65: 0 | O65: 0 | P65: 0 | Q65: Birla Sun Life Tax Relief 96 | R65: 24 | AE65: =IFERROR(VLOOKUP(ROWS($AE$2:AE65),P65:Q813,2,0),"") ->  | AJ65: =IFERROR(VLOOKUP(ROWS(AJ$2:$AJ65),O65:Q813,3,0),"") ->  | AL65: =IFERROR(VLOOKUP(ROWS(AL$2:$AL65),N65:Q813,4,0),"") -> 
N66: 0 | O66: 0 | P66: =IF(ISNUMBER(SEARCH($H$6,Q66)),MAX($P$1,P65)+1,0) -> 0 | Q66: Birla Sun Life Tax Relief 96 Direct | R66: 15889 | AE66: =IFERROR(VLOOKUP(ROWS($AE$2:AE66),P66:Q814,2,0),"") ->  | AJ66: =IFERROR(VLOOKUP(ROWS(AJ$2:$AJ66),O66:Q814,3,0),"") ->  | AL66: =IFERROR(VLOOKUP(ROWS(AL$2:$AL66),N66:Q814,4,0),"") -> 
N67: =IF(ISNUMBER(SEARCH($H$16,Q67)),MAX($N$1,N66)+1,0) -> 0 | O67: =IF(ISNUMBER(SEARCH($H$11,Q67)),MAX($O$1,O66)+1,0) -> 0 | P67: 0 | Q67: Birla Sun Life Top 100 | R67: 2865 | AE67: =IFERROR(VLOOKUP(ROWS($AE$2:AE67),P67:Q815,2,0),"") ->  | AJ67: =IFERROR(VLOOKUP(ROWS(AJ$2:$AJ67),O67:Q815,3,0),"") ->  | AL67: =IFERROR(VLOOKUP(ROWS(AL$2:$AL67),N67:Q815,4,0),"") -> 
N68: 0 | O68: 0 | P68: 0 | Q68: Birla Sun Life Top 100 Direct | R68: 15883 | AE68: =IFERROR(VLOOKUP(ROWS($AE$2:AE68),P68:Q816,2,0),"") ->  | AJ68: =IFERROR(VLOOKUP(ROWS(AJ$2:$AJ68),O68:Q816,3,0),"") ->  | AL68: =IFERROR(VLOOKUP(ROWS(AL$2:$AL68),N68:Q816,4,0),"") -> 
N69: 0 | O69: 0 | P69: 0 | Q69: BNP Paribas Dividend Yield | R69: 2830 | AE69: =IFERROR(VLOOKUP(ROWS($AE$2:AE69),P69:Q817,2,0),"") ->  | AJ69: =IFERROR(VLOOKUP(ROWS(AJ$2:$AJ69),O69:Q817,3,0),"") ->  | AL69: =IFERROR(VLOOKUP(ROWS(AL$2:$AL69),N69:Q817,4,0),"") -> 
N70: 0 | O70: 0 | P70: 0 | Q70: BNP Paribas Dividend Yield Direct | R70: 15716 | AE70: =IFERROR(VLOOKUP(ROWS($AE$2:AE70),P70:Q818,2,0),"") ->  | AJ70: =IFERROR(VLOOKUP(ROWS(AJ$2:$AJ70),O70:Q818,3,0),"") ->  | AL70: =IFERROR(VLOOKUP(ROWS(AL$2:$AL70),N70:Q818,4,0),"") -> 
N71: 0 | O71: 0 | P71: 0 | Q71: BNP Paribas Equity | R71: 2338 | AE71: =IFERROR(VLOOKUP(ROWS($AE$2:AE71),P71:Q819,2,0),"") ->  | AJ71: =IFERROR(VLOOKUP(ROWS(AJ$2:$AJ71),O71:Q819,3,0),"") ->  | AL71: =IFERROR(VLOOKUP(ROWS(AL$2:$AL71),N71:Q819,4,0),"") -> 
N72: 0 | O72: 0 | P72: 0 | Q72: BNP Paribas Equity Direct | R72: 15719 | AE72: =IFERROR(VLOOKUP(ROWS($AE$2:AE72),P72:Q820,2,0),"") ->  | AJ72: =IFERROR(VLOOKUP(ROWS(AJ$2:$AJ72),O72:Q820,3,0),"") ->  | AL72: =IFERROR(VLOOKUP(ROWS(AL$2:$AL72),N72:Q820,4,0),"") -> 
N73: 0 | O73: 0 | P73: 0 | Q73: BNP Paribas Midcap | R73: 3259 | AE73: =IFERROR(VLOOKUP(ROWS($AE$2:AE73),P73:Q821,2,0),"") ->  | AJ73: =IFERROR(VLOOKUP(ROWS(AJ$2:$AJ73),O73:Q821,3,0),"") ->  | AL73: =IFERROR(VLOOKUP(ROWS(AL$2:$AL73),N73:Q821,4,0),"") -> 
N74: 0 | O74: 0 | P74: 0 | Q74: BNP Paribas Midcap Direct | R74: 15726 | AE74: =IFERROR(VLOOKUP(ROWS($AE$2:AE74),P74:Q822,2,0),"") ->  | AJ74: =IFERROR(VLOOKUP(ROWS(AJ$2:$AJ74),O74:Q822,3,0),"") ->  | AL74: =IFERROR(VLOOKUP(ROWS(AL$2:$AL74),N74:Q822,4,0),"") -> 
N75: 0 | O75: 0 | P75: 0 | Q75: BNP Paribas Tax Advantage Direct | R75: 15732 | AE75: =IFERROR(VLOOKUP(ROWS($AE$2:AE75),P75:Q823,2,0),"") ->  | AJ75: =IFERROR(VLOOKUP(ROWS(AJ$2:$AJ75),O75:Q823,3,0),"") ->  | AL75: =IFERROR(VLOOKUP(ROWS(AL$2:$AL75),N75:Q823,4,0),"") -> 
N76: 0 | O76: 0 | P76: 0 | Q76: BNP Paribas Tax Advantage Plan | R76: 3001 | AE76: =IFERROR(VLOOKUP(ROWS($AE$2:AE76),P76:Q824,2,0),"") ->  | AJ76: =IFERROR(VLOOKUP(ROWS(AJ$2:$AJ76),O76:Q824,3,0),"") ->  | AL76: =IFERROR(VLOOKUP(ROWS(AL$2:$AL76),N76:Q824,4,0),"") -> 
N77: 0 | O77: 0 | P77: 0 | Q77: BOI AXA Equity Eco# | R77: 8989 | AE77: =IFERROR(VLOOKUP(ROWS($AE$2:AE77),P77:Q825,2,0),"") ->  | AJ77: =IFERROR(VLOOKUP(ROWS(AJ$2:$AJ77),O77:Q825,3,0),"") ->  | AL77: =IFERROR(VLOOKUP(ROWS(AL$2:$AL77),N77:Q825,4,0),"") -> 
N78: 0 | O78: 0 | P78: 0 | Q78: BOI AXA Equity Reg | R78: 8985 | AE78: =IFERROR(VLOOKUP(ROWS($AE$2:AE78),P78:Q826,2,0),"") ->  | AJ78: =IFERROR(VLOOKUP(ROWS(AJ$2:$AJ78),O78:Q826,3,0),"") ->  | AL78: =IFERROR(VLOOKUP(ROWS(AL$2:$AL78),N78:Q826,4,0),"") -> 
N79: 0 | O79: 0 | P79: 0 | Q79: BOI AXA Equity Reg Direct | R79: 16267 | AE79: =IFERROR(VLOOKUP(ROWS($AE$2:AE79),P79:Q827,2,0),"") ->  | AJ79: =IFERROR(VLOOKUP(ROWS(AJ$2:$AJ79),O79:Q827,3,0),"") ->  | AL79: =IFERROR(VLOOKUP(ROWS(AL$2:$AL79),N79:Q827,4,0),"") -> 
N80: 0 | O80: 0 | P80: 0 | Q80: BOI AXA Focused Infrastructure | R80: 10854 | AE80: =IFERROR(VLOOKUP(ROWS($AE$2:AE80),P80:Q828,2,0),"") ->  | AJ80: =IFERROR(VLOOKUP(ROWS(AJ$2:$AJ80),O80:Q828,3,0),"") ->  | AL80: =IFERROR(VLOOKUP(ROWS(AL$2:$AL80),N80:Q828,4,0),"") -> 
N81: 0 | O81: 0 | P81: 0 | Q81: BOI AXA Focused Infrastructure Direct | R81: 15735 | AE81: =IFERROR(VLOOKUP(ROWS($AE$2:AE81),P81:Q829,2,0),"") ->  | AJ81: =IFERROR(VLOOKUP(ROWS(AJ$2:$AJ81),O81:Q829,3,0),"") ->  | AL81: =IFERROR(VLOOKUP(ROWS(AL$2:$AL81),N81:Q829,4,0),"") -> 
N82: 0 | O82: 0 | P82: 0 | Q82: BOI AXA Tax Advantage Eco# | R82: 10099 | AE82: =IFERROR(VLOOKUP(ROWS($AE$2:AE82),P82:Q830,2,0),"") ->  | AJ82: =IFERROR(VLOOKUP(ROWS(AJ$2:$AJ82),O82:Q830,3,0),"") ->  | AL82: =IFERROR(VLOOKUP(ROWS(AL$2:$AL82),N82:Q830,4,0),"") -> 
N83: 0 | O83: 0 | P83: 0 | Q83: BOI AXA Tax Advantage Reg | R83: 10097 | AE83: =IFERROR(VLOOKUP(ROWS($AE$2:AE83),P83:Q831,2,0),"") ->  | AJ83: =IFERROR(VLOOKUP(ROWS(AJ$2:$AJ83),O83:Q831,3,0),"") ->  | AL83: =IFERROR(VLOOKUP(ROWS(AL$2:$AL83),N83:Q831,4,0),"") -> 
N84: 0 | O84: 0 | P84: 0 | Q84: BOI AXA Tax Advantage Reg Direct | R84: 16803 | AE84: =IFERROR(VLOOKUP(ROWS($AE$2:AE84),P84:Q832,2,0),"") ->  | AJ84: =IFERROR(VLOOKUP(ROWS(AJ$2:$AJ84),O84:Q832,3,0),"") ->  | AL84: =IFERROR(VLOOKUP(ROWS(AL$2:$AL84),N84:Q832,4,0),"") -> 
N85: 0 | O85: 0 | P85: 0 | Q85: Canara Robeco Emerging Equities Regular | R85: 2645 | AE85: =IFERROR(VLOOKUP(ROWS($AE$2:AE85),P85:Q833,2,0),"") ->  | AJ85: =IFERROR(VLOOKUP(ROWS(AJ$2:$AJ85),O85:Q833,3,0),"") ->  | AL85: =IFERROR(VLOOKUP(ROWS(AL$2:$AL85),N85:Q833,4,0),"") -> 
N86: 0 | O86: 0 | P86: 0 | Q86: Canara Robeco Emerging Equities Regular Direct | R86: 16581 | AE86: =IFERROR(VLOOKUP(ROWS($AE$2:AE86),P86:Q834,2,0),"") ->  | AJ86: =IFERROR(VLOOKUP(ROWS(AJ$2:$AJ86),O86:Q834,3,0),"") ->  | AL86: =IFERROR(VLOOKUP(ROWS(AL$2:$AL86),N86:Q834,4,0),"") -> 
N87: 0 | O87: 0 | P87: 0 | Q87: Canara Robeco Equity Diversified Regular | R87: 1839 | AE87: =IFERROR(VLOOKUP(ROWS($AE$2:AE87),P87:Q835,2,0),"") ->  | AJ87: =IFERROR(VLOOKUP(ROWS(AJ$2:$AJ87),O87:Q835,3,0),"") ->  | AL87: =IFERROR(VLOOKUP(ROWS(AL$2:$AL87),N87:Q835,4,0),"") -> 
N88: 0 | O88: 0 | P88: 0 | Q88: Canara Robeco Equity Diversified Regular Direct | R88: 16588 | AE88: =IFERROR(VLOOKUP(ROWS($AE$2:AE88),P88:Q836,2,0),"") ->  | AJ88: =IFERROR(VLOOKUP(ROWS(AJ$2:$AJ88),O88:Q836,3,0),"") ->  | AL88: =IFERROR(VLOOKUP(ROWS(AL$2:$AL88),N88:Q836,4,0),"") -> 
N89: 0 | O89: 0 | P89: 0 | Q89: Canara Robeco Equity Tax Saver Regular | R89: 59 | AE89: =IFERROR(VLOOKUP(ROWS($AE$2:AE89),P89:Q837,2,0),"") ->  | AJ89: =IFERROR(VLOOKUP(ROWS(AJ$2:$AJ89),O89:Q837,3,0),"") ->  | AL89: =IFERROR(VLOOKUP(ROWS(AL$2:$AL89),N89:Q837,4,0),"") -> 
N90: 0 | O90: 0 | P90: 0 | Q90: Canara Robeco Equity Tax Saver Regular Direct | R90: 16594 | AE90: =IFERROR(VLOOKUP(ROWS($AE$2:AE90),P90:Q838,2,0),"") ->  | AJ90: =IFERROR(VLOOKUP(ROWS(AJ$2:$AJ90),O90:Q838,3,0),"") ->  | AL90: =IFERROR(VLOOKUP(ROWS(AL$2:$AL90),N90:Q838,4,0),"") -> 
N91: 0 | O91: 0 | P91: 0 | Q91: Canara Robeco F.O.R.C.E Inst# | R91: 10592 | AE91: =IFERROR(VLOOKUP(ROWS($AE$2:AE91),P91:Q839,2,0),"") ->  | AJ91: =IFERROR(VLOOKUP(ROWS(AJ$2:$AJ91),O91:Q839,3,0),"") ->  | AL91: =IFERROR(VLOOKUP(ROWS(AL$2:$AL91),N91:Q839,4,0),"") -> 
N92: 0 | O92: 0 | P92: 0 | Q92: Canara Robeco F.O.R.C.E Regular | R92: 10590 | AE92: =IFERROR(VLOOKUP(ROWS($AE$2:AE92),P92:Q840,2,0),"") ->  | AJ92: =IFERROR(VLOOKUP(ROWS(AJ$2:$AJ92),O92:Q840,3,0),"") ->  | AL92: =IFERROR(VLOOKUP(ROWS(AL$2:$AL92),N92:Q840,4,0),"") -> 
N93: 0 | O93: 0 | P93: 0 | Q93: Canara Robeco F.O.R.C.E Regular Direct | R93: 16600 | AE93: =IFERROR(VLOOKUP(ROWS($AE$2:AE93),P93:Q841,2,0),"") ->  | AJ93: =IFERROR(VLOOKUP(ROWS(AJ$2:$AJ93),O93:Q841,3,0),"") ->  | AL93: =IFERROR(VLOOKUP(ROWS(AL$2:$AL93),N93:Q841,4,0),"") -> 
N94: 0 | O94: 0 | P94: 0 | Q94: Canara Robeco Infrastructure Direct | R94: 15761 | AE94: =IFERROR(VLOOKUP(ROWS($AE$2:AE94),P94:Q842,2,0),"") ->  | AJ94: =IFERROR(VLOOKUP(ROWS(AJ$2:$AJ94),O94:Q842,3,0),"") ->  | AL94: =IFERROR(VLOOKUP(ROWS(AL$2:$AL94),N94:Q842,4,0),"") -> 
N95: 0 | O95: 0 | P95: 0 | Q95: Canara Robeco Infrastructure Regular | R95: 2960 | AE95: =IFERROR(VLOOKUP(ROWS($AE$2:AE95),P95:Q843,2,0),"") ->  | AJ95: =IFERROR(VLOOKUP(ROWS(AJ$2:$AJ95),O95:Q843,3,0),"") ->  | AL95: =IFERROR(VLOOKUP(ROWS(AL$2:$AL95),N95:Q843,4,0),"") -> 
N96: 0 | O96: 0 | P96: 0 | Q96: Canara Robeco Large Cap+ Direct | R96: 15765 | AE96: =IFERROR(VLOOKUP(ROWS($AE$2:AE96),P96:Q844,2,0),"") ->  | AJ96: =IFERROR(VLOOKUP(ROWS(AJ$2:$AJ96),O96:Q844,3,0),"") ->  | AL96: =IFERROR(VLOOKUP(ROWS(AL$2:$AL96),N96:Q844,4,0),"") -> 
N97: 0 | O97: 0 | P97: 0 | Q97: Canara Robeco Large Cap+ Regular | R97: 11333 | AE97: =IFERROR(VLOOKUP(ROWS($AE$2:AE97),P97:Q845,2,0),"") ->  | AJ97: =IFERROR(VLOOKUP(ROWS(AJ$2:$AJ97),O97:Q845,3,0),"") ->  | AL97: =IFERROR(VLOOKUP(ROWS(AL$2:$AL97),N97:Q845,4,0),"") -> 
N98: 0 | O98: 0 | P98: 0 | Q98: Canara Robeco Nifty Index Direct | R98: 15776 | AE98: =IFERROR(VLOOKUP(ROWS($AE$2:AE98),P98:Q846,2,0),"") ->  | AJ98: =IFERROR(VLOOKUP(ROWS(AJ$2:$AJ98),O98:Q846,3,0),"") ->  | AL98: =IFERROR(VLOOKUP(ROWS(AL$2:$AL98),N98:Q846,4,0),"") -> 
N99: 0 | O99: 0 | P99: 0 | Q99: Canara Robeco Nifty Index Regular | R99: 2472 | AE99: =IFERROR(VLOOKUP(ROWS($AE$2:AE99),P99:Q847,2,0),"") ->  | AJ99: =IFERROR(VLOOKUP(ROWS(AJ$2:$AJ99),O99:Q847,3,0),"") ->  | AL99: =IFERROR(VLOOKUP(ROWS(AL$2:$AL99),N99:Q847,4,0),"") -> 
N100: 0 | O100: 0 | P100: 0 | Q100: Daiwa Industry Leaders | R100: 10603 | AE100: =IFERROR(VLOOKUP(ROWS($AE$2:AE100),P100:Q848,2,0),"") ->  | AJ100: =IFERROR(VLOOKUP(ROWS(AJ$2:$AJ100),O100:Q848,3,0),"") ->  | AL100: =IFERROR(VLOOKUP(ROWS(AL$2:$AL100),N100:Q848,4,0),"") -> 
N101: 0 | O101: 0 | P101: 0 | Q101: Daiwa Industry Leaders Direct | R101: 15787 | AE101: =IFERROR(VLOOKUP(ROWS($AE$2:AE101),P101:Q849,2,0),"") ->  | AJ101: =IFERROR(VLOOKUP(ROWS(AJ$2:$AJ101),O101:Q849,3,0),"") ->  | AL101: =IFERROR(VLOOKUP(ROWS(AL$2:$AL101),N101:Q849,4,0),"") -> 
N102: 0 | O102: 0 | P102: 0 | Q102: DSPBR Equity | R102: 393 | AE102: =IFERROR(VLOOKUP(ROWS($AE$2:AE102),P102:Q850,2,0),"") ->  | AJ102: =IFERROR(VLOOKUP(ROWS(AJ$2:$AJ102),O102:Q850,3,0),"") ->  | AL102: =IFERROR(VLOOKUP(ROWS(AL$2:$AL102),N102:Q850,4,0),"") -> 
N103: 0 | O103: 0 | P103: 0 | Q103: DSPBR Equity Direct | R103: 16386 | AE103: =IFERROR(VLOOKUP(ROWS($AE$2:AE103),P103:Q851,2,0),"") ->  | AJ103: =IFERROR(VLOOKUP(ROWS(AJ$2:$AJ103),O103:Q851,3,0),"") ->  | AL103: =IFERROR(VLOOKUP(ROWS(AL$2:$AL103),N103:Q851,4,0),"") -> 
N104: 0 | O104: 0 | P104: 0 | Q104: DSPBR Equity Inst# | R104: 5609 | AE104: =IFERROR(VLOOKUP(ROWS($AE$2:AE104),P104:Q852,2,0),"") ->  | AJ104: =IFERROR(VLOOKUP(ROWS(AJ$2:$AJ104),O104:Q852,3,0),"") ->  | AL104: =IFERROR(VLOOKUP(ROWS(AL$2:$AL104),N104:Q852,4,0),"") -> 
N105: 0 | O105: 0 | P105: 0 | Q105: DSPBR Focus 25 | R105: 11183 | AE105: =IFERROR(VLOOKUP(ROWS($AE$2:AE105),P105:Q853,2,0),"") ->  | AJ105: =IFERROR(VLOOKUP(ROWS(AJ$2:$AJ105),O105:Q853,3,0),"") ->  | AL105: =IFERROR(VLOOKUP(ROWS(AL$2:$AL105),N105:Q853,4,0),"") -> 
N106: 0 | O106: 0 | P106: 0 | Q106: DSPBR Focus 25 Direct | R106: 16388 | AE106: =IFERROR(VLOOKUP(ROWS($AE$2:AE106),P106:Q854,2,0),"") ->  | AJ106: =IFERROR(VLOOKUP(ROWS(AJ$2:$AJ106),O106:Q854,3,0),"") ->  | AL106: =IFERROR(VLOOKUP(ROWS(AL$2:$AL106),N106:Q854,4,0),"") -> 
N107: 0 | O107: 0 | P107: 0 | Q107: DSPBR Micro Cap Reg | R107: 5069 | AE107: =IFERROR(VLOOKUP(ROWS($AE$2:AE107),P107:Q855,2,0),"") ->  | AJ107: =IFERROR(VLOOKUP(ROWS(AJ$2:$AJ107),O107:Q855,3,0),"") ->  | AL107: =IFERROR(VLOOKUP(ROWS(AL$2:$AL107),N107:Q855,4,0),"") -> 
N108: 0 | O108: 0 | P108: 0 | Q108: DSPBR Micro Cap Reg Direct | R108: 16411 | AE108: =IFERROR(VLOOKUP(ROWS($AE$2:AE108),P108:Q856,2,0),"") ->  | AJ108: =IFERROR(VLOOKUP(ROWS(AJ$2:$AJ108),O108:Q856,3,0),"") ->  | AL108: =IFERROR(VLOOKUP(ROWS(AL$2:$AL108),N108:Q856,4,0),"") -> 
N109: 0 | O109: 0 | P109: 0 | Q109: DSPBR Natural Resources and New Energy Reg | R109: 7128 | AE109: =IFERROR(VLOOKUP(ROWS($AE$2:AE109),P109:Q857,2,0),"") ->  | AJ109: =IFERROR(VLOOKUP(ROWS(AJ$2:$AJ109),O109:Q857,3,0),"") ->  | AL109: =IFERROR(VLOOKUP(ROWS(AL$2:$AL109),N109:Q857,4,0),"") -> 
N110: 0 | O110: 0 | P110: 0 | Q110: DSPBR Natural Resources and New Energy Reg Direct | R110: 16988 | AE110: =IFERROR(VLOOKUP(ROWS($AE$2:AE110),P110:Q858,2,0),"") ->  | AJ110: =IFERROR(VLOOKUP(ROWS(AJ$2:$AJ110),O110:Q858,3,0),"") ->  | AL110: =IFERROR(VLOOKUP(ROWS(AL$2:$AL110),N110:Q858,4,0),"") -> 
N111: 0 | O111: 0 | P111: 0 | Q111: DSPBR Opportunities | R111: 776 | AE111: =IFERROR(VLOOKUP(ROWS($AE$2:AE111),P111:Q859,2,0),"") ->  | AJ111: =IFERROR(VLOOKUP(ROWS(AJ$2:$AJ111),O111:Q859,3,0),"") ->  | AL111: =IFERROR(VLOOKUP(ROWS(AL$2:$AL111),N111:Q859,4,0),"") -> 
N112: 0 | O112: 0 | P112: 0 | Q112: DSPBR Opportunities Direct | R112: 16425 | AE112: =IFERROR(VLOOKUP(ROWS($AE$2:AE112),P112:Q860,2,0),"") ->  | AJ112: =IFERROR(VLOOKUP(ROWS(AJ$2:$AJ112),O112:Q860,3,0),"") ->  | AL112: =IFERROR(VLOOKUP(ROWS(AL$2:$AL112),N112:Q860,4,0),"") -> 
N113: 0 | O113: 0 | P113: 0 | Q113: DSPBR Small and Mid Cap Reg | R113: 3725 | AE113: =IFERROR(VLOOKUP(ROWS($AE$2:AE113),P113:Q861,2,0),"") ->  | AJ113: =IFERROR(VLOOKUP(ROWS(AJ$2:$AJ113),O113:Q861,3,0),"") ->  | AL113: =IFERROR(VLOOKUP(ROWS(AL$2:$AL113),N113:Q861,4,0),"") -> 
N114: 0 | O114: 0 | P114: 0 | Q114: DSPBR Small and Mid Cap Reg Direct | R114: 16438 | AE114: =IFERROR(VLOOKUP(ROWS($AE$2:AE114),P114:Q862,2,0),"") ->  | AJ114: =IFERROR(VLOOKUP(ROWS(AJ$2:$AJ114),O114:Q862,3,0),"") ->  | AL114: =IFERROR(VLOOKUP(ROWS(AL$2:$AL114),N114:Q862,4,0),"") -> 
N115: 0 | O115: 0 | P115: 0 | Q115: DSPBR T.I.G.E.R. Inst# | R115: 5240 | AE115: =IFERROR(VLOOKUP(ROWS($AE$2:AE115),P115:Q863,2,0),"") ->  | AJ115: =IFERROR(VLOOKUP(ROWS(AJ$2:$AJ115),O115:Q863,3,0),"") ->  | AL115: =IFERROR(VLOOKUP(ROWS(AL$2:$AL115),N115:Q863,4,0),"") -> 
N116: 0 | O116: 0 | P116: 0 | Q116: DSPBR T.I.G.E.R. Reg | R116: 2222 | AE116: =IFERROR(VLOOKUP(ROWS($AE$2:AE116),P116:Q864,2,0),"") ->  | AJ116: =IFERROR(VLOOKUP(ROWS(AJ$2:$AJ116),O116:Q864,3,0),"") ->  | AL116: =IFERROR(VLOOKUP(ROWS(AL$2:$AL116),N116:Q864,4,0),"") -> 
N117: 0 | O117: 0 | P117: 0 | Q117: DSPBR T.I.G.E.R. Reg Direct | R117: 16410 | AE117: =IFERROR(VLOOKUP(ROWS($AE$2:AE117),P117:Q865,2,0),"") ->  | AJ117: =IFERROR(VLOOKUP(ROWS(AJ$2:$AJ117),O117:Q865,3,0),"") ->  | AL117: =IFERROR(VLOOKUP(ROWS(AL$2:$AL117),N117:Q865,4,0),"") -> 
N118: 0 | O118: 0 | P118: 0 | Q118: DSPBR Tax Saver | R118: 3985 | AE118: =IFERROR(VLOOKUP(ROWS($AE$2:AE118),P118:Q866,2,0),"") ->  | AJ118: =IFERROR(VLOOKUP(ROWS(AJ$2:$AJ118),O118:Q866,3,0),"") ->  | AL118: =IFERROR(VLOOKUP(ROWS(AL$2:$AL118),N118:Q866,4,0),"") -> 
N119: 0 | O119: 0 | P119: 0 | Q119: DSPBR Tax Saver Direct | R119: 16454 | AE119: =IFERROR(VLOOKUP(ROWS($AE$2:AE119),P119:Q867,2,0),"") ->  | AJ119: =IFERROR(VLOOKUP(ROWS(AJ$2:$AJ119),O119:Q867,3,0),"") ->  | AL119: =IFERROR(VLOOKUP(ROWS(AL$2:$AL119),N119:Q867,4,0),"") -> 
N120: 0 | O120: 0 | P120: 0 | Q120: DSPBR Technology.com Reg | R120: 774 | AE120: =IFERROR(VLOOKUP(ROWS($AE$2:AE120),P120:Q868,2,0),"") ->  | AJ120: =IFERROR(VLOOKUP(ROWS(AJ$2:$AJ120),O120:Q868,3,0),"") ->  | AL120: =IFERROR(VLOOKUP(ROWS(AL$2:$AL120),N120:Q868,4,0),"") -> 
N121: 0 | O121: 0 | P121: 0 | Q121: DSPBR Technology.com Reg Direct | R121: 17003 | AE121: =IFERROR(VLOOKUP(ROWS($AE$2:AE121),P121:Q869,2,0),"") ->  | AJ121: =IFERROR(VLOOKUP(ROWS(AJ$2:$AJ121),O121:Q869,3,0),"") ->  | AL121: =IFERROR(VLOOKUP(ROWS(AL$2:$AL121),N121:Q869,4,0),"") -> 
N122: 0 | O122: 0 | P122: 0 | Q122: DSPBR Top 100 Equity Inst# | R122: 5219 | AE122: =IFERROR(VLOOKUP(ROWS($AE$2:AE122),P122:Q870,2,0),"") ->  | AJ122: =IFERROR(VLOOKUP(ROWS(AJ$2:$AJ122),O122:Q870,3,0),"") ->  | AL122: =IFERROR(VLOOKUP(ROWS(AL$2:$AL122),N122:Q870,4,0),"") -> 
N123: 0 | O123: 0 | P123: 0 | Q123: DSPBR Top 100 Equity Reg | R123: 1540 | AE123: =IFERROR(VLOOKUP(ROWS($AE$2:AE123),P123:Q871,2,0),"") ->  | AJ123: =IFERROR(VLOOKUP(ROWS(AJ$2:$AJ123),O123:Q871,3,0),"") ->  | AL123: =IFERROR(VLOOKUP(ROWS(AL$2:$AL123),N123:Q871,4,0),"") -> 
N124: 0 | O124: 0 | P124: 0 | Q124: DSPBR Top 100 Equity Reg Direct | R124: 16456 | AE124: =IFERROR(VLOOKUP(ROWS($AE$2:AE124),P124:Q872,2,0),"") ->  | AJ124: =IFERROR(VLOOKUP(ROWS(AJ$2:$AJ124),O124:Q872,3,0),"") ->  | AL124: =IFERROR(VLOOKUP(ROWS(AL$2:$AL124),N124:Q872,4,0),"") -> 
N125: 0 | O125: 0 | P125: 0 | Q125: DSPBR US Flexible Equity | R125: 15152 | AE125: =IFERROR(VLOOKUP(ROWS($AE$2:AE125),P125:Q873,2,0),"") ->  | AJ125: =IFERROR(VLOOKUP(ROWS(AJ$2:$AJ125),O125:Q873,3,0),"") ->  | AL125: =IFERROR(VLOOKUP(ROWS(AL$2:$AL125),N125:Q873,4,0),"") -> 
N126: 0 | O126: 0 | P126: 0 | Q126: DSPBR US Flexible Equity Direct | R126: 17006 | AE126: =IFERROR(VLOOKUP(ROWS($AE$2:AE126),P126:Q874,2,0),"") ->  | AJ126: =IFERROR(VLOOKUP(ROWS(AJ$2:$AJ126),O126:Q874,3,0),"") ->  | AL126: =IFERROR(VLOOKUP(ROWS(AL$2:$AL126),N126:Q874,4,0),"") -> 
N127: 0 | O127: 0 | P127: 0 | Q127: DSPBR World Agriculture | R127: 13395 | AE127: =IFERROR(VLOOKUP(ROWS($AE$2:AE127),P127:Q875,2,0),"") ->  | AJ127: =IFERROR(VLOOKUP(ROWS(AJ$2:$AJ127),O127:Q875,3,0),"") ->  | AL127: =IFERROR(VLOOKUP(ROWS(AL$2:$AL127),N127:Q875,4,0),"") -> 
N128: 0 | O128: 0 | P128: 0 | Q128: DSPBR World Agriculture Direct | R128: 17009 | AE128: =IFERROR(VLOOKUP(ROWS($AE$2:AE128),P128:Q876,2,0),"") ->  | AJ128: =IFERROR(VLOOKUP(ROWS(AJ$2:$AJ128),O128:Q876,3,0),"") ->  | AL128: =IFERROR(VLOOKUP(ROWS(AL$2:$AL128),N128:Q876,4,0),"") -> 
N129: 0 | O129: 0 | P129: 0 | Q129: DSPBR World Energy Reg | R129: 10559 | AE129: =IFERROR(VLOOKUP(ROWS($AE$2:AE129),P129:Q877,2,0),"") ->  | AJ129: =IFERROR(VLOOKUP(ROWS(AJ$2:$AJ129),O129:Q877,3,0),"") ->  | AL129: =IFERROR(VLOOKUP(ROWS(AL$2:$AL129),N129:Q877,4,0),"") -> 
N130: 0 | O130: 0 | P130: =IF(ISNUMBER(SEARCH($H$6,Q130)),MAX($P$1,P129)+1,0) -> 0 | Q130: DSPBR World Energy Reg Direct | R130: 17012 | AE130: =IFERROR(VLOOKUP(ROWS($AE$2:AE130),P130:Q878,2,0),"") ->  | AJ130: =IFERROR(VLOOKUP(ROWS(AJ$2:$AJ130),O130:Q878,3,0),"") ->  | AL130: =IFERROR(VLOOKUP(ROWS(AL$2:$AL130),N130:Q878,4,0),"") -> 
N131: =IF(ISNUMBER(SEARCH($H$16,Q131)),MAX($N$1,N130)+1,0) -> 0 | O131: =IF(ISNUMBER(SEARCH($H$11,Q131)),MAX($O$1,O130)+1,0) -> 0 | P131: 0 | Q131: DSPBR World Gold Reg | R131: 5623 | AE131: =IFERROR(VLOOKUP(ROWS($AE$2:AE131),P131:Q879,2,0),"") ->  | AJ131: =IFERROR(VLOOKUP(ROWS(AJ$2:$AJ131),O131:Q879,3,0),"") ->  | AL131: =IFERROR(VLOOKUP(ROWS(AL$2:$AL131),N131:Q879,4,0),"") -> 
N132: 0 | O132: 0 | P132: 0 | Q132: DSPBR World Gold Reg Direct | R132: 17016 | AE132: =IFERROR(VLOOKUP(ROWS($AE$2:AE132),P132:Q880,2,0),"") ->  | AJ132: =IFERROR(VLOOKUP(ROWS(AJ$2:$AJ132),O132:Q880,3,0),"") ->  | AL132: =IFERROR(VLOOKUP(ROWS(AL$2:$AL132),N132:Q880,4,0),"") -> 
N133: 0 | O133: 0 | P133: 0 | Q133: DSPBR World Mining Reg | R133: 10799 | AE133: =IFERROR(VLOOKUP(ROWS($AE$2:AE133),P133:Q881,2,0),"") ->  | AJ133: =IFERROR(VLOOKUP(ROWS(AJ$2:$AJ133),O133:Q881,3,0),"") ->  | AL133: =IFERROR(VLOOKUP(ROWS(AL$2:$AL133),N133:Q881,4,0),"") -> 
N134: 0 | O134: 0 | P134: 0 | Q134: DSPBR World Mining Reg Direct | R134: 17021 | AE134: =IFERROR(VLOOKUP(ROWS($AE$2:AE134),P134:Q882,2,0),"") ->  | AJ134: =IFERROR(VLOOKUP(ROWS(AJ$2:$AJ134),O134:Q882,3,0),"") ->  | AL134: =IFERROR(VLOOKUP(ROWS(AL$2:$AL134),N134:Q882,4,0),"") -> 
N135: 0 | O135: 0 | P135: 0 | Q135: DWS Alpha Equity Direct | R135: 15574 | AE135: =IFERROR(VLOOKUP(ROWS($AE$2:AE135),P135:Q883,2,0),"") ->  | AJ135: =IFERROR(VLOOKUP(ROWS(AJ$2:$AJ135),O135:Q883,3,0),"") ->  | AL135: =IFERROR(VLOOKUP(ROWS(AL$2:$AL135),N135:Q883,4,0),"") -> 
N136: 0 | O136: 0 | P136: 0 | Q136: DWS Alpha Equity Regular | R136: 1513 | AE136: =IFERROR(VLOOKUP(ROWS($AE$2:AE136),P136:Q884,2,0),"") ->  | AJ136: =IFERROR(VLOOKUP(ROWS(AJ$2:$AJ136),O136:Q884,3,0),"") ->  | AL136: =IFERROR(VLOOKUP(ROWS(AL$2:$AL136),N136:Q884,4,0),"") -> 
N137: 0 | O137: 0 | P137: 0 | Q137: DWS Alpha Equity Wealth Plan# | R137: 10438 | AE137: =IFERROR(VLOOKUP(ROWS($AE$2:AE137),P137:Q885,2,0),"") ->  | AJ137: =IFERROR(VLOOKUP(ROWS(AJ$2:$AJ137),O137:Q885,3,0),"") ->  | AL137: =IFERROR(VLOOKUP(ROWS(AL$2:$AL137),N137:Q885,4,0),"") -> 
N138: 0 | O138: 0 | P138: 0 | Q138: DWS Global Agribusiness Offshore Reg | R138: 11136 | AE138: =IFERROR(VLOOKUP(ROWS($AE$2:AE138),P138:Q886,2,0),"") ->  | AJ138: =IFERROR(VLOOKUP(ROWS(AJ$2:$AJ138),O138:Q886,3,0),"") ->  | AL138: =IFERROR(VLOOKUP(ROWS(AL$2:$AL138),N138:Q886,4,0),"") -> 
N139: 0 | O139: 0 | P139: 0 | Q139: DWS Global Agribusiness Offshore Reg Direct | R139: 17348 | AE139: =IFERROR(VLOOKUP(ROWS($AE$2:AE139),P139:Q887,2,0),"") ->  | AJ139: =IFERROR(VLOOKUP(ROWS(AJ$2:$AJ139),O139:Q887,3,0),"") ->  | AL139: =IFERROR(VLOOKUP(ROWS(AL$2:$AL139),N139:Q887,4,0),"") -> 
N140: 0 | O140: 0 | P140: 0 | Q140: DWS Global Thematic Offshore | R140: 5558 | AE140: =IFERROR(VLOOKUP(ROWS($AE$2:AE140),P140:Q888,2,0),"") ->  | AJ140: =IFERROR(VLOOKUP(ROWS(AJ$2:$AJ140),O140:Q888,3,0),"") ->  | AL140: =IFERROR(VLOOKUP(ROWS(AL$2:$AL140),N140:Q888,4,0),"") -> 
N141: 0 | O141: 0 | P141: 0 | Q141: DWS Global Thematic Offshore Direct | R141: 17349 | AE141: =IFERROR(VLOOKUP(ROWS($AE$2:AE141),P141:Q889,2,0),"") ->  | AJ141: =IFERROR(VLOOKUP(ROWS(AJ$2:$AJ141),O141:Q889,3,0),"") ->  | AL141: =IFERROR(VLOOKUP(ROWS(AL$2:$AL141),N141:Q889,4,0),"") -> 
N142: 0 | O142: 0 | P142: 0 | Q142: DWS Investment Opportunity Direct | R142: 15620 | AE142: =IFERROR(VLOOKUP(ROWS($AE$2:AE142),P142:Q890,2,0),"") ->  | AJ142: =IFERROR(VLOOKUP(ROWS(AJ$2:$AJ142),O142:Q890,3,0),"") ->  | AL142: =IFERROR(VLOOKUP(ROWS(AL$2:$AL142),N142:Q890,4,0),"") -> 
N143: 0 | O143: 0 | P143: 0 | Q143: DWS Investment Opportunity Regular | R143: 2057 | AE143: =IFERROR(VLOOKUP(ROWS($AE$2:AE143),P143:Q891,2,0),"") ->  | AJ143: =IFERROR(VLOOKUP(ROWS(AJ$2:$AJ143),O143:Q891,3,0),"") ->  | AL143: =IFERROR(VLOOKUP(ROWS(AL$2:$AL143),N143:Q891,4,0),"") -> 
N144: 0 | O144: 0 | P144: 0 | Q144: DWS Investment Opportunity Wealth Plan# | R144: 10440 | AE144: =IFERROR(VLOOKUP(ROWS($AE$2:AE144),P144:Q892,2,0),"") ->  | AJ144: =IFERROR(VLOOKUP(ROWS(AJ$2:$AJ144),O144:Q892,3,0),"") ->  | AL144: =IFERROR(VLOOKUP(ROWS(AL$2:$AL144),N144:Q892,4,0),"") -> 
N145: 0 | O145: 0 | P145: 0 | Q145: DWS Tax Saving | R145: 3126 | AE145: =IFERROR(VLOOKUP(ROWS($AE$2:AE145),P145:Q893,2,0),"") ->  | AJ145: =IFERROR(VLOOKUP(ROWS(AJ$2:$AJ145),O145:Q893,3,0),"") ->  | AL145: =IFERROR(VLOOKUP(ROWS(AL$2:$AL145),N145:Q893,4,0),"") -> 
N146: 0 | O146: 0 | P146: 0 | Q146: DWS Tax Saving Direct | R146: 17350 | AE146: =IFERROR(VLOOKUP(ROWS($AE$2:AE146),P146:Q894,2,0),"") ->  | AJ146: =IFERROR(VLOOKUP(ROWS(AJ$2:$AJ146),O146:Q894,3,0),"") ->  | AL146: =IFERROR(VLOOKUP(ROWS(AL$2:$AL146),N146:Q894,4,0),"") -> 
N147: 0 | O147: 0 | P147: 0 | Q147: Edelweiss Diversified Growth Equity Top 100 | R147: 10432 | AE147: =IFERROR(VLOOKUP(ROWS($AE$2:AE147),P147:Q895,2,0),"") ->  | AJ147: =IFERROR(VLOOKUP(ROWS(AJ$2:$AJ147),O147:Q895,3,0),"") ->  | AL147: =IFERROR(VLOOKUP(ROWS(AL$2:$AL147),N147:Q895,4,0),"") -> 
N148: 0 | O148: 0 | P148: 0 | Q148: Edelweiss Diversified Growth Equity Top 100 Direct | R148: 17352 | AE148: =IFERROR(VLOOKUP(ROWS($AE$2:AE148),P148:Q896,2,0),"") ->  | AJ148: =IFERROR(VLOOKUP(ROWS(AJ$2:$AJ148),O148:Q896,3,0),"") ->  | AL148: =IFERROR(VLOOKUP(ROWS(AL$2:$AL148),N148:Q896,4,0),"") -> 
N149: 0 | O149: 0 | P149: 0 | Q149: Edelweiss Diversified Growth Equity Top 100 Plan B# | R149: 10434 | AE149: =IFERROR(VLOOKUP(ROWS($AE$2:AE149),P149:Q897,2,0),"") ->  | AJ149: =IFERROR(VLOOKUP(ROWS(AJ$2:$AJ149),O149:Q897,3,0),"") ->  | AL149: =IFERROR(VLOOKUP(ROWS(AL$2:$AL149),N149:Q897,4,0),"") -> 
N150: 0 | O150: 0 | P150: 0 | Q150: Edelweiss Diversified Growth Equity Top 100 Plan C# | R150: 10436 | AE150: =IFERROR(VLOOKUP(ROWS($AE$2:AE150),P150:Q898,2,0),"") ->  | AJ150: =IFERROR(VLOOKUP(ROWS(AJ$2:$AJ150),O150:Q898,3,0),"") ->  | AL150: =IFERROR(VLOOKUP(ROWS(AL$2:$AL150),N150:Q898,4,0),"") -> 
N151: 0 | O151: 0 | P151: 0 | Q151: Edelweiss ELSS | R151: 10125 | AE151: =IFERROR(VLOOKUP(ROWS($AE$2:AE151),P151:Q899,2,0),"") ->  | AJ151: =IFERROR(VLOOKUP(ROWS(AJ$2:$AJ151),O151:Q899,3,0),"") ->  | AL151: =IFERROR(VLOOKUP(ROWS(AL$2:$AL151),N151:Q899,4,0),"") -> 
N152: 0 | O152: 0 | P152: 0 | Q152: Edelweiss ELSS Direct | R152: 17762 | AE152: =IFERROR(VLOOKUP(ROWS($AE$2:AE152),P152:Q900,2,0),"") ->  | AJ152: =IFERROR(VLOOKUP(ROWS(AJ$2:$AJ152),O152:Q900,3,0),"") ->  | AL152: =IFERROR(VLOOKUP(ROWS(AL$2:$AL152),N152:Q900,4,0),"") -> 
N153: 0 | O153: 0 | P153: 0 | Q153: Edelweiss Equity Enhancer | R153: 10609 | AE153: =IFERROR(VLOOKUP(ROWS($AE$2:AE153),P153:Q901,2,0),"") ->  | AJ153: =IFERROR(VLOOKUP(ROWS(AJ$2:$AJ153),O153:Q901,3,0),"") ->  | AL153: =IFERROR(VLOOKUP(ROWS(AL$2:$AL153),N153:Q901,4,0),"") -> 
N154: 0 | O154: 0 | P154: 0 | Q154: Edelweiss Equity Enhancer Direct | R154: 17354 | AE154: =IFERROR(VLOOKUP(ROWS($AE$2:AE154),P154:Q902,2,0),"") ->  | AJ154: =IFERROR(VLOOKUP(ROWS(AJ$2:$AJ154),O154:Q902,3,0),"") ->  | AL154: =IFERROR(VLOOKUP(ROWS(AL$2:$AL154),N154:Q902,4,0),"") -> 
N155: 0 | O155: 0 | P155: 0 | Q155: Edelweiss Equity Enhancer Plan B# | R155: 10478 | AE155: =IFERROR(VLOOKUP(ROWS($AE$2:AE155),P155:Q903,2,0),"") ->  | AJ155: =IFERROR(VLOOKUP(ROWS(AJ$2:$AJ155),O155:Q903,3,0),"") ->  | AL155: =IFERROR(VLOOKUP(ROWS(AL$2:$AL155),N155:Q903,4,0),"") -> 
N156: 0 | O156: 0 | P156: 0 | Q156: Edelweiss Select Midcap | R156: 13198 | AE156: =IFERROR(VLOOKUP(ROWS($AE$2:AE156),P156:Q904,2,0),"") ->  | AJ156: =IFERROR(VLOOKUP(ROWS(AJ$2:$AJ156),O156:Q904,3,0),"") ->  | AL156: =IFERROR(VLOOKUP(ROWS(AL$2:$AL156),N156:Q904,4,0),"") -> 
N157: 0 | O157: 0 | P157: 0 | Q157: Edelweiss Select Midcap Direct | R157: 15976 | AE157: =IFERROR(VLOOKUP(ROWS($AE$2:AE157),P157:Q905,2,0),"") ->  | AJ157: =IFERROR(VLOOKUP(ROWS(AJ$2:$AJ157),O157:Q905,3,0),"") ->  | AL157: =IFERROR(VLOOKUP(ROWS(AL$2:$AL157),N157:Q905,4,0),"") -> 
N158: 0 | O158: 0 | P158: 0 | Q158: Escorts Growth | R158: 952 | AE158: =IFERROR(VLOOKUP(ROWS($AE$2:AE158),P158:Q906,2,0),"") ->  | AJ158: =IFERROR(VLOOKUP(ROWS(AJ$2:$AJ158),O158:Q906,3,0),"") ->  | AL158: =IFERROR(VLOOKUP(ROWS(AL$2:$AL158),N158:Q906,4,0),"") -> 
N159: 0 | O159: 0 | P159: 0 | Q159: Escorts Growth Direct | R159: 17361 | AE159: =IFERROR(VLOOKUP(ROWS($AE$2:AE159),P159:Q907,2,0),"") ->  | AJ159: =IFERROR(VLOOKUP(ROWS(AJ$2:$AJ159),O159:Q907,3,0),"") ->  | AL159: =IFERROR(VLOOKUP(ROWS(AL$2:$AL159),N159:Q907,4,0),"") -> 
N160: 0 | O160: 0 | P160: 0 | Q160: Escorts High Yield Equity | R160: 4111 | AE160: =IFERROR(VLOOKUP(ROWS($AE$2:AE160),P160:Q908,2,0),"") ->  | AJ160: =IFERROR(VLOOKUP(ROWS(AJ$2:$AJ160),O160:Q908,3,0),"") ->  | AL160: =IFERROR(VLOOKUP(ROWS(AL$2:$AL160),N160:Q908,4,0),"") -> 
N161: 0 | O161: 0 | P161: 0 | Q161: Escorts High Yield Equity Direct | R161: 17363 | AE161: =IFERROR(VLOOKUP(ROWS($AE$2:AE161),P161:Q909,2,0),"") ->  | AJ161: =IFERROR(VLOOKUP(ROWS(AJ$2:$AJ161),O161:Q909,3,0),"") ->  | AL161: =IFERROR(VLOOKUP(ROWS(AL$2:$AL161),N161:Q909,4,0),"") -> 
N162: 0 | O162: 0 | P162: 0 | Q162: Escorts Infrastructure | R162: 5621 | AE162: =IFERROR(VLOOKUP(ROWS($AE$2:AE162),P162:Q910,2,0),"") ->  | AJ162: =IFERROR(VLOOKUP(ROWS(AJ$2:$AJ162),O162:Q910,3,0),"") ->  | AL162: =IFERROR(VLOOKUP(ROWS(AL$2:$AL162),N162:Q910,4,0),"") -> 
N163: 0 | O163: 0 | P163: 0 | Q163: Escorts Infrastructure Direct | R163: 17371 | AE163: =IFERROR(VLOOKUP(ROWS($AE$2:AE163),P163:Q911,2,0),"") ->  | AJ163: =IFERROR(VLOOKUP(ROWS(AJ$2:$AJ163),O163:Q911,3,0),"") ->  | AL163: =IFERROR(VLOOKUP(ROWS(AL$2:$AL163),N163:Q911,4,0),"") -> 
N164: 0 | O164: 0 | P164: 0 | Q164: Escorts Leading Sectors | R164: 8216 | AE164: =IFERROR(VLOOKUP(ROWS($AE$2:AE164),P164:Q912,2,0),"") ->  | AJ164: =IFERROR(VLOOKUP(ROWS(AJ$2:$AJ164),O164:Q912,3,0),"") ->  | AL164: =IFERROR(VLOOKUP(ROWS(AL$2:$AL164),N164:Q912,4,0),"") -> 
N165: 0 | O165: 0 | P165: 0 | Q165: Escorts Leading Sectors Direct | R165: 17373 | AE165: =IFERROR(VLOOKUP(ROWS($AE$2:AE165),P165:Q913,2,0),"") ->  | AJ165: =IFERROR(VLOOKUP(ROWS(AJ$2:$AJ165),O165:Q913,3,0),"") ->  | AL165: =IFERROR(VLOOKUP(ROWS(AL$2:$AL165),N165:Q913,4,0),"") -> 
N166: 0 | O166: 0 | P166: 0 | Q166: Escorts Power & Energy | R166: 8827 | AE166: =IFERROR(VLOOKUP(ROWS($AE$2:AE166),P166:Q914,2,0),"") ->  | AJ166: =IFERROR(VLOOKUP(ROWS(AJ$2:$AJ166),O166:Q914,3,0),"") ->  | AL166: =IFERROR(VLOOKUP(ROWS(AL$2:$AL166),N166:Q914,4,0),"") -> 
N167: 0 | O167: 0 | P167: 0 | Q167: Escorts Power & Energy Direct | R167: 17377 | AE167: =IFERROR(VLOOKUP(ROWS($AE$2:AE167),P167:Q915,2,0),"") ->  | AJ167: =IFERROR(VLOOKUP(ROWS(AJ$2:$AJ167),O167:Q915,3,0),"") ->  | AL167: =IFERROR(VLOOKUP(ROWS(AL$2:$AL167),N167:Q915,4,0),"") -> 
N168: 0 | O168: 0 | P168: 0 | Q168: Escorts Tax Plan | R168: 818 | AE168: =IFERROR(VLOOKUP(ROWS($AE$2:AE168),P168:Q916,2,0),"") ->  | AJ168: =IFERROR(VLOOKUP(ROWS(AJ$2:$AJ168),O168:Q916,3,0),"") ->  | AL168: =IFERROR(VLOOKUP(ROWS(AL$2:$AL168),N168:Q916,4,0),"") -> 
N169: 0 | O169: 0 | P169: 0 | Q169: Escorts Tax Plan Direct | R169: 17381 | AE169: =IFERROR(VLOOKUP(ROWS($AE$2:AE169),P169:Q917,2,0),"") ->  | AJ169: =IFERROR(VLOOKUP(ROWS(AJ$2:$AJ169),O169:Q917,3,0),"") ->  | AL169: =IFERROR(VLOOKUP(ROWS(AL$2:$AL169),N169:Q917,4,0),"") -> 
N170: 0 | O170: 0 | P170: 0 | Q170: Franklin Asian Equity | R170: 6383 | AE170: =IFERROR(VLOOKUP(ROWS($AE$2:AE170),P170:Q918,2,0),"") ->  | AJ170: =IFERROR(VLOOKUP(ROWS(AJ$2:$AJ170),O170:Q918,3,0),"") ->  | AL170: =IFERROR(VLOOKUP(ROWS(AL$2:$AL170),N170:Q918,4,0),"") -> 
N171: 0 | O171: 0 | P171: 0 | Q171: Franklin Asian Equity Direct | R171: 15977 | AE171: =IFERROR(VLOOKUP(ROWS($AE$2:AE171),P171:Q919,2,0),"") ->  | AJ171: =IFERROR(VLOOKUP(ROWS(AJ$2:$AJ171),O171:Q919,3,0),"") ->  | AL171: =IFERROR(VLOOKUP(ROWS(AL$2:$AL171),N171:Q919,4,0),"") -> 
N172: 0 | O172: 0 | P172: 0 | Q172: Franklin Build India | R172: 10563 | AE172: =IFERROR(VLOOKUP(ROWS($AE$2:AE172),P172:Q920,2,0),"") ->  | AJ172: =IFERROR(VLOOKUP(ROWS(AJ$2:$AJ172),O172:Q920,3,0),"") ->  | AL172: =IFERROR(VLOOKUP(ROWS(AL$2:$AL172),N172:Q920,4,0),"") -> 
N173: 0 | O173: 0 | P173: 0 | Q173: Franklin Build India Direct | R173: 15979 | AE173: =IFERROR(VLOOKUP(ROWS($AE$2:AE173),P173:Q921,2,0),"") ->  | AJ173: =IFERROR(VLOOKUP(ROWS(AJ$2:$AJ173),O173:Q921,3,0),"") ->  | AL173: =IFERROR(VLOOKUP(ROWS(AL$2:$AL173),N173:Q921,4,0),"") -> 
N174: 0 | O174: 1 | P174: 0 | Q174: Franklin India Bluechip | R174: 114 | AE174: =IFERROR(VLOOKUP(ROWS($AE$2:AE174),P174:Q922,2,0),"") ->  | AJ174: =IFERROR(VLOOKUP(ROWS(AJ$2:$AJ174),O174:Q922,3,0),"") ->  | AL174: =IFERROR(VLOOKUP(ROWS(AL$2:$AL174),N174:Q922,4,0),"") -> 
N175: 0 | O175: 2 | P175: 0 | Q175: Franklin India Bluechip Direct | R175: 15982 | AE175: =IFERROR(VLOOKUP(ROWS($AE$2:AE175),P175:Q923,2,0),"") ->  | AJ175: =IFERROR(VLOOKUP(ROWS(AJ$2:$AJ175),O175:Q923,3,0),"") ->  | AL175: =IFERROR(VLOOKUP(ROWS(AL$2:$AL175),N175:Q923,4,0),"") -> 
N176: 0 | O176: 3 | P176: 0 | Q176: Franklin India Flexi Cap | R176: 2605 | AE176: =IFERROR(VLOOKUP(ROWS($AE$2:AE176),P176:Q924,2,0),"") ->  | AJ176: =IFERROR(VLOOKUP(ROWS(AJ$2:$AJ176),O176:Q924,3,0),"") ->  | AL176: =IFERROR(VLOOKUP(ROWS(AL$2:$AL176),N176:Q924,4,0),"") -> 
N177: 0 | O177: 4 | P177: 0 | Q177: Franklin India Flexi Cap Direct | R177: 15986 | AE177: =IFERROR(VLOOKUP(ROWS($AE$2:AE177),P177:Q925,2,0),"") ->  | AJ177: =IFERROR(VLOOKUP(ROWS(AJ$2:$AJ177),O177:Q925,3,0),"") ->  | AL177: =IFERROR(VLOOKUP(ROWS(AL$2:$AL177),N177:Q925,4,0),"") -> 
N178: 0 | O178: 5 | P178: 0 | Q178: Franklin India High Growth Companies | R178: 5141 | AE178: =IFERROR(VLOOKUP(ROWS($AE$2:AE178),P178:Q926,2,0),"") ->  | AJ178: =IFERROR(VLOOKUP(ROWS(AJ$2:$AJ178),O178:Q926,3,0),"") ->  | AL178: =IFERROR(VLOOKUP(ROWS(AL$2:$AL178),N178:Q926,4,0),"") -> 
N179: 0 | O179: 6 | P179: 0 | Q179: Franklin India High Growth Companies Direct | R179: 15990 | AE179: =IFERROR(VLOOKUP(ROWS($AE$2:AE179),P179:Q927,2,0),"") ->  | AJ179: =IFERROR(VLOOKUP(ROWS(AJ$2:$AJ179),O179:Q927,3,0),"") ->  | AL179: =IFERROR(VLOOKUP(ROWS(AL$2:$AL179),N179:Q927,4,0),"") -> 
N180: 0 | O180: 7 | P180: 0 | Q180: Franklin India Index BSE Sensex | R180: 2167 | AE180: =IFERROR(VLOOKUP(ROWS($AE$2:AE180),P180:Q928,2,0),"") ->  | AJ180: =IFERROR(VLOOKUP(ROWS(AJ$2:$AJ180),O180:Q928,3,0),"") ->  | AL180: =IFERROR(VLOOKUP(ROWS(AL$2:$AL180),N180:Q928,4,0),"") -> 
N181: 0 | O181: 8 | P181: 0 | Q181: Franklin India Index BSE Sensex Direct | R181: 15993 | AE181: =IFERROR(VLOOKUP(ROWS($AE$2:AE181),P181:Q929,2,0),"") ->  | AJ181: =IFERROR(VLOOKUP(ROWS(AJ$2:$AJ181),O181:Q929,3,0),"") ->  | AL181: =IFERROR(VLOOKUP(ROWS(AL$2:$AL181),N181:Q929,4,0),"") -> 
N182: 0 | O182: 9 | P182: 0 | Q182: Franklin India Index NSE Nifty | R182: 834 | AE182: =IFERROR(VLOOKUP(ROWS($AE$2:AE182),P182:Q930,2,0),"") ->  | AJ182: =IFERROR(VLOOKUP(ROWS(AJ$2:$AJ182),O182:Q930,3,0),"") ->  | AL182: =IFERROR(VLOOKUP(ROWS(AL$2:$AL182),N182:Q930,4,0),"") -> 
N183: 0 | O183: 10 | P183: 0 | Q183: Franklin India Index NSE Nifty Direct | R183: 15996 | AE183: =IFERROR(VLOOKUP(ROWS($AE$2:AE183),P183:Q931,2,0),"") ->  | AJ183: =IFERROR(VLOOKUP(ROWS(AJ$2:$AJ183),O183:Q931,3,0),"") ->  | AL183: =IFERROR(VLOOKUP(ROWS(AL$2:$AL183),N183:Q931,4,0),"") -> 
N184: 0 | O184: 11 | P184: 0 | Q184: Franklin India Opportunities | R184: 2133 | AE184: =IFERROR(VLOOKUP(ROWS($AE$2:AE184),P184:Q932,2,0),"") ->  | AJ184: =IFERROR(VLOOKUP(ROWS(AJ$2:$AJ184),O184:Q932,3,0),"") ->  | AL184: =IFERROR(VLOOKUP(ROWS(AL$2:$AL184),N184:Q932,4,0),"") -> 
N185: 0 | O185: 12 | P185: 0 | Q185: Franklin India Opportunities Direct | R185: 15999 | AE185: =IFERROR(VLOOKUP(ROWS($AE$2:AE185),P185:Q933,2,0),"") ->  | AJ185: =IFERROR(VLOOKUP(ROWS(AJ$2:$AJ185),O185:Q933,3,0),"") ->  | AL185: =IFERROR(VLOOKUP(ROWS(AL$2:$AL185),N185:Q933,4,0),"") -> 
N186: 0 | O186: 13 | P186: 0 | Q186: Franklin India Prima | R186: 115 | AE186: =IFERROR(VLOOKUP(ROWS($AE$2:AE186),P186:Q934,2,0),"") ->  | AJ186: =IFERROR(VLOOKUP(ROWS(AJ$2:$AJ186),O186:Q934,3,0),"") ->  | AL186: =IFERROR(VLOOKUP(ROWS(AL$2:$AL186),N186:Q934,4,0),"") -> 
N187: 0 | O187: 14 | P187: 0 | Q187: Franklin India Prima Direct | R187: 16003 | AE187: =IFERROR(VLOOKUP(ROWS($AE$2:AE187),P187:Q935,2,0),"") ->  | AJ187: =IFERROR(VLOOKUP(ROWS(AJ$2:$AJ187),O187:Q935,3,0),"") ->  | AL187: =IFERROR(VLOOKUP(ROWS(AL$2:$AL187),N187:Q935,4,0),"") -> 
N188: 0 | O188: 15 | P188: 0 | Q188: Franklin India Prima Plus | R188: 116 | AE188: =IFERROR(VLOOKUP(ROWS($AE$2:AE188),P188:Q936,2,0),"") ->  | AJ188: =IFERROR(VLOOKUP(ROWS(AJ$2:$AJ188),O188:Q936,3,0),"") ->  | AL188: =IFERROR(VLOOKUP(ROWS(AL$2:$AL188),N188:Q936,4,0),"") -> 
N189: 0 | O189: 16 | P189: 0 | Q189: Franklin India Prima Plus Direct | R189: 16008 | AE189: =IFERROR(VLOOKUP(ROWS($AE$2:AE189),P189:Q937,2,0),"") ->  | AJ189: =IFERROR(VLOOKUP(ROWS(AJ$2:$AJ189),O189:Q937,3,0),"") ->  | AL189: =IFERROR(VLOOKUP(ROWS(AL$2:$AL189),N189:Q937,4,0),"") -> 
N190: 0 | O190: 17 | P190: 0 | Q190: Franklin India Smaller Companies | R190: 3019 | AE190: =IFERROR(VLOOKUP(ROWS($AE$2:AE190),P190:Q938,2,0),"") ->  | AJ190: =IFERROR(VLOOKUP(ROWS(AJ$2:$AJ190),O190:Q938,3,0),"") ->  | AL190: =IFERROR(VLOOKUP(ROWS(AL$2:$AL190),N190:Q938,4,0),"") -> 
N191: 0 | O191: 18 | P191: 0 | Q191: Franklin India Smaller Companies Direct | R191: 16010 | AE191: =IFERROR(VLOOKUP(ROWS($AE$2:AE191),P191:Q939,2,0),"") ->  | AJ191: =IFERROR(VLOOKUP(ROWS(AJ$2:$AJ191),O191:Q939,3,0),"") ->  | AL191: =IFERROR(VLOOKUP(ROWS(AL$2:$AL191),N191:Q939,4,0),"") -> 
N192: 0 | O192: 19 | P192: 0 | Q192: Franklin India Taxshield | R192: 601 | AE192: =IFERROR(VLOOKUP(ROWS($AE$2:AE192),P192:Q940,2,0),"") ->  | AJ192: =IFERROR(VLOOKUP(ROWS(AJ$2:$AJ192),O192:Q940,3,0),"") ->  | AL192: =IFERROR(VLOOKUP(ROWS(AL$2:$AL192),N192:Q940,4,0),"") -> 
N193: 0 | O193: 20 | P193: 0 | Q193: Franklin India Taxshield Direct | R193: 16014 | AE193: =IFERROR(VLOOKUP(ROWS($AE$2:AE193),P193:Q941,2,0),"") ->  | AJ193: =IFERROR(VLOOKUP(ROWS(AJ$2:$AJ193),O193:Q941,3,0),"") ->  | AL193: =IFERROR(VLOOKUP(ROWS(AL$2:$AL193),N193:Q941,4,0),"") -> 
N194: 0 | O194: 0 | P194: =IF(ISNUMBER(SEARCH($H$6,Q194)),MAX($P$1,P193)+1,0) -> 0 | Q194: Franklin Infotech | R194: 548 | AE194: =IFERROR(VLOOKUP(ROWS($AE$2:AE194),P194:Q942,2,0),"") ->  | AJ194: =IFERROR(VLOOKUP(ROWS(AJ$2:$AJ194),O194:Q942,3,0),"") ->  | AL194: =IFERROR(VLOOKUP(ROWS(AL$2:$AL194),N194:Q942,4,0),"") -> 
N195: =IF(ISNUMBER(SEARCH($H$16,Q195)),MAX($N$1,N194)+1,0) -> 0 | O195: =IF(ISNUMBER(SEARCH($H$11,Q195)),MAX($O$1,O194)+1,0) -> 0 | P195: 0 | Q195: Franklin Infotech Direct | R195: 16018 | AE195: =IFERROR(VLOOKUP(ROWS($AE$2:AE195),P195:Q943,2,0),"") ->  | AJ195: =IFERROR(VLOOKUP(ROWS(AJ$2:$AJ195),O195:Q943,3,0),"") ->  | AL195: =IFERROR(VLOOKUP(ROWS(AL$2:$AL195),N195:Q943,4,0),"") -> 
N196: 0 | O196: 0 | P196: 0 | Q196: FT India Feeder Franklin US Opportunities | R196: 14017 | AE196: =IFERROR(VLOOKUP(ROWS($AE$2:AE196),P196:Q944,2,0),"") ->  | AJ196: =IFERROR(VLOOKUP(ROWS(AJ$2:$AJ196),O196:Q944,3,0),"") ->  | AL196: =IFERROR(VLOOKUP(ROWS(AL$2:$AL196),N196:Q944,4,0),"") -> 
N197: 0 | O197: 0 | P197: 0 | Q197: FT India Feeder Franklin US Opportunities Direct | R197: 16027 | AE197: =IFERROR(VLOOKUP(ROWS($AE$2:AE197),P197:Q945,2,0),"") ->  | AJ197: =IFERROR(VLOOKUP(ROWS(AJ$2:$AJ197),O197:Q945,3,0),"") ->  | AL197: =IFERROR(VLOOKUP(ROWS(AL$2:$AL197),N197:Q945,4,0),"") -> 
N198: 0 | O198: 0 | P198: 0 | Q198: FT India Life Stage FoF 20s | R198: 1978 | AE198: =IFERROR(VLOOKUP(ROWS($AE$2:AE198),P198:Q946,2,0),"") ->  | AJ198: =IFERROR(VLOOKUP(ROWS(AJ$2:$AJ198),O198:Q946,3,0),"") ->  | AL198: =IFERROR(VLOOKUP(ROWS(AL$2:$AL198),N198:Q946,4,0),"") -> 
N199: 0 | O199: 0 | P199: 0 | Q199: FT India Life Stage FoF 20s Direct | R199: 16030 | AE199: =IFERROR(VLOOKUP(ROWS($AE$2:AE199),P199:Q947,2,0),"") ->  | AJ199: =IFERROR(VLOOKUP(ROWS(AJ$2:$AJ199),O199:Q947,3,0),"") ->  | AL199: =IFERROR(VLOOKUP(ROWS(AL$2:$AL199),N199:Q947,4,0),"") -> 
N200: 0 | O200: 0 | P200: 0 | Q200: Goldman Sachs Banking BeES | R200: 2255 | AE200: =IFERROR(VLOOKUP(ROWS($AE$2:AE200),P200:Q948,2,0),"") ->  | AJ200: =IFERROR(VLOOKUP(ROWS(AJ$2:$AJ200),O200:Q948,3,0),"") ->  | AL200: =IFERROR(VLOOKUP(ROWS(AL$2:$AL200),N200:Q948,4,0),"") -> 
... 550 more rows

Sheet Results-simple
J1: mf1 vsmf2 | Q1: mf2 vsmf3 | X1: mf1 vsmf3
B2: ='mf1'!A1 -> IDFC Premier Equity Direct | C2: ='mf2'!A1 -> Franklin India Bluechip | D2: ='mf3'!A1 -> Quantum Long Term Equity | I2: 1 | J2: =INDEX('mf2'!$B$27:$B$51,MATCH('mf1'!B27,'mf2'!$B$27:$B$51,0),1) ->  | K2: =INDEX('mf2'!$B$27:$G$51,MATCH('mf1'!B27,'mf2'!$B$27:$B$51,0),6) ->  | L2: =IF(ISERROR(INDEX('mf2'!$B$27:$B$51,MATCH('mf1'!B27,'mf2'!$B$27:$B$51,0),1)),0,1) -> 0 | M2: =INDEX('mf1'!$B$27:$B$51,MATCH('mf2'!B27,'mf1'!$B$27:$B$51,0),1) ->  | N2: =INDEX('mf1'!$B$27:$G$51,MATCH('mf2'!B27,'mf1'!$B$27:$B$51,0),6) ->  | O2: =IF(ISERROR(J2),IF(ISERROR(J3),IF(ISERROR(J4),IF(ISERROR(J5),IF(ISERROR(J6),IF(ISERROR(J7),IF(ISERROR(J8),IF(ISERROR(J9),IF(ISERROR(J10),IF(ISERROR(J11),IF(ISERROR(J12),IF(ISERROR(J13),IF(ISERROR(J14),IF(ISERROR(J15),IF(ISERROR(J16),IF(ISERROR(J17),IF(ISERROR(J18),IF(ISERROR(J19),IF(ISERROR(J20),IF(ISERROR(J21),IF(ISERROR(J22),IF(ISERROR(J23),IF(ISERROR(J24),IF(ISERROR(J25),"",J25),J24),J23),J22),J21),J20),J19),J18),J17),J16),J15),J16),J13),J12),J11),J10),J9),J8),J7),J6),J5),J4),J3),J2) -> Asian Paints | Q2: =INDEX('mf3'!$B$27:$B$51,MATCH('mf2'!B27,'mf3'!$B$27:$B$51,0),1) -> Infosys | R2: =INDEX('mf3'!$B$27:$G$51,MATCH('mf2'!B27,'mf3'!$B$27:$B$51,0),6) -> 5.05 | S2: =IF(ISERROR(INDEX('mf3'!$B$27:$B$51,MATCH('mf2'!B27,'mf3'!$B$27:$B$51,0),1)),0,1) -> 1 | T2: =INDEX('mf2'!$B$27:$B$51,MATCH('mf3'!B27,'mf2'!$B$27:$B$51,0),1) -> HDFC | U2: =INDEX('mf2'!$B$27:$G$51,MATCH('mf3'!B27,'mf2'!$B$27:$B$51,0),6) -> 2.09 | V2: =IF(ISERROR(Q2),IF(ISERROR(Q3),IF(ISERROR(Q4),IF(ISERROR(Q5),IF(ISERROR(Q6),IF(ISERROR(Q7),IF(ISERROR(Q8),IF(ISERROR(Q9),IF(ISERROR(Q10),IF(ISERROR(Q11),IF(ISERROR(Q12),IF(ISERROR(Q13),IF(ISERROR(Q14),IF(ISERROR(Q15),IF(ISERROR(Q16),IF(ISERROR(Q17),IF(ISERROR(Q18),IF(ISERROR(Q19),IF(ISERROR(Q20),IF(ISERROR(Q21),IF(ISERROR(Q22),IF(ISERROR(Q23),IF(ISERROR(Q24),IF(ISERROR(Q25),"",Q25),Q24),Q23),Q22),Q21),Q20),Q19),Q18),Q17),Q16),Q15),Q16),Q13),Q12),Q11),Q10),Q9),Q8),Q7),Q6),Q5),Q4),Q3),Q2) -> Infosys | X2: =INDEX('mf3'!$B$27:$B$51,MATCH('mf1'!B27,'mf3'!$B$27:$B$51,0),1) ->  | Y2: =INDEX('mf3'!$B$27:$G$51,MATCH('mf1'!B27,'mf3'!$B$27:$B$51,0),6) ->  | Z2: =IF(ISERROR(INDEX('mf3'!$B$27:$B$51,MATCH('mf1'!B27,'mf3'!$B$27:$B$51,0),1)),0,1) -> 0 | AA2: =INDEX('mf1'!$B$27:$B$51,MATCH('mf3'!B27,'mf1'!$B$27:$B$51,0),1) ->  | AB2: =INDEX('mf1'!$B$27:$G$51,MATCH('mf3'!B27,'mf1'!$B$27:$B$51,0),6) ->  | AC2: =IF(ISERROR(X2),IF(ISERROR(X3),IF(ISERROR(X4),IF(ISERROR(X5),IF(ISERROR(X6),IF(ISERROR(X7),IF(ISERROR(X8),IF(ISERROR(X9),IF(ISERROR(X10),IF(ISERROR(X11),IF(ISERROR(X12),IF(ISERROR(X13),IF(ISERROR(X14),IF(ISERROR(X15),IF(ISERROR(X16),IF(ISERROR(X17),IF(ISERROR(X18),IF(ISERROR(X19),IF(ISERROR(X20),IF(ISERROR(X21),IF(ISERROR(X22),IF(ISERROR(X23),IF(ISERROR(X24),IF(ISERROR(X25),"",X25),X24),X23),X22),X21),X20),X19),X18),X17),X16),X15),X16),X13),X12),X11),X10),X9),X8),X7),X6),X5),X4),X3),X2) -> GAIL | AE2: =INDEX(mutualfund3s,MATCH(0,COUNTIF($AE$1:AE1,mutualfund3s),0)) -> Infosys
A3: Category: | B3: ='mf1'!B4 -> Equity: Mid & Small Cap | C3: ='mf2'!B4 -> Equity: Large Cap | D3: ='mf3'!B4 -> Equity: Large & Mid Cap | I3: =I2+1 -> 2 | J3: =INDEX('mf2'!$B$27:$B$51,MATCH('mf1'!B28,'mf2'!$B$27:$B$51,0),1) ->  | K3: =INDEX('mf2'!$B$27:$G$51,MATCH('mf1'!B28,'mf2'!$B$27:$B$51,0),6) ->  | L3: =IF(ISERROR(INDEX('mf2'!$B$27:$B$51,MATCH('mf1'!B28,'mf2'!$B$27:$B$51,0),1)),0,1) -> 0 | M3: =INDEX('mf1'!$B$27:$B$51,MATCH('mf2'!B28,'mf1'!$B$27:$B$51,0),1) ->  | N3: =INDEX('mf1'!$B$27:$G$51,MATCH('mf2'!B28,'mf1'!$B$27:$B$51,0),6) ->  | O3: Asian Paints | Q3: =INDEX('mf3'!$B$27:$B$51,MATCH('mf2'!B28,'mf3'!$B$27:$B$51,0),1) ->  | R3: =INDEX('mf3'!$B$27:$G$51,MATCH('mf2'!B28,'mf3'!$B$27:$B$51,0),6) ->  | S3: =IF(ISERROR(INDEX('mf3'!$B$27:$B$51,MATCH('mf2'!B28,'mf3'!$B$27:$B$51,0),1)),0,1) -> 0 | T3: =INDEX('mf2'!$B$27:$B$51,MATCH('mf3'!B28,'mf2'!$B$27:$B$51,0),1) ->  | U3: =INDEX('mf2'!$B$27:$G$51,MATCH('mf3'!B28,'mf2'!$B$27:$B$51,0),6) ->  | V3: ONGC | X3: =INDEX('mf3'!$B$27:$B$51,MATCH('mf1'!B28,'mf3'!$B$27:$B$51,0),1) ->  | Y3: =INDEX('mf3'!$B$27:$G$51,MATCH('mf1'!B28,'mf3'!$B$27:$B$51,0),6) ->  | Z3: =IF(ISERROR(INDEX('mf3'!$B$27:$B$51,MATCH('mf1'!B28,'mf3'!$B$27:$B$51,0),1)),0,1) -> 0 | AA3: =INDEX('mf1'!$B$27:$B$51,MATCH('mf3'!B28,'mf1'!$B$27:$B$51,0),1) ->  | AB3: =INDEX('mf1'!$B$27:$G$51,MATCH('mf3'!B28,'mf1'!$B$27:$B$51,0),6) ->  | AC3: =IF(ISERROR(X3),IF(ISERROR(X4),IF(ISERROR(X5),IF(ISERROR(X6),IF(ISERROR(X7),IF(ISERROR(X8),IF(ISERROR(X9),IF(ISERROR(X10),IF(ISERROR(X11),IF(ISERROR(X12),IF(ISERROR(X13),IF(ISERROR(X14),IF(ISERROR(X15),IF(ISERROR(X16),IF(ISERROR(X17),IF(ISERROR(X18),IF(ISERROR(X19),IF(ISERROR(X20),IF(ISERROR(X21),IF(ISERROR(X22),IF(ISERROR(X23),IF(ISERROR(X24),IF(ISERROR(X25),IF(ISERROR(X26),"",X26),X25),X24),X23),X22),X21),X20),X19),X18),X17),X16),X17),X14),X13),X12),X11),X10),X9),X8),X7),X6),X5),X4),X3) -> GAIL | AE3: =INDEX(mutualfund3s,MATCH(0,COUNTIF($AE$1:AE2,mutualfund3s),0)) -> ONGC
A4: Net Assets: | B4: ='mf1'!B5 -> R 3,448 crore (As on Dec 31, 2013) | C4: ='mf2'!B5 -> R 4,958 crore (As on Dec 31, 2013) | D4: ='mf3'!B5 -> R 201 crore (As on Dec 31, 2013) | I4: =I3+1 -> 3 | J4: =INDEX('mf2'!$B$27:$B$51,MATCH('mf1'!B29,'mf2'!$B$27:$B$51,0),1) ->  | K4: =INDEX('mf2'!$B$27:$G$51,MATCH('mf1'!B29,'mf2'!$B$27:$B$51,0),6) ->  | L4: =IF(ISERROR(INDEX('mf2'!$B$27:$B$51,MATCH('mf1'!B29,'mf2'!$B$27:$B$51,0),1)),0,1) -> 0 | M4: =INDEX('mf1'!$B$27:$B$51,MATCH('mf2'!B29,'mf1'!$B$27:$B$51,0),1) ->  | N4: =INDEX('mf1'!$B$27:$G$51,MATCH('mf2'!B29,'mf1'!$B$27:$B$51,0),6) ->  | O4: Asian Paints | Q4: =INDEX('mf3'!$B$27:$B$51,MATCH('mf2'!B29,'mf3'!$B$27:$B$51,0),1) ->  | R4: =INDEX('mf3'!$B$27:$G$51,MATCH('mf2'!B29,'mf3'!$B$27:$B$51,0),6) ->  | S4: =IF(ISERROR(INDEX('mf3'!$B$27:$B$51,MATCH('mf2'!B29,'mf3'!$B$27:$B$51,0),1)),0,1) -> 0 | T4: =INDEX('mf2'!$B$27:$B$51,MATCH('mf3'!B29,'mf2'!$B$27:$B$51,0),1) -> Infosys | U4: =INDEX('mf2'!$B$27:$G$51,MATCH('mf3'!B29,'mf2'!$B$27:$B$51,0),6) -> 9.79 | V4: ONGC | X4: =INDEX('mf3'!$B$27:$B$51,MATCH('mf1'!B29,'mf3'!$B$27:$B$51,0),1) ->  | Y4: =INDEX('mf3'!$B$27:$G$51,MATCH('mf1'!B29,'mf3'!$B$27:$B$51,0),6) ->  | Z4: =IF(ISERROR(INDEX('mf3'!$B$27:$B$51,MATCH('mf1'!B29,'mf3'!$B$27:$B$51,0),1)),0,1) -> 0 | AA4: =INDEX('mf1'!$B$27:$B$51,MATCH('mf3'!B29,'mf1'!$B$27:$B$51,0),1) ->  | AB4: =INDEX('mf1'!$B$27:$G$51,MATCH('mf3'!B29,'mf1'!$B$27:$B$51,0),6) ->  | AC4: GAIL | AE4: =INDEX(mutualfund3s,MATCH(0,COUNTIF($AE$1:AE3,mutualfund3s),0)) -> NTPC
A5: Expense: | B5: ='mf1'!B6 -> 1.50% (As on Sep 30, 2013) | C5: ='mf2'!B6 -> 2.16% (As on Sep 30, 2013) | D5: ='mf3'!B6 -> 1.25% (As on Sep 30, 2013) | I5: 4 | J5: =INDEX('mf2'!$B$27:$B$51,MATCH('mf1'!B30,'mf2'!$B$27:$B$51,0),1) ->  | K5: =INDEX('mf2'!$B$27:$G$51,MATCH('mf1'!B30,'mf2'!$B$27:$B$51,0),6) ->  | L5: =IF(ISERROR(INDEX('mf2'!$B$27:$B$51,MATCH('mf1'!B30,'mf2'!$B$27:$B$51,0),1)),0,1) -> 0 | M5: =INDEX('mf1'!$B$27:$B$51,MATCH('mf2'!B30,'mf1'!$B$27:$B$51,0),1) ->  | N5: =INDEX('mf1'!$B$27:$G$51,MATCH('mf2'!B30,'mf1'!$B$27:$B$51,0),6) ->  | O5: Asian Paints | Q5: =INDEX('mf3'!$B$27:$B$51,MATCH('mf2'!B30,'mf3'!$B$27:$B$51,0),1) ->  | R5: =INDEX('mf3'!$B$27:$G$51,MATCH('mf2'!B30,'mf3'!$B$27:$B$51,0),6) ->  | S5: =IF(ISERROR(INDEX('mf3'!$B$27:$B$51,MATCH('mf2'!B30,'mf3'!$B$27:$B$51,0),1)),0,1) -> 0 | T5: =INDEX('mf2'!$B$27:$B$51,MATCH('mf3'!B30,'mf2'!$B$27:$B$51,0),1) ->  | U5: =INDEX('mf2'!$B$27:$G$51,MATCH('mf3'!B30,'mf2'!$B$27:$B$51,0),6) ->  | V5: ONGC | X5: =INDEX('mf3'!$B$27:$B$51,MATCH('mf1'!B30,'mf3'!$B$27:$B$51,0),1) ->  | Y5: =INDEX('mf3'!$B$27:$G$51,MATCH('mf1'!B30,'mf3'!$B$27:$B$51,0),6) ->  | Z5: =IF(ISERROR(INDEX('mf3'!$B$27:$B$51,MATCH('mf1'!B30,'mf3'!$B$27:$B$51,0),1)),0,1) -> 0 | AA5: =INDEX('mf1'!$B$27:$B$51,MATCH('mf3'!B30,'mf1'!$B$27:$B$51,0),1) ->  | AB5: =INDEX('mf1'!$B$27:$G$51,MATCH('mf3'!B30,'mf1'!$B$27:$B$51,0),6) ->  | AC5: GAIL | AE5: =INDEX(mutualfund3s,MATCH(0,COUNTIF($AE$1:AE4,mutualfund3s),0)) -> Larsen & Toubro
I6: 5 | J6: =INDEX('mf2'!$B$27:$B$51,MATCH('mf1'!B31,'mf2'!$B$27:$B$51,0),1) ->  | K6: =INDEX('mf2'!$B$27:$G$51,MATCH('mf1'!B31,'mf2'!$B$27:$B$51,0),6) ->  | L6: =IF(ISERROR(INDEX('mf2'!$B$27:$B$51,MATCH('mf1'!B31,'mf2'!$B$27:$B$51,0),1)),0,1) -> 0 | M6: =INDEX('mf1'!$B$27:$B$51,MATCH('mf2'!B31,'mf1'!$B$27:$B$51,0),1) -> HDFC Bank | N6: =INDEX('mf1'!$B$27:$G$51,MATCH('mf2'!B31,'mf1'!$B$27:$B$51,0),6) -> 1.93 | O6: Asian Paints | Q6: =INDEX('mf3'!$B$27:$B$51,MATCH('mf2'!B31,'mf3'!$B$27:$B$51,0),1) ->  | R6: =INDEX('mf3'!$B$27:$G$51,MATCH('mf2'!B31,'mf3'!$B$27:$B$51,0),6) ->  | S6: =IF(ISERROR(INDEX('mf3'!$B$27:$B$51,MATCH('mf2'!B31,'mf3'!$B$27:$B$51,0),1)),0,1) -> 0 | T6: =INDEX('mf2'!$B$27:$B$51,MATCH('mf3'!B31,'mf2'!$B$27:$B$51,0),1) ->  | U6: =INDEX('mf2'!$B$27:$G$51,MATCH('mf3'!B31,'mf2'!$B$27:$B$51,0),6) ->  | V6: ONGC | X6: =INDEX('mf3'!$B$27:$B$51,MATCH('mf1'!B31,'mf3'!$B$27:$B$51,0),1) ->  | Y6: =INDEX('mf3'!$B$27:$G$51,MATCH('mf1'!B31,'mf3'!$B$27:$B$51,0),6) ->  | Z6: =IF(ISERROR(INDEX('mf3'!$B$27:$B$51,MATCH('mf1'!B31,'mf3'!$B$27:$B$51,0),1)),0,1) -> 0 | AA6: =INDEX('mf1'!$B$27:$B$51,MATCH('mf3'!B31,'mf1'!$B$27:$B$51,0),1) -> Container Corp. | AB6: =INDEX('mf1'!$B$27:$G$51,MATCH('mf3'!B31,'mf1'!$B$27:$B$51,0),6) -> 2.84 | AC6: GAIL | AE6: =INDEX(mutualfund3s,MATCH(0,COUNTIF($AE$1:AE5,mutualfund3s),0)) -> HDFC
A7: Number of Stocks | B7: ='mf1'!B9 -> 53 | C7: ='mf2'!B9 -> 41 | D7: ='mf3'!B9 -> 27 | I7: 6 | J7: =INDEX('mf2'!$B$27:$B$51,MATCH('mf1'!B32,'mf2'!$B$27:$B$51,0),1) -> Asian Paints | K7: =INDEX('mf2'!$B$27:$G$51,MATCH('mf1'!B32,'mf2'!$B$27:$B$51,0),6) -> 1.52 | L7: =IF(ISERROR(INDEX('mf2'!$B$27:$B$51,MATCH('mf1'!B32,'mf2'!$B$27:$B$51,0),1)),0,1) -> 1 | M7: =INDEX('mf1'!$B$27:$B$51,MATCH('mf2'!B32,'mf1'!$B$27:$B$51,0),1) ->  | N7: =INDEX('mf1'!$B$27:$G$51,MATCH('mf2'!B32,'mf1'!$B$27:$B$51,0),6) ->  | O7: Asian Paints | Q7: =INDEX('mf3'!$B$27:$B$51,MATCH('mf2'!B32,'mf3'!$B$27:$B$51,0),1) ->  | R7: =INDEX('mf3'!$B$27:$G$51,MATCH('mf2'!B32,'mf3'!$B$27:$B$51,0),6) ->  | S7: =IF(ISERROR(INDEX('mf3'!$B$27:$B$51,MATCH('mf2'!B32,'mf3'!$B$27:$B$51,0),1)),0,1) -> 0 | T7: =INDEX('mf2'!$B$27:$B$51,MATCH('mf3'!B32,'mf2'!$B$27:$B$51,0),1) ->  | U7: =INDEX('mf2'!$B$27:$G$51,MATCH('mf3'!B32,'mf2'!$B$27:$B$51,0),6) ->  | V7: ONGC | X7: =INDEX('mf3'!$B$27:$B$51,MATCH('mf1'!B32,'mf3'!$B$27:$B$51,0),1) ->  | Y7: =INDEX('mf3'!$B$27:$G$51,MATCH('mf1'!B32,'mf3'!$B$27:$B$51,0),6) ->  | Z7: =IF(ISERROR(INDEX('mf3'!$B$27:$B$51,MATCH('mf1'!B32,'mf3'!$B$27:$B$51,0),1)),0,1) -> 0 | AA7: =INDEX('mf1'!$B$27:$B$51,MATCH('mf3'!B32,'mf1'!$B$27:$B$51,0),1) ->  | AB7: =INDEX('mf1'!$B$27:$G$51,MATCH('mf3'!B32,'mf1'!$B$27:$B$51,0),6) ->  | AC7: GAIL | AE7: =INDEX(mutualfund3s,MATCH(0,COUNTIF($AE$1:AE6,mutualfund3s),0)) -> Hero Motocorp
A8: Giant Cap (%) | B8: ='mf1'!B19 -> 3.37 | C8: ='mf2'!B19 -> 57.19 | D8: ='mf3'!B19 -> 45.16 | I8: 7 | J8: =INDEX('mf2'!$B$27:$B$51,MATCH('mf1'!B33,'mf2'!$B$27:$B$51,0),1) ->  | K8: =INDEX('mf2'!$B$27:$G$51,MATCH('mf1'!B33,'mf2'!$B$27:$B$51,0),6) ->  | L8: =IF(ISERROR(INDEX('mf2'!$B$27:$B$51,MATCH('mf1'!B33,'mf2'!$B$27:$B$51,0),1)),0,1) -> 0 | M8: =INDEX('mf1'!$B$27:$B$51,MATCH('mf2'!B33,'mf1'!$B$27:$B$51,0),1) ->  | N8: =INDEX('mf1'!$B$27:$G$51,MATCH('mf2'!B33,'mf1'!$B$27:$B$51,0),6) ->  | O8: HDFC Bank | Q8: =INDEX('mf3'!$B$27:$B$51,MATCH('mf2'!B33,'mf3'!$B$27:$B$51,0),1) ->  | R8: =INDEX('mf3'!$B$27:$G$51,MATCH('mf2'!B33,'mf3'!$B$27:$B$51,0),6) ->  | S8: =IF(ISERROR(INDEX('mf3'!$B$27:$B$51,MATCH('mf2'!B33,'mf3'!$B$27:$B$51,0),1)),0,1) -> 0 | T8: =INDEX('mf2'!$B$27:$B$51,MATCH('mf3'!B33,'mf2'!$B$27:$B$51,0),1) -> ACC | U8: =INDEX('mf2'!$B$27:$G$51,MATCH('mf3'!B33,'mf2'!$B$27:$B$51,0),6) -> 1.46 | V8: ONGC | X8: =INDEX('mf3'!$B$27:$B$51,MATCH('mf1'!B33,'mf3'!$B$27:$B$51,0),1) -> GAIL | Y8: =INDEX('mf3'!$B$27:$G$51,MATCH('mf1'!B33,'mf3'!$B$27:$B$51,0),6) -> 2.86 | Z8: =IF(ISERROR(INDEX('mf3'!$B$27:$B$51,MATCH('mf1'!B33,'mf3'!$B$27:$B$51,0),1)),0,1) -> 1 | AA8: =INDEX('mf1'!$B$27:$B$51,MATCH('mf3'!B33,'mf1'!$B$27:$B$51,0),1) ->  | AB8: =INDEX('mf1'!$B$27:$G$51,MATCH('mf3'!B33,'mf1'!$B$27:$B$51,0),6) ->  | AC8: GAIL | AE8: =INDEX(mutualfund3s,MATCH(0,COUNTIF($AE$1:AE7,mutualfund3s),0)) -> ACC
A9: Large Cap(%) | B9: ='mf1'!B20 -> 17.21 | C9: ='mf2'!B20 -> 29.19 | D9: ='mf3'!B20 -> 14.71 | I9: 8 | J9: =INDEX('mf2'!$B$27:$B$51,MATCH('mf1'!B34,'mf2'!$B$27:$B$51,0),1) ->  | K9: =INDEX('mf2'!$B$27:$G$51,MATCH('mf1'!B34,'mf2'!$B$27:$B$51,0),6) ->  | L9: =IF(ISERROR(INDEX('mf2'!$B$27:$B$51,MATCH('mf1'!B34,'mf2'!$B$27:$B$51,0),1)),0,1) -> 0 | M9: =INDEX('mf1'!$B$27:$B$51,MATCH('mf2'!B34,'mf1'!$B$27:$B$51,0),1) ->  | N9: =INDEX('mf1'!$B$27:$G$51,MATCH('mf2'!B34,'mf1'!$B$27:$B$51,0),6) ->  | O9: HDFC Bank | Q9: =INDEX('mf3'!$B$27:$B$51,MATCH('mf2'!B34,'mf3'!$B$27:$B$51,0),1) ->  | R9: =INDEX('mf3'!$B$27:$G$51,MATCH('mf2'!B34,'mf3'!$B$27:$B$51,0),6) ->  | S9: =IF(ISERROR(INDEX('mf3'!$B$27:$B$51,MATCH('mf2'!B34,'mf3'!$B$27:$B$51,0),1)),0,1) -> 0 | T9: =INDEX('mf2'!$B$27:$B$51,MATCH('mf3'!B34,'mf2'!$B$27:$B$51,0),1) ->  | U9: =INDEX('mf2'!$B$27:$G$51,MATCH('mf3'!B34,'mf2'!$B$27:$B$51,0),6) ->  | V9: ONGC | X9: =INDEX('mf3'!$B$27:$B$51,MATCH('mf1'!B34,'mf3'!$B$27:$B$51,0),1) ->  | Y9: =INDEX('mf3'!$B$27:$G$51,MATCH('mf1'!B34,'mf3'!$B$27:$B$51,0),6) ->  | Z9: =IF(ISERROR(INDEX('mf3'!$B$27:$B$51,MATCH('mf1'!B34,'mf3'!$B$27:$B$51,0),1)),0,1) -> 0 | AA9: =INDEX('mf1'!$B$27:$B$51,MATCH('mf3'!B34,'mf1'!$B$27:$B$51,0),1) ->  | AB9: =INDEX('mf1'!$B$27:$G$51,MATCH('mf3'!B34,'mf1'!$B$27:$B$51,0),6) ->  | AC9: Container Corp. | AE9: =INDEX(mutualfund3s,MATCH(0,COUNTIF($AE$1:AE8,mutualfund3s),0)) -> 
A10: Mid Cap(%) | B10: ='mf1'!B21 -> 53.02 | C10: ='mf2'!B21 -> 13.6 | D10: ='mf3'!B21 -> 36.87 | I10: 9 | J10: =INDEX('mf2'!$B$27:$B$51,MATCH('mf1'!B35,'mf2'!$B$27:$B$51,0),1) ->  | K10: =INDEX('mf2'!$B$27:$G$51,MATCH('mf1'!B35,'mf2'!$B$27:$B$51,0),6) ->  | L10: =IF(ISERROR(INDEX('mf2'!$B$27:$B$51,MATCH('mf1'!B35,'mf2'!$B$27:$B$51,0),1)),0,1) -> 0 | M10: =INDEX('mf1'!$B$27:$B$51,MATCH('mf2'!B35,'mf1'!$B$27:$B$51,0),1) ->  | N10: =INDEX('mf1'!$B$27:$G$51,MATCH('mf2'!B35,'mf1'!$B$27:$B$51,0),6) ->  | O10: HDFC Bank | Q10: =INDEX('mf3'!$B$27:$B$51,MATCH('mf2'!B35,'mf3'!$B$27:$B$51,0),1) ->  | R10: =INDEX('mf3'!$B$27:$G$51,MATCH('mf2'!B35,'mf3'!$B$27:$B$51,0),6) ->  | S10: =IF(ISERROR(INDEX('mf3'!$B$27:$B$51,MATCH('mf2'!B35,'mf3'!$B$27:$B$51,0),1)),0,1) -> 0 | T10: =INDEX('mf2'!$B$27:$B$51,MATCH('mf3'!B35,'mf2'!$B$27:$B$51,0),1) -> ONGC | U10: =INDEX('mf2'!$B$27:$G$51,MATCH('mf3'!B35,'mf2'!$B$27:$B$51,0),6) -> 2.88 | V10: ONGC | X10: =INDEX('mf3'!$B$27:$B$51,MATCH('mf1'!B35,'mf3'!$B$27:$B$51,0),1) -> Container Corp. | Y10: =INDEX('mf3'!$B$27:$G$51,MATCH('mf1'!B35,'mf3'!$B$27:$B$51,0),6) -> 4.14 | Z10: =IF(ISERROR(INDEX('mf3'!$B$27:$B$51,MATCH('mf1'!B35,'mf3'!$B$27:$B$51,0),1)),0,1) -> 1 | AA10: =INDEX('mf1'!$B$27:$B$51,MATCH('mf3'!B35,'mf1'!$B$27:$B$51,0),1) ->  | AB10: =INDEX('mf1'!$B$27:$G$51,MATCH('mf3'!B35,'mf1'!$B$27:$B$51,0),6) ->  | AC10: Container Corp.
A11: Small Cap(%) | B11: ='mf1'!B22 -> 26.1 | C11: ='mf2'!B22 -> - | D11: ='mf3'!B22 -> 3.26 | I11: 10 | J11: =INDEX('mf2'!$B$27:$B$51,MATCH('mf1'!B36,'mf2'!$B$27:$B$51,0),1) ->  | K11: =INDEX('mf2'!$B$27:$G$51,MATCH('mf1'!B36,'mf2'!$B$27:$B$51,0),6) ->  | L11: =IF(ISERROR(INDEX('mf2'!$B$27:$B$51,MATCH('mf1'!B36,'mf2'!$B$27:$B$51,0),1)),0,1) -> 0 | M11: =INDEX('mf1'!$B$27:$B$51,MATCH('mf2'!B36,'mf1'!$B$27:$B$51,0),1) ->  | N11: =INDEX('mf1'!$B$27:$G$51,MATCH('mf2'!B36,'mf1'!$B$27:$B$51,0),6) ->  | O11: HDFC Bank | Q11: =INDEX('mf3'!$B$27:$B$51,MATCH('mf2'!B36,'mf3'!$B$27:$B$51,0),1) ->  | R11: =INDEX('mf3'!$B$27:$G$51,MATCH('mf2'!B36,'mf3'!$B$27:$B$51,0),6) ->  | S11: =IF(ISERROR(INDEX('mf3'!$B$27:$B$51,MATCH('mf2'!B36,'mf3'!$B$27:$B$51,0),1)),0,1) -> 0 | T11: =INDEX('mf2'!$B$27:$B$51,MATCH('mf3'!B36,'mf2'!$B$27:$B$51,0),1) ->  | U11: =INDEX('mf2'!$B$27:$G$51,MATCH('mf3'!B36,'mf2'!$B$27:$B$51,0),6) ->  | V11: ONGC | X11: =INDEX('mf3'!$B$27:$B$51,MATCH('mf1'!B36,'mf3'!$B$27:$B$51,0),1) ->  | Y11: =INDEX('mf3'!$B$27:$G$51,MATCH('mf1'!B36,'mf3'!$B$27:$B$51,0),6) ->  | Z11: =IF(ISERROR(INDEX('mf3'!$B$27:$B$51,MATCH('mf1'!B36,'mf3'!$B$27:$B$51,0),1)),0,1) -> 0 | AA11: =INDEX('mf1'!$B$27:$B$51,MATCH('mf3'!B36,'mf1'!$B$27:$B$51,0),1) ->  | AB11: =INDEX('mf1'!$B$27:$G$51,MATCH('mf3'!B36,'mf1'!$B$27:$B$51,0),6) ->  | AC11: PTC India
A12: Tiny Cap(%) | B12: ='mf1'!B23 -> 0.3 | C12: ='mf2'!B23 -> - | D12: ='mf3'!B23 -> - | I12: 11 | J12: =INDEX('mf2'!$B$27:$B$51,MATCH('mf1'!B37,'mf2'!$B$27:$B$51,0),1) ->  | K12: =INDEX('mf2'!$B$27:$G$51,MATCH('mf1'!B37,'mf2'!$B$27:$B$51,0),6) ->  | L12: =IF(ISERROR(INDEX('mf2'!$B$27:$B$51,MATCH('mf1'!B37,'mf2'!$B$27:$B$51,0),1)),0,1) -> 0 | M12: =INDEX('mf1'!$B$27:$B$51,MATCH('mf2'!B37,'mf1'!$B$27:$B$51,0),1) ->  | N12: =INDEX('mf1'!$B$27:$G$51,MATCH('mf2'!B37,'mf1'!$B$27:$B$51,0),6) ->  | O12: HDFC Bank | Q12: =INDEX('mf3'!$B$27:$B$51,MATCH('mf2'!B37,'mf3'!$B$27:$B$51,0),1) -> ONGC | R12: =INDEX('mf3'!$B$27:$G$51,MATCH('mf2'!B37,'mf3'!$B$27:$B$51,0),6) -> 3.62 | S12: =IF(ISERROR(INDEX('mf3'!$B$27:$B$51,MATCH('mf2'!B37,'mf3'!$B$27:$B$51,0),1)),0,1) -> 1 | T12: =INDEX('mf2'!$B$27:$B$51,MATCH('mf3'!B37,'mf2'!$B$27:$B$51,0),1) ->  | U12: =INDEX('mf2'!$B$27:$G$51,MATCH('mf3'!B37,'mf2'!$B$27:$B$51,0),6) ->  | V12: ONGC | X12: =INDEX('mf3'!$B$27:$B$51,MATCH('mf1'!B37,'mf3'!$B$27:$B$51,0),1) ->  | Y12: =INDEX('mf3'!$B$27:$G$51,MATCH('mf1'!B37,'mf3'!$B$27:$B$51,0),6) ->  | Z12: =IF(ISERROR(INDEX('mf3'!$B$27:$B$51,MATCH('mf1'!B37,'mf3'!$B$27:$B$51,0),1)),0,1) -> 0 | AA12: =INDEX('mf1'!$B$27:$B$51,MATCH('mf3'!B37,'mf1'!$B$27:$B$51,0),1) ->  | AB12: =INDEX('mf1'!$B$27:$G$51,MATCH('mf3'!B37,'mf1'!$B$27:$B$51,0),6) ->  | AC12: PTC India
I13: 12 | J13: =INDEX('mf2'!$B$27:$B$51,MATCH('mf1'!B38,'mf2'!$B$27:$B$51,0),1) ->  | K13: =INDEX('mf2'!$B$27:$G$51,MATCH('mf1'!B38,'mf2'!$B$27:$B$51,0),6) ->  | L13: =IF(ISERROR(INDEX('mf2'!$B$27:$B$51,MATCH('mf1'!B38,'mf2'!$B$27:$B$51,0),1)),0,1) -> 0 | M13: =INDEX('mf1'!$B$27:$B$51,MATCH('mf2'!B38,'mf1'!$B$27:$B$51,0),1) ->  | N13: =INDEX('mf1'!$B$27:$G$51,MATCH('mf2'!B38,'mf1'!$B$27:$B$51,0),6) ->  | O13: HDFC Bank | Q13: =INDEX('mf3'!$B$27:$B$51,MATCH('mf2'!B38,'mf3'!$B$27:$B$51,0),1) -> NTPC | R13: =INDEX('mf3'!$B$27:$G$51,MATCH('mf2'!B38,'mf3'!$B$27:$B$51,0),6) -> 2.29 | S13: =IF(ISERROR(INDEX('mf3'!$B$27:$B$51,MATCH('mf2'!B38,'mf3'!$B$27:$B$51,0),1)),0,1) -> 1 | T13: =INDEX('mf2'!$B$27:$B$51,MATCH('mf3'!B38,'mf2'!$B$27:$B$51,0),1) ->  | U13: =INDEX('mf2'!$B$27:$G$51,MATCH('mf3'!B38,'mf2'!$B$27:$B$51,0),6) ->  | V13: NTPC | X13: =INDEX('mf3'!$B$27:$B$51,MATCH('mf1'!B38,'mf3'!$B$27:$B$51,0),1) ->  | Y13: =INDEX('mf3'!$B$27:$G$51,MATCH('mf1'!B38,'mf3'!$B$27:$B$51,0),6) ->  | Z13: =IF(ISERROR(INDEX('mf3'!$B$27:$B$51,MATCH('mf1'!B38,'mf3'!$B$27:$B$51,0),1)),0,1) -> 0 | AA13: =INDEX('mf1'!$B$27:$B$51,MATCH('mf3'!B38,'mf1'!$B$27:$B$51,0),1) ->  | AB13: =INDEX('mf1'!$B$27:$G$51,MATCH('mf3'!B38,'mf1'!$B$27:$B$51,0),6) ->  | AC13: PTC India
A14: % equity portfolio displayed by VR Online | B14: =SUM('mf1'!G27:G75) -> 68.7 | C14: =SUM('mf2'!G27:G75) -> 83.2 | D14: =SUM('mf3'!G27:G75) -> 80.6 | I14: 13 | J14: =INDEX('mf2'!$B$27:$B$51,MATCH('mf1'!B39,'mf2'!$B$27:$B$51,0),1) ->  | K14: =INDEX('mf2'!$B$27:$G$51,MATCH('mf1'!B39,'mf2'!$B$27:$B$51,0),6) ->  | L14: =IF(ISERROR(INDEX('mf2'!$B$27:$B$51,MATCH('mf1'!B39,'mf2'!$B$27:$B$51,0),1)),0,1) -> 0 | M14: =INDEX('mf1'!$B$27:$B$51,MATCH('mf2'!B39,'mf1'!$B$27:$B$51,0),1) ->  | N14: =INDEX('mf1'!$B$27:$G$51,MATCH('mf2'!B39,'mf1'!$B$27:$B$51,0),6) ->  | O14: HDFC Bank | Q14: =INDEX('mf3'!$B$27:$B$51,MATCH('mf2'!B39,'mf3'!$B$27:$B$51,0),1) ->  | R14: =INDEX('mf3'!$B$27:$G$51,MATCH('mf2'!B39,'mf3'!$B$27:$B$51,0),6) ->  | S14: =IF(ISERROR(INDEX('mf3'!$B$27:$B$51,MATCH('mf2'!B39,'mf3'!$B$27:$B$51,0),1)),0,1) -> 0 | T14: =INDEX('mf2'!$B$27:$B$51,MATCH('mf3'!B39,'mf2'!$B$27:$B$51,0),1) -> Hero Motocorp | U14: =INDEX('mf2'!$B$27:$G$51,MATCH('mf3'!B39,'mf2'!$B$27:$B$51,0),6) -> 1.61 | V14: Larsen & Toubro | X14: =INDEX('mf3'!$B$27:$B$51,MATCH('mf1'!B39,'mf3'!$B$27:$B$51,0),1) ->  | Y14: =INDEX('mf3'!$B$27:$G$51,MATCH('mf1'!B39,'mf3'!$B$27:$B$51,0),6) ->  | Z14: =IF(ISERROR(INDEX('mf3'!$B$27:$B$51,MATCH('mf1'!B39,'mf3'!$B$27:$B$51,0),1)),0,1) -> 0 | AA14: =INDEX('mf1'!$B$27:$B$51,MATCH('mf3'!B39,'mf1'!$B$27:$B$51,0),1) ->  | AB14: =INDEX('mf1'!$B$27:$G$51,MATCH('mf3'!B39,'mf1'!$B$27:$B$51,0),6) ->  | AC14: PTC India
I15: 14 | J15: =INDEX('mf2'!$B$27:$B$51,MATCH('mf1'!B40,'mf2'!$B$27:$B$51,0),1) ->  | K15: =INDEX('mf2'!$B$27:$G$51,MATCH('mf1'!B40,'mf2'!$B$27:$B$51,0),6) ->  | L15: =IF(ISERROR(INDEX('mf2'!$B$27:$B$51,MATCH('mf1'!B40,'mf2'!$B$27:$B$51,0),1)),0,1) -> 0 | M15: =INDEX('mf1'!$B$27:$B$51,MATCH('mf2'!B40,'mf1'!$B$27:$B$51,0),1) ->  | N15: =INDEX('mf1'!$B$27:$G$51,MATCH('mf2'!B40,'mf1'!$B$27:$B$51,0),6) ->  | O15: HDFC Bank | Q15: =INDEX('mf3'!$B$27:$B$51,MATCH('mf2'!B40,'mf3'!$B$27:$B$51,0),1) ->  | R15: =INDEX('mf3'!$B$27:$G$51,MATCH('mf2'!B40,'mf3'!$B$27:$B$51,0),6) ->  | S15: =IF(ISERROR(INDEX('mf3'!$B$27:$B$51,MATCH('mf2'!B40,'mf3'!$B$27:$B$51,0),1)),0,1) -> 0 | T15: =INDEX('mf2'!$B$27:$B$51,MATCH('mf3'!B40,'mf2'!$B$27:$B$51,0),1) ->  | U15: =INDEX('mf2'!$B$27:$G$51,MATCH('mf3'!B40,'mf2'!$B$27:$B$51,0),6) ->  | V15: Larsen & Toubro | X15: =INDEX('mf3'!$B$27:$B$51,MATCH('mf1'!B40,'mf3'!$B$27:$B$51,0),1) ->  | Y15: =INDEX('mf3'!$B$27:$G$51,MATCH('mf1'!B40,'mf3'!$B$27:$B$51,0),6) ->  | Z15: =IF(ISERROR(INDEX('mf3'!$B$27:$B$51,MATCH('mf1'!B40,'mf3'!$B$27:$B$51,0),1)),0,1) -> 0 | AA15: =INDEX('mf1'!$B$27:$B$51,MATCH('mf3'!B40,'mf1'!$B$27:$B$51,0),1) ->  | AB15: =INDEX('mf1'!$B$27:$G$51,MATCH('mf3'!B40,'mf1'!$B$27:$B$51,0),6) ->  | AC15: PTC India
I16: 15 | J16: =INDEX('mf2'!$B$27:$B$51,MATCH('mf1'!B41,'mf2'!$B$27:$B$51,0),1) -> HDFC Bank | K16: =INDEX('mf2'!$B$27:$G$51,MATCH('mf1'!B41,'mf2'!$B$27:$B$51,0),6) -> 5.68 | L16: =IF(ISERROR(INDEX('mf2'!$B$27:$B$51,MATCH('mf1'!B41,'mf2'!$B$27:$B$51,0),1)),0,1) -> 1 | M16: =INDEX('mf1'!$B$27:$B$51,MATCH('mf2'!B41,'mf1'!$B$27:$B$51,0),1) ->  | N16: =INDEX('mf1'!$B$27:$G$51,MATCH('mf2'!B41,'mf1'!$B$27:$B$51,0),6) ->  | O16: HDFC Bank | Q16: =INDEX('mf3'!$B$27:$B$51,MATCH('mf2'!B41,'mf3'!$B$27:$B$51,0),1) -> Larsen & Toubro | R16: =INDEX('mf3'!$B$27:$G$51,MATCH('mf2'!B41,'mf3'!$B$27:$B$51,0),6) -> 2.31 | S16: =IF(ISERROR(INDEX('mf3'!$B$27:$B$51,MATCH('mf2'!B41,'mf3'!$B$27:$B$51,0),1)),0,1) -> 1 | T16: =INDEX('mf2'!$B$27:$B$51,MATCH('mf3'!B41,'mf2'!$B$27:$B$51,0),1) ->  | U16: =INDEX('mf2'!$B$27:$G$51,MATCH('mf3'!B41,'mf2'!$B$27:$B$51,0),6) ->  | V16: Larsen & Toubro | X16: =INDEX('mf3'!$B$27:$B$51,MATCH('mf1'!B41,'mf3'!$B$27:$B$51,0),1) ->  | Y16: =INDEX('mf3'!$B$27:$G$51,MATCH('mf1'!B41,'mf3'!$B$27:$B$51,0),6) ->  | Z16: =IF(ISERROR(INDEX('mf3'!$B$27:$B$51,MATCH('mf1'!B41,'mf3'!$B$27:$B$51,0),1)),0,1) -> 0 | AA16: =INDEX('mf1'!$B$27:$B$51,MATCH('mf3'!B41,'mf1'!$B$27:$B$51,0),1) -> GAIL | AB16: =INDEX('mf1'!$B$27:$G$51,MATCH('mf3'!B41,'mf1'!$B$27:$B$51,0),6) -> 3 | AC16: PTC India
A17: =CONCATENATE("% overlap in equity portfolio as listed in VROnline between") -> % overlap in equity portfolio as listed in VROnline between | I17: 16 | J17: =INDEX('mf2'!$B$27:$B$51,MATCH('mf1'!B42,'mf2'!$B$27:$B$51,0),1) ->  | K17: =INDEX('mf2'!$B$27:$G$51,MATCH('mf1'!B42,'mf2'!$B$27:$B$51,0),6) ->  | L17: =IF(ISERROR(INDEX('mf2'!$B$27:$B$51,MATCH('mf1'!B42,'mf2'!$B$27:$B$51,0),1)),0,1) -> 0 | M17: =INDEX('mf1'!$B$27:$B$51,MATCH('mf2'!B42,'mf1'!$B$27:$B$51,0),1) ->  | N17: =INDEX('mf1'!$B$27:$G$51,MATCH('mf2'!B42,'mf1'!$B$27:$B$51,0),6) ->  | O17: 0 | Q17: =INDEX('mf3'!$B$27:$B$51,MATCH('mf2'!B42,'mf3'!$B$27:$B$51,0),1) -> HDFC | R17: =INDEX('mf3'!$B$27:$G$51,MATCH('mf2'!B42,'mf3'!$B$27:$B$51,0),6) -> 5.61 | S17: =IF(ISERROR(INDEX('mf3'!$B$27:$B$51,MATCH('mf2'!B42,'mf3'!$B$27:$B$51,0),1)),0,1) -> 1 | T17: =INDEX('mf2'!$B$27:$B$51,MATCH('mf3'!B42,'mf2'!$B$27:$B$51,0),1) ->  | U17: =INDEX('mf2'!$B$27:$G$51,MATCH('mf3'!B42,'mf2'!$B$27:$B$51,0),6) ->  | V17: HDFC | X17: =INDEX('mf3'!$B$27:$B$51,MATCH('mf1'!B42,'mf3'!$B$27:$B$51,0),1) ->  | Y17: =INDEX('mf3'!$B$27:$G$51,MATCH('mf1'!B42,'mf3'!$B$27:$B$51,0),6) ->  | Z17: =IF(ISERROR(INDEX('mf3'!$B$27:$B$51,MATCH('mf1'!B42,'mf3'!$B$27:$B$51,0),1)),0,1) -> 0 | AA17: =INDEX('mf1'!$B$27:$B$51,MATCH('mf3'!B42,'mf1'!$B$27:$B$51,0),1) ->  | AB17: =INDEX('mf1'!$B$27:$G$51,MATCH('mf3'!B42,'mf1'!$B$27:$B$51,0),6) ->  | AC17: PTC India
A18: =B2 -> IDFC Premier Equity Direct | B18: =SUM(L2:L26)/25 -> 0.08 | I18: 17 | J18: =INDEX('mf2'!$B$27:$B$51,MATCH('mf1'!B43,'mf2'!$B$27:$B$51,0),1) ->  | K18: =INDEX('mf2'!$B$27:$G$51,MATCH('mf1'!B43,'mf2'!$B$27:$B$51,0),6) ->  | L18: =IF(ISERROR(INDEX('mf2'!$B$27:$B$51,MATCH('mf1'!B43,'mf2'!$B$27:$B$51,0),1)),0,1) -> 0 | M18: =INDEX('mf1'!$B$27:$B$51,MATCH('mf2'!B43,'mf1'!$B$27:$B$51,0),1) ->  | N18: =INDEX('mf1'!$B$27:$G$51,MATCH('mf2'!B43,'mf1'!$B$27:$B$51,0),6) ->  | O18: 0 | Q18: =INDEX('mf3'!$B$27:$B$51,MATCH('mf2'!B43,'mf3'!$B$27:$B$51,0),1) ->  | R18: =INDEX('mf3'!$B$27:$G$51,MATCH('mf2'!B43,'mf3'!$B$27:$B$51,0),6) ->  | S18: =IF(ISERROR(INDEX('mf3'!$B$27:$B$51,MATCH('mf2'!B43,'mf3'!$B$27:$B$51,0),1)),0,1) -> 0 | T18: =INDEX('mf2'!$B$27:$B$51,MATCH('mf3'!B43,'mf2'!$B$27:$B$51,0),1) ->  | U18: =INDEX('mf2'!$B$27:$G$51,MATCH('mf3'!B43,'mf2'!$B$27:$B$51,0),6) ->  | V18: Hero Motocorp | X18: =INDEX('mf3'!$B$27:$B$51,MATCH('mf1'!B43,'mf3'!$B$27:$B$51,0),1) ->  | Y18: =INDEX('mf3'!$B$27:$G$51,MATCH('mf1'!B43,'mf3'!$B$27:$B$51,0),6) ->  | Z18: =IF(ISERROR(INDEX('mf3'!$B$27:$B$51,MATCH('mf1'!B43,'mf3'!$B$27:$B$51,0),1)),0,1) -> 0 | AA18: =INDEX('mf1'!$B$27:$B$51,MATCH('mf3'!B43,'mf1'!$B$27:$B$51,0),1) ->  | AB18: =INDEX('mf1'!$B$27:$G$51,MATCH('mf3'!B43,'mf1'!$B$27:$B$51,0),6) ->  | AC18: PTC India
A19: =C2 -> Franklin India Bluechip | I19: 18 | J19: =INDEX('mf2'!$B$27:$B$51,MATCH('mf1'!B44,'mf2'!$B$27:$B$51,0),1) ->  | K19: =INDEX('mf2'!$B$27:$G$51,MATCH('mf1'!B44,'mf2'!$B$27:$B$51,0),6) ->  | L19: =IF(ISERROR(INDEX('mf2'!$B$27:$B$51,MATCH('mf1'!B44,'mf2'!$B$27:$B$51,0),1)),0,1) -> 0 | M19: =INDEX('mf1'!$B$27:$B$51,MATCH('mf2'!B44,'mf1'!$B$27:$B$51,0),1) ->  | N19: =INDEX('mf1'!$B$27:$G$51,MATCH('mf2'!B44,'mf1'!$B$27:$B$51,0),6) ->  | O19: 0 | Q19: =INDEX('mf3'!$B$27:$B$51,MATCH('mf2'!B44,'mf3'!$B$27:$B$51,0),1) ->  | R19: =INDEX('mf3'!$B$27:$G$51,MATCH('mf2'!B44,'mf3'!$B$27:$B$51,0),6) ->  | S19: =IF(ISERROR(INDEX('mf3'!$B$27:$B$51,MATCH('mf2'!B44,'mf3'!$B$27:$B$51,0),1)),0,1) -> 0 | T19: =INDEX('mf2'!$B$27:$B$51,MATCH('mf3'!B44,'mf2'!$B$27:$B$51,0),1) -> Larsen & Toubro | U19: =INDEX('mf2'!$B$27:$G$51,MATCH('mf3'!B44,'mf2'!$B$27:$B$51,0),6) -> 2.12 | V19: Hero Motocorp | X19: =INDEX('mf3'!$B$27:$B$51,MATCH('mf1'!B44,'mf3'!$B$27:$B$51,0),1) -> PTC India | Y19: =INDEX('mf3'!$B$27:$G$51,MATCH('mf1'!B44,'mf3'!$B$27:$B$51,0),6) -> 2.14 | Z19: =IF(ISERROR(INDEX('mf3'!$B$27:$B$51,MATCH('mf1'!B44,'mf3'!$B$27:$B$51,0),1)),0,1) -> 1 | AA19: =INDEX('mf1'!$B$27:$B$51,MATCH('mf3'!B44,'mf1'!$B$27:$B$51,0),1) ->  | AB19: =INDEX('mf1'!$B$27:$G$51,MATCH('mf3'!B44,'mf1'!$B$27:$B$51,0),6) ->  | AC19: PTC India
I20: 19 | J20: =INDEX('mf2'!$B$27:$B$51,MATCH('mf1'!B45,'mf2'!$B$27:$B$51,0),1) ->  | K20: =INDEX('mf2'!$B$27:$G$51,MATCH('mf1'!B45,'mf2'!$B$27:$B$51,0),6) ->  | L20: =IF(ISERROR(INDEX('mf2'!$B$27:$B$51,MATCH('mf1'!B45,'mf2'!$B$27:$B$51,0),1)),0,1) -> 0 | M20: =INDEX('mf1'!$B$27:$B$51,MATCH('mf2'!B45,'mf1'!$B$27:$B$51,0),1) ->  | N20: =INDEX('mf1'!$B$27:$G$51,MATCH('mf2'!B45,'mf1'!$B$27:$B$51,0),6) ->  | O20: 0 | Q20: =INDEX('mf3'!$B$27:$B$51,MATCH('mf2'!B45,'mf3'!$B$27:$B$51,0),1) ->  | R20: =INDEX('mf3'!$B$27:$G$51,MATCH('mf2'!B45,'mf3'!$B$27:$B$51,0),6) ->  | S20: =IF(ISERROR(INDEX('mf3'!$B$27:$B$51,MATCH('mf2'!B45,'mf3'!$B$27:$B$51,0),1)),0,1) -> 0 | T20: =INDEX('mf2'!$B$27:$B$51,MATCH('mf3'!B45,'mf2'!$B$27:$B$51,0),1) -> NTPC | U20: =INDEX('mf2'!$B$27:$G$51,MATCH('mf3'!B45,'mf2'!$B$27:$B$51,0),6) -> 2.8 | V20: Hero Motocorp | X20: =INDEX('mf3'!$B$27:$B$51,MATCH('mf1'!B45,'mf3'!$B$27:$B$51,0),1) ->  | Y20: =INDEX('mf3'!$B$27:$G$51,MATCH('mf1'!B45,'mf3'!$B$27:$B$51,0),6) ->  | Z20: =IF(ISERROR(INDEX('mf3'!$B$27:$B$51,MATCH('mf1'!B45,'mf3'!$B$27:$B$51,0),1)),0,1) -> 0 | AA20: =INDEX('mf1'!$B$27:$B$51,MATCH('mf3'!B45,'mf1'!$B$27:$B$51,0),1) ->  | AB20: =INDEX('mf1'!$B$27:$G$51,MATCH('mf3'!B45,'mf1'!$B$27:$B$51,0),6) ->  | AC20: 0
A21: =B2 -> IDFC Premier Equity Direct | B21: =SUM(Z2:Z26)/25 -> 0.12 | I21: 20 | J21: =INDEX('mf2'!$B$27:$B$51,MATCH('mf1'!B46,'mf2'!$B$27:$B$51,0),1) ->  | K21: =INDEX('mf2'!$B$27:$G$51,MATCH('mf1'!B46,'mf2'!$B$27:$B$51,0),6) ->  | L21: =IF(ISERROR(INDEX('mf2'!$B$27:$B$51,MATCH('mf1'!B46,'mf2'!$B$27:$B$51,0),1)),0,1) -> 0 | M21: =INDEX('mf1'!$B$27:$B$51,MATCH('mf2'!B46,'mf1'!$B$27:$B$51,0),1) ->  | N21: =INDEX('mf1'!$B$27:$G$51,MATCH('mf2'!B46,'mf1'!$B$27:$B$51,0),6) ->  | O21: 0 | Q21: =INDEX('mf3'!$B$27:$B$51,MATCH('mf2'!B46,'mf3'!$B$27:$B$51,0),1) ->  | R21: =INDEX('mf3'!$B$27:$G$51,MATCH('mf2'!B46,'mf3'!$B$27:$B$51,0),6) ->  | S21: =IF(ISERROR(INDEX('mf3'!$B$27:$B$51,MATCH('mf2'!B46,'mf3'!$B$27:$B$51,0),1)),0,1) -> 0 | T21: =INDEX('mf2'!$B$27:$B$51,MATCH('mf3'!B46,'mf2'!$B$27:$B$51,0),1) ->  | U21: =INDEX('mf2'!$B$27:$G$51,MATCH('mf3'!B46,'mf2'!$B$27:$B$51,0),6) ->  | V21: Hero Motocorp | X21: =INDEX('mf3'!$B$27:$B$51,MATCH('mf1'!B46,'mf3'!$B$27:$B$51,0),1) ->  | Y21: =INDEX('mf3'!$B$27:$G$51,MATCH('mf1'!B46,'mf3'!$B$27:$B$51,0),6) ->  | Z21: =IF(ISERROR(INDEX('mf3'!$B$27:$B$51,MATCH('mf1'!B46,'mf3'!$B$27:$B$51,0),1)),0,1) -> 0 | AA21: =INDEX('mf1'!$B$27:$B$51,MATCH('mf3'!B46,'mf1'!$B$27:$B$51,0),1) ->  | AB21: =INDEX('mf1'!$B$27:$G$51,MATCH('mf3'!B46,'mf1'!$B$27:$B$51,0),6) ->  | AC21: 0
A22: =D2 -> Quantum Long Term Equity | I22: 21 | J22: =INDEX('mf2'!$B$27:$B$51,MATCH('mf1'!B47,'mf2'!$B$27:$B$51,0),1) ->  | K22: =INDEX('mf2'!$B$27:$G$51,MATCH('mf1'!B47,'mf2'!$B$27:$B$51,0),6) ->  | L22: =IF(ISERROR(INDEX('mf2'!$B$27:$B$51,MATCH('mf1'!B47,'mf2'!$B$27:$B$51,0),1)),0,1) -> 0 | M22: =INDEX('mf1'!$B$27:$B$51,MATCH('mf2'!B47,'mf1'!$B$27:$B$51,0),1) ->  | N22: =INDEX('mf1'!$B$27:$G$51,MATCH('mf2'!B47,'mf1'!$B$27:$B$51,0),6) ->  | O22: 0 | Q22: =INDEX('mf3'!$B$27:$B$51,MATCH('mf2'!B47,'mf3'!$B$27:$B$51,0),1) -> Hero Motocorp | R22: =INDEX('mf3'!$B$27:$G$51,MATCH('mf2'!B47,'mf3'!$B$27:$B$51,0),6) -> 2.88 | S22: =IF(ISERROR(INDEX('mf3'!$B$27:$B$51,MATCH('mf2'!B47,'mf3'!$B$27:$B$51,0),1)),0,1) -> 1 | T22: =INDEX('mf2'!$B$27:$B$51,MATCH('mf3'!B47,'mf2'!$B$27:$B$51,0),1) ->  | U22: =INDEX('mf2'!$B$27:$G$51,MATCH('mf3'!B47,'mf2'!$B$27:$B$51,0),6) ->  | V22: Hero Motocorp | X22: =INDEX('mf3'!$B$27:$B$51,MATCH('mf1'!B47,'mf3'!$B$27:$B$51,0),1) ->  | Y22: =INDEX('mf3'!$B$27:$G$51,MATCH('mf1'!B47,'mf3'!$B$27:$B$51,0),6) ->  | Z22: =IF(ISERROR(INDEX('mf3'!$B$27:$B$51,MATCH('mf1'!B47,'mf3'!$B$27:$B$51,0),1)),0,1) -> 0 | AA22: =INDEX('mf1'!$B$27:$B$51,MATCH('mf3'!B47,'mf1'!$B$27:$B$51,0),1) ->  | AB22: =INDEX('mf1'!$B$27:$G$51,MATCH('mf3'!B47,'mf1'!$B$27:$B$51,0),6) ->  | AC22: 0
I23: 22 | J23: =INDEX('mf2'!$B$27:$B$51,MATCH('mf1'!B48,'mf2'!$B$27:$B$51,0),1) ->  | K23: =INDEX('mf2'!$B$27:$G$51,MATCH('mf1'!B48,'mf2'!$B$27:$B$51,0),6) ->  | L23: =IF(ISERROR(INDEX('mf2'!$B$27:$B$51,MATCH('mf1'!B48,'mf2'!$B$27:$B$51,0),1)),0,1) -> 0 | M23: =INDEX('mf1'!$B$27:$B$51,MATCH('mf2'!B48,'mf1'!$B$27:$B$51,0),1) ->  | N23: =INDEX('mf1'!$B$27:$G$51,MATCH('mf2'!B48,'mf1'!$B$27:$B$51,0),6) ->  | O23: 0 | Q23: =INDEX('mf3'!$B$27:$B$51,MATCH('mf2'!B48,'mf3'!$B$27:$B$51,0),1) ->  | R23: =INDEX('mf3'!$B$27:$G$51,MATCH('mf2'!B48,'mf3'!$B$27:$B$51,0),6) ->  | S23: =IF(ISERROR(INDEX('mf3'!$B$27:$B$51,MATCH('mf2'!B48,'mf3'!$B$27:$B$51,0),1)),0,1) -> 0 | T23: =INDEX('mf2'!$B$27:$B$51,MATCH('mf3'!B48,'mf2'!$B$27:$B$51,0),1) ->  | U23: =INDEX('mf2'!$B$27:$G$51,MATCH('mf3'!B48,'mf2'!$B$27:$B$51,0),6) ->  | V23: ACC | X23: =INDEX('mf3'!$B$27:$B$51,MATCH('mf1'!B48,'mf3'!$B$27:$B$51,0),1) ->  | Y23: =INDEX('mf3'!$B$27:$G$51,MATCH('mf1'!B48,'mf3'!$B$27:$B$51,0),6) ->  | Z23: =IF(ISERROR(INDEX('mf3'!$B$27:$B$51,MATCH('mf1'!B48,'mf3'!$B$27:$B$51,0),1)),0,1) -> 0 | AA23: =INDEX('mf1'!$B$27:$B$51,MATCH('mf3'!B48,'mf1'!$B$27:$B$51,0),1) -> PTC India | AB23: =INDEX('mf1'!$B$27:$G$51,MATCH('mf3'!B48,'mf1'!$B$27:$B$51,0),6) -> 1.85 | AC23: 0
A24: =C2 -> Franklin India Bluechip | B24: =SUM(S2:S26)/25 -> 0.28 | I24: 23 | J24: =INDEX('mf2'!$B$27:$B$51,MATCH('mf1'!B49,'mf2'!$B$27:$B$51,0),1) ->  | K24: =INDEX('mf2'!$B$27:$G$51,MATCH('mf1'!B49,'mf2'!$B$27:$B$51,0),6) ->  | L24: =IF(ISERROR(INDEX('mf2'!$B$27:$B$51,MATCH('mf1'!B49,'mf2'!$B$27:$B$51,0),1)),0,1) -> 0 | M24: =INDEX('mf1'!$B$27:$B$51,MATCH('mf2'!B49,'mf1'!$B$27:$B$51,0),1) -> Asian Paints | N24: =INDEX('mf1'!$B$27:$G$51,MATCH('mf2'!B49,'mf1'!$B$27:$B$51,0),6) -> 3.27 | O24: 0 | Q24: =INDEX('mf3'!$B$27:$B$51,MATCH('mf2'!B49,'mf3'!$B$27:$B$51,0),1) ->  | R24: =INDEX('mf3'!$B$27:$G$51,MATCH('mf2'!B49,'mf3'!$B$27:$B$51,0),6) ->  | S24: =IF(ISERROR(INDEX('mf3'!$B$27:$B$51,MATCH('mf2'!B49,'mf3'!$B$27:$B$51,0),1)),0,1) -> 0 | T24: =INDEX('mf2'!$B$27:$B$51,MATCH('mf3'!B49,'mf2'!$B$27:$B$51,0),1) ->  | U24: =INDEX('mf2'!$B$27:$G$51,MATCH('mf3'!B49,'mf2'!$B$27:$B$51,0),6) ->  | V24: ACC | X24: =INDEX('mf3'!$B$27:$B$51,MATCH('mf1'!B49,'mf3'!$B$27:$B$51,0),1) ->  | Y24: =INDEX('mf3'!$B$27:$G$51,MATCH('mf1'!B49,'mf3'!$B$27:$B$51,0),6) ->  | Z24: =IF(ISERROR(INDEX('mf3'!$B$27:$B$51,MATCH('mf1'!B49,'mf3'!$B$27:$B$51,0),1)),0,1) -> 0 | AA24: =INDEX('mf1'!$B$27:$B$51,MATCH('mf3'!B49,'mf1'!$B$27:$B$51,0),1) ->  | AB24: =INDEX('mf1'!$B$27:$G$51,MATCH('mf3'!B49,'mf1'!$B$27:$B$51,0),6) ->  | AC24: 0
A25: =D2 -> Quantum Long Term Equity | I25: 24 | J25: =INDEX('mf2'!$B$27:$B$51,MATCH('mf1'!B50,'mf2'!$B$27:$B$51,0),1) ->  | K25: =INDEX('mf2'!$B$27:$G$51,MATCH('mf1'!B50,'mf2'!$B$27:$B$51,0),6) ->  | L25: =IF(ISERROR(INDEX('mf2'!$B$27:$B$51,MATCH('mf1'!B50,'mf2'!$B$27:$B$51,0),1)),0,1) -> 0 | M25: =INDEX('mf1'!$B$27:$B$51,MATCH('mf2'!B50,'mf1'!$B$27:$B$51,0),1) ->  | N25: =INDEX('mf1'!$B$27:$G$51,MATCH('mf2'!B50,'mf1'!$B$27:$B$51,0),6) ->  | O25: 0 | Q25: =INDEX('mf3'!$B$27:$B$51,MATCH('mf2'!B50,'mf3'!$B$27:$B$51,0),1) ->  | R25: =INDEX('mf3'!$B$27:$G$51,MATCH('mf2'!B50,'mf3'!$B$27:$B$51,0),6) ->  | S25: =IF(ISERROR(INDEX('mf3'!$B$27:$B$51,MATCH('mf2'!B50,'mf3'!$B$27:$B$51,0),1)),0,1) -> 0 | T25: =INDEX('mf2'!$B$27:$B$51,MATCH('mf3'!B50,'mf2'!$B$27:$B$51,0),1) ->  | U25: =INDEX('mf2'!$B$27:$G$51,MATCH('mf3'!B50,'mf2'!$B$27:$B$51,0),6) ->  | V25: ACC | X25: =INDEX('mf3'!$B$27:$B$51,MATCH('mf1'!B50,'mf3'!$B$27:$B$51,0),1) ->  | Y25: =INDEX('mf3'!$B$27:$G$51,MATCH('mf1'!B50,'mf3'!$B$27:$B$51,0),6) ->  | Z25: =IF(ISERROR(INDEX('mf3'!$B$27:$B$51,MATCH('mf1'!B50,'mf3'!$B$27:$B$51,0),1)),0,1) -> 0 | AA25: =INDEX('mf1'!$B$27:$B$51,MATCH('mf3'!B50,'mf1'!$B$27:$B$51,0),1) ->  | AB25: =INDEX('mf1'!$B$27:$G$51,MATCH('mf3'!B50,'mf1'!$B$27:$B$51,0),6) ->  | AC25: 0
I26: 25 | J26: =INDEX('mf2'!$B$27:$B$51,MATCH('mf1'!B51,'mf2'!$B$27:$B$51,0),1) ->  | K26: =INDEX('mf2'!$B$27:$G$51,MATCH('mf1'!B51,'mf2'!$B$27:$B$51,0),6) ->  | L26: =IF(ISERROR(INDEX('mf2'!$B$27:$B$51,MATCH('mf1'!B51,'mf2'!$B$27:$B$51,0),1)),0,1) -> 0 | M26: =INDEX('mf1'!$B$27:$B$51,MATCH('mf2'!B51,'mf1'!$B$27:$B$51,0),1) ->  | N26: =INDEX('mf1'!$B$27:$G$51,MATCH('mf2'!B51,'mf1'!$B$27:$B$51,0),6) ->  | O26: 0 | Q26: =INDEX('mf3'!$B$27:$B$51,MATCH('mf2'!B51,'mf3'!$B$27:$B$51,0),1) -> ACC | R26: =INDEX('mf3'!$B$27:$G$51,MATCH('mf2'!B51,'mf3'!$B$27:$B$51,0),6) -> 3.63 | S26: =IF(ISERROR(INDEX('mf3'!$B$27:$B$51,MATCH('mf2'!B51,'mf3'!$B$27:$B$51,0),1)),0,1) -> 1 | T26: =INDEX('mf2'!$B$27:$B$51,MATCH('mf3'!B51,'mf2'!$B$27:$B$51,0),1) ->  | U26: =INDEX('mf2'!$B$27:$G$51,MATCH('mf3'!B51,'mf2'!$B$27:$B$51,0),6) ->  | V26: ACC | X26: =INDEX('mf3'!$B$27:$B$51,MATCH('mf1'!B51,'mf3'!$B$27:$B$51,0),1) ->  | Y26: =INDEX('mf3'!$B$27:$G$51,MATCH('mf1'!B51,'mf3'!$B$27:$B$51,0),6) ->  | Z26: =IF(ISERROR(INDEX('mf3'!$B$27:$B$51,MATCH('mf1'!B51,'mf3'!$B$27:$B$51,0),1)),0,1) -> 0 | AA26: =INDEX('mf1'!$B$27:$B$51,MATCH('mf3'!B51,'mf1'!$B$27:$B$51,0),1) ->  | AB26: =INDEX('mf1'!$B$27:$G$51,MATCH('mf3'!B51,'mf1'!$B$27:$B$51,0),6) ->  | AC26: 0
A27: Sector-wise allocation (data is given below the chart)
A45: Sector | B45: =B2 -> IDFC Premier Equity Direct | C45: =C2 -> Franklin India Bluechip | D45: =D2 -> Quantum Long Term Equity
A46: Automobile | B46: =SUMIF('mf1'!$C$27:$G$146,A46,'mf1'!$G$27:$G$146) -> 5.38 | C46: =SUMIF('mf2'!$C$27:$G$146,A46,'mf2'!$G$27:$G$146) -> 1.61 | D46: =SUMIF('mf3'!$C$27:$G$146,A46,'mf3'!$G$27:$G$146) -> 12.59
A47: Chemicals | B47: =SUMIF('mf1'!$C$27:$G$146,A47,'mf1'!$G$27:$G$146) -> 5.6 | C47: =SUMIF('mf2'!$C$27:$G$146,A47,'mf2'!$G$27:$G$146) -> 1.52 | D47: =SUMIF('mf3'!$C$27:$G$146,A47,'mf3'!$G$27:$G$146) -> 3.25
A48: Communication | B48: =SUMIF('mf1'!$C$27:$G$146,A48,'mf1'!$G$27:$G$146) -> 0 | C48: =SUMIF('mf2'!$C$27:$G$146,A48,'mf2'!$G$27:$G$146) -> 8.13 | D48: =SUMIF('mf3'!$C$27:$G$146,A48,'mf3'!$G$27:$G$146) -> 0
A49: Construction | B49: =SUMIF('mf1'!$C$27:$G$146,A49,'mf1'!$G$27:$G$146) -> 0 | C49: =SUMIF('mf2'!$C$27:$G$146,A49,'mf2'!$G$27:$G$146) -> 1.46 | D49: =SUMIF('mf3'!$C$27:$G$146,A49,'mf3'!$G$27:$G$146) -> 3.63
A50: Diversified | B50: =SUMIF('mf1'!$C$27:$G$146,A50,'mf1'!$G$27:$G$146) -> 0 | C50: =SUMIF('mf2'!$C$27:$G$146,A50,'mf2'!$G$27:$G$146) -> 5.44 | D50: =SUMIF('mf3'!$C$27:$G$146,A50,'mf3'!$G$27:$G$146) -> 2.31
A51: Energy | B51: =SUMIF('mf1'!$C$27:$G$146,A51,'mf1'!$G$27:$G$146) -> 6.58 | C51: =SUMIF('mf2'!$C$27:$G$146,A51,'mf2'!$G$27:$G$146) -> 16.75 | D51: =SUMIF('mf3'!$C$27:$G$146,A51,'mf3'!$G$27:$G$146) -> 16.03
A52: Engineering | B52: =SUMIF('mf1'!$C$27:$G$146,A52,'mf1'!$G$27:$G$146) -> 5.35 | C52: =SUMIF('mf2'!$C$27:$G$146,A52,'mf2'!$G$27:$G$146) -> 0 | D52: =SUMIF('mf3'!$C$27:$G$146,A52,'mf3'!$G$27:$G$146) -> 7.13
A53: Financial | B53: =SUMIF('mf1'!$C$27:$G$146,A53,'mf1'!$G$27:$G$146) -> 3.83 | C53: =SUMIF('mf2'!$C$27:$G$146,A53,'mf2'!$G$27:$G$146) -> 21.99 | D53: =SUMIF('mf3'!$C$27:$G$146,A53,'mf3'!$G$27:$G$146) -> 13.39
A54: FMCG | B54: =SUMIF('mf1'!$C$27:$G$146,A54,'mf1'!$G$27:$G$146) -> 14.78 | C54: =SUMIF('mf2'!$C$27:$G$146,A54,'mf2'!$G$27:$G$146) -> 0 | D54: =SUMIF('mf3'!$C$27:$G$146,A54,'mf3'!$G$27:$G$146) -> 0
A55: Healthcare | B55: =SUMIF('mf1'!$C$27:$G$146,A55,'mf1'!$G$27:$G$146) -> 0 | C55: =SUMIF('mf2'!$C$27:$G$146,A55,'mf2'!$G$27:$G$146) -> 9.58 | D55: =SUMIF('mf3'!$C$27:$G$146,A55,'mf3'!$G$27:$G$146) -> 0
A56: Metals | B56: =SUMIF('mf1'!$C$27:$G$146,A56,'mf1'!$G$27:$G$146) -> 0 | C56: =SUMIF('mf2'!$C$27:$G$146,A56,'mf2'!$G$27:$G$146) -> 0 | D56: =SUMIF('mf3'!$C$27:$G$146,A56,'mf3'!$G$27:$G$146) -> 2.12
A57: Services | B57: =SUMIF('mf1'!$C$27:$G$146,A57,'mf1'!$G$27:$G$146) -> 18.76 | C57: =SUMIF('mf2'!$C$27:$G$146,A57,'mf2'!$G$27:$G$146) -> 0 | D57: =SUMIF('mf3'!$C$27:$G$146,A57,'mf3'!$G$27:$G$146) -> 8
A58: Technology | B58: =SUMIF('mf1'!$C$27:$G$146,A58,'mf1'!$G$27:$G$146) -> 1.52 | C58: =SUMIF('mf2'!$C$27:$G$146,A58,'mf2'!$G$27:$G$146) -> 13.13 | D58: =SUMIF('mf3'!$C$27:$G$146,A58,'mf3'!$G$27:$G$146) -> 8.52
A59: Others | B59: =SUMIF('mf1'!$C$27:$G$146,A59,'mf1'!$G$27:$G$146) -> 0 | C59: =SUMIF('mf2'!$C$27:$G$146,A59,'mf2'!$G$27:$G$146) -> 3.59 | D59: =SUMIF('mf3'!$C$27:$G$146,A59,'mf3'!$G$27:$G$146) -> 0
A60: Textiles | B60: =SUMIF('mf1'!$C$27:$G$146,A60,'mf1'!$G$27:$G$146) -> 6.9 | C60: =SUMIF('mf2'!$C$27:$G$146,A60,'mf2'!$G$27:$G$146) -> 0 | D60: =SUMIF('mf3'!$C$27:$G$146,A60,'mf3'!$G$27:$G$146) -> 0
A61: Cons Durable | B61: =SUMIF('mf1'!$C$27:$G$146,A61,'mf1'!$G$27:$G$146) -> 0 | C61: =SUMIF('mf2'!$C$27:$G$146,A61,'mf2'!$G$27:$G$146) -> 0 | D61: =SUMIF('mf3'!$C$27:$G$146,A61,'mf3'!$G$27:$G$146) -> 3.63

Sheet Results-advanced
A1: Common Stocks (% in equity folio) | B1: ='Results-simple'!C2 -> Franklin India Bluechip | C1: ='Results-simple'!B2 -> IDFC Premier Equity Direct | E1: Common Stocks (% in equity folio) | F1: ='Results-simple'!D2 -> Quantum Long Term Equity | G1: ='Results-simple'!C2 -> Franklin India Bluechip | L1: =IF(M1="",IF(M2="",IF(M3="",IF(M4="",IF(M5="",IF(M6="",IF(M7="",IF(M8="",IF(M9="",IF(M10="",IF(M11="",IF(M12="",IF(M13="",IF(M14="",IF(M15="",IF(M16="",IF(M17="",IF(M18="",IF(M19="",IF(M20="",IF(M21="",IF(M22="",IF(M23="",IF(M24="",IF(M25="",IF(M26="",M27,M26),M25),M24),M23),M22),M21),M20),M19),M18),M17),M16),M15),M14),M13),M12),M11),M10),M9),M8),M7),M6),M5),M4),M3),M2),M1) -> 0 | M1: =IF(ISERROR(INDEX($E$2:$E$26,MATCH(A2,$E$2:$E$26,0),1)),"",INDEX($E$2:$E$26,MATCH(A2,$E$2:$E$26,0),1)) -> 
A2: =INDEX(mutualfund2s,MATCH(0,COUNTIF($A$1:A1,mutualfund2s),0)) -> Asian Paints | B2: =IF(ISERROR(A2),"",IF(A2=0,"",INDEX(mf2port,MATCH(A2,\,0),2))) -> 1.52 | C2: =IF(ISERROR(A2),"",IF(A2=0,"",INDEX(mf1port,MATCH(A2,'Results-simple'!$M$2:$M$26,0),2))) -> 3.27 | E2: =INDEX(mutualfund3s,MATCH(0,COUNTIF($E$1:E1,mutualfund3s),0)) -> Infosys | F2: =IF(ISERROR(E2),"",IF(E2=0,"",INDEX(mf3port,MATCH(E2,mf3stocks,0),2))) -> 5.05 | G2: =IF(ISERROR(E2),"",IF(E2=0,"",INDEX(mf2port2,MATCH(E2,'Results-simple'!$T$2:$T$26,0),2))) -> 9.79 | K2: =INDEX(common3,MATCH(0,COUNTIF($K$1:K1,common3),0)) -> 0 | L2: =IF(M2="",IF(M3="",IF(M4="",IF(M5="",IF(M6="",IF(M7="",IF(M8="",IF(M9="",IF(M10="",IF(M11="",IF(M12="",IF(M13="",IF(M14="",IF(M15="",IF(M16="",IF(M17="",IF(M18="",IF(M19="",IF(M20="",IF(M21="",IF(M22="",IF(M23="",IF(M24="",IF(M25="",IF(M26="",IF(M27="",M28,M27),M26),M25),M24),M23),M22),M21),M20),M19),M18),M17),M16),M15),M14),M13),M12),M11),M10),M9),M8),M7),M6),M5),M4),M3),M2) -> 0
A3: =INDEX(mutualfund2s,MATCH(0,COUNTIF($A$1:A2,mutualfund2s),0)) -> HDFC Bank | B3: 5.68 | C3: =IF(ISERROR(A3),"",IF(A3=0,"",INDEX(mf1port,MATCH(A3,'Results-simple'!$M$2:$M$26,0),2))) -> 1.93 | E3: =INDEX(mutualfund3s,MATCH(0,COUNTIF($E$1:E2,mutualfund3s),0)) -> ONGC | F3: 3.62 | G3: =IF(ISERROR(E3),"",IF(E3=0,"",INDEX(mf2port2,MATCH(E3,'Results-simple'!$T$2:$T$26,0),2))) -> 2.88 | K3: =INDEX(common3,MATCH(0,COUNTIF($K$1:K2,common3),0)) ->  | L3: 0
A4: =INDEX(mutualfund2s,MATCH(0,COUNTIF($A$1:A3,mutualfund2s),0)) -> 0 | C4: =IF(ISERROR(A4),"",IF(A4=0,"",INDEX(mf1port,MATCH(A4,'Results-simple'!$M$2:$M$26,0),2))) ->  | E4: =INDEX(mutualfund3s,MATCH(0,COUNTIF($E$1:E3,mutualfund3s),0)) -> NTPC | F4: 2.29 | G4: =IF(ISERROR(E4),"",IF(E4=0,"",INDEX(mf2port2,MATCH(E4,'Results-simple'!$T$2:$T$26,0),2))) -> 2.8 | K4: =INDEX(common3,MATCH(0,COUNTIF($K$1:K3,common3),0)) ->  | L4: 0
A5: =INDEX(mutualfund2s,MATCH(0,COUNTIF($A$1:A4,mutualfund2s),0)) ->  | C5: =IF(ISERROR(A5),"",IF(A5=0,"",INDEX(mf1port,MATCH(A5,'Results-simple'!$M$2:$M$26,0),2))) ->  | E5: =INDEX(mutualfund3s,MATCH(0,COUNTIF($E$1:E4,mutualfund3s),0)) -> Larsen & Toubro | F5: 2.31 | G5: =IF(ISERROR(E5),"",IF(E5=0,"",INDEX(mf2port2,MATCH(E5,'Results-simple'!$T$2:$T$26,0),2))) -> 2.12 | K5: =INDEX(common3,MATCH(0,COUNTIF($K$1:K4,common3),0)) ->  | L5: 0
A6: =INDEX(mutualfund2s,MATCH(0,COUNTIF($A$1:A5,mutualfund2s),0)) ->  | C6: =IF(ISERROR(A6),"",IF(A6=0,"",INDEX(mf1port,MATCH(A6,'Results-simple'!$M$2:$M$26,0),2))) ->  | E6: =INDEX(mutualfund3s,MATCH(0,COUNTIF($E$1:E5,mutualfund3s),0)) -> HDFC | F6: 5.61 | G6: =IF(ISERROR(E6),"",IF(E6=0,"",INDEX(mf2port2,MATCH(E6,'Results-simple'!$T$2:$T$26,0),2))) -> 2.09 | K6: =INDEX(common3,MATCH(0,COUNTIF($K$1:K5,common3),0)) ->  | L6: 0
A7: =INDEX(mutualfund2s,MATCH(0,COUNTIF($A$1:A6,mutualfund2s),0)) ->  | C7: =IF(ISERROR(A7),"",IF(A7=0,"",INDEX(mf1port,MATCH(A7,'Results-simple'!$M$2:$M$26,0),2))) ->  | E7: =INDEX(mutualfund3s,MATCH(0,COUNTIF($E$1:E6,mutualfund3s),0)) -> Hero Motocorp | F7: 2.88 | G7: =IF(ISERROR(E7),"",IF(E7=0,"",INDEX(mf2port2,MATCH(E7,'Results-simple'!$T$2:$T$26,0),2))) -> 1.61 | K7: =INDEX(common3,MATCH(0,COUNTIF($K$1:K6,common3),0)) ->  | L7: 0
A8: =INDEX(mutualfund2s,MATCH(0,COUNTIF($A$1:A7,mutualfund2s),0)) ->  | C8: =IF(ISERROR(A8),"",IF(A8=0,"",INDEX(mf1port,MATCH(A8,'Results-simple'!$M$2:$M$26,0),2))) ->  | E8: =INDEX(mutualfund3s,MATCH(0,COUNTIF($E$1:E7,mutualfund3s),0)) -> ACC | F8: 3.63 | G8: =IF(ISERROR(E8),"",IF(E8=0,"",INDEX(mf2port2,MATCH(E8,'Results-simple'!$T$2:$T$26,0),2))) -> 1.46 | K8: =INDEX(common3,MATCH(0,COUNTIF($K$1:K7,common3),0)) ->  | L8: 0
A9: =INDEX(mutualfund2s,MATCH(0,COUNTIF($A$1:A8,mutualfund2s),0)) ->  | C9: =IF(ISERROR(A9),"",IF(A9=0,"",INDEX(mf1port,MATCH(A9,'Results-simple'!$M$2:$M$26,0),2))) ->  | E9: =INDEX(mutualfund3s,MATCH(0,COUNTIF($E$1:E8,mutualfund3s),0)) ->  | G9: =IF(ISERROR(E9),"",IF(E9=0,"",INDEX(mf2port2,MATCH(E9,'Results-simple'!$T$2:$T$26,0),2))) ->  | K9: =INDEX(common3,MATCH(0,COUNTIF($K$1:K8,common3),0)) ->  | L9: 0
A10: =INDEX(mutualfund2s,MATCH(0,COUNTIF($A$1:A9,mutualfund2s),0)) ->  | C10: =IF(ISERROR(A10),"",IF(A10=0,"",INDEX(mf1port,MATCH(A10,'Results-simple'!$M$2:$M$26,0),2))) ->  | E10: =INDEX(mutualfund3s,MATCH(0,COUNTIF($E$1:E9,mutualfund3s),0)) ->  | G10: =IF(ISERROR(E10),"",IF(E10=0,"",INDEX(mf2port2,MATCH(E10,'Results-simple'!$T$2:$T$26,0),2))) ->  | K10: =INDEX(common3,MATCH(0,COUNTIF($K$1:K9,common3),0)) ->  | L10: 0
A11: =INDEX(mutualfund2s,MATCH(0,COUNTIF($A$1:A10,mutualfund2s),0)) ->  | C11: =IF(ISERROR(A11),"",IF(A11=0,"",INDEX(mf1port,MATCH(A11,'Results-simple'!$M$2:$M$26,0),2))) ->  | E11: =INDEX(mutualfund3s,MATCH(0,COUNTIF($E$1:E10,mutualfund3s),0)) ->  | G11: =IF(ISERROR(E11),"",IF(E11=0,"",INDEX(mf2port2,MATCH(E11,'Results-simple'!$T$2:$T$26,0),2))) ->  | K11: =INDEX(common3,MATCH(0,COUNTIF($K$1:K10,common3),0)) ->  | L11: 0
A12: =INDEX(mutualfund2s,MATCH(0,COUNTIF($A$1:A11,mutualfund2s),0)) ->  | C12: =IF(ISERROR(A12),"",IF(A12=0,"",INDEX(mf1port,MATCH(A12,'Results-simple'!$M$2:$M$26,0),2))) ->  | E12: =INDEX(mutualfund3s,MATCH(0,COUNTIF($E$1:E11,mutualfund3s),0)) ->  | G12: =IF(ISERROR(E12),"",IF(E12=0,"",INDEX(mf2port2,MATCH(E12,'Results-simple'!$T$2:$T$26,0),2))) ->  | K12: =INDEX(common3,MATCH(0,COUNTIF($K$1:K11,common3),0)) ->  | L12: 0
A13: =INDEX(mutualfund2s,MATCH(0,COUNTIF($A$1:A12,mutualfund2s),0)) ->  | C13: =IF(ISERROR(A13),"",IF(A13=0,"",INDEX(mf1port,MATCH(A13,'Results-simple'!$M$2:$M$26,0),2))) ->  | E13: =INDEX(mutualfund3s,MATCH(0,COUNTIF($E$1:E12,mutualfund3s),0)) ->  | G13: =IF(ISERROR(E13),"",IF(E13=0,"",INDEX(mf2port2,MATCH(E13,'Results-simple'!$T$2:$T$26,0),2))) ->  | K13: =INDEX(common3,MATCH(0,COUNTIF($K$1:K12,common3),0)) ->  | L13: 0
A14: =INDEX(mutualfund2s,MATCH(0,COUNTIF($A$1:A13,mutualfund2s),0)) ->  | C14: =IF(ISERROR(A14),"",IF(A14=0,"",INDEX(mf1port,MATCH(A14,'Results-simple'!$M$2:$M$26,0),2))) ->  | E14: =INDEX(mutualfund3s,MATCH(0,COUNTIF($E$1:E13,mutualfund3s),0)) ->  | G14: =IF(ISERROR(E14),"",IF(E14=0,"",INDEX(mf2port2,MATCH(E14,'Results-simple'!$T$2:$T$26,0),2))) ->  | K14: =INDEX(common3,MATCH(0,COUNTIF($K$1:K13,common3),0)) ->  | L14: 0
A15: =INDEX(mutualfund2s,MATCH(0,COUNTIF($A$1:A14,mutualfund2s),0)) ->  | C15: =IF(ISERROR(A15),"",IF(A15=0,"",INDEX(mf1port,MATCH(A15,'Results-simple'!$M$2:$M$26,0),2))) ->  | E15: =INDEX(mutualfund3s,MATCH(0,COUNTIF($E$1:E14,mutualfund3s),0)) ->  | G15: =IF(ISERROR(E15),"",IF(E15=0,"",INDEX(mf2port2,MATCH(E15,'Results-simple'!$T$2:$T$26,0),2))) ->  | K15: =INDEX(common3,MATCH(0,COUNTIF($K$1:K14,common3),0)) ->  | L15: 0
A16: =INDEX(mutualfund2s,MATCH(0,COUNTIF($A$1:A15,mutualfund2s),0)) ->  | C16: =IF(ISERROR(A16),"",IF(A16=0,"",INDEX(mf1port,MATCH(A16,'Results-simple'!$M$2:$M$26,0),2))) ->  | E16: =INDEX(mutualfund3s,MATCH(0,COUNTIF($E$1:E15,mutualfund3s),0)) ->  | G16: =IF(ISERROR(E16),"",IF(E16=0,"",INDEX(mf2port2,MATCH(E16,'Results-simple'!$T$2:$T$26,0),2))) ->  | K16: =INDEX(common3,MATCH(0,COUNTIF($K$1:K15,common3),0)) ->  | L16: 0
A17: =INDEX(mutualfund2s,MATCH(0,COUNTIF($A$1:A16,mutualfund2s),0)) ->  | C17: =IF(ISERROR(A17),"",IF(A17=0,"",INDEX(mf1port,MATCH(A17,'Results-simple'!$M$2:$M$26,0),2))) ->  | E17: =INDEX(mutualfund3s,MATCH(0,COUNTIF($E$1:E16,mutualfund3s),0)) ->  | G17: =IF(ISERROR(E17),"",IF(E17=0,"",INDEX(mf2port2,MATCH(E17,'Results-simple'!$T$2:$T$26,0),2))) ->  | K17: =INDEX(common3,MATCH(0,COUNTIF($K$1:K16,common3),0)) ->  | L17: 0
A18: =INDEX(mutualfund2s,MATCH(0,COUNTIF($A$1:A17,mutualfund2s),0)) ->  | C18: =IF(ISERROR(A18),"",IF(A18=0,"",INDEX(mf1port,MATCH(A18,'Results-simple'!$M$2:$M$26,0),2))) ->  | E18: =INDEX(mutualfund3s,MATCH(0,COUNTIF($E$1:E17,mutualfund3s),0)) ->  | G18: =IF(ISERROR(E18),"",IF(E18=0,"",INDEX(mf2port2,MATCH(E18,'Results-simple'!$T$2:$T$26,0),2))) ->  | K18: =INDEX(common3,MATCH(0,COUNTIF($K$1:K17,common3),0)) ->  | L18: 0
A19: =INDEX(mutualfund2s,MATCH(0,COUNTIF($A$1:A18,mutualfund2s),0)) ->  | C19: =IF(ISERROR(A19),"",IF(A19=0,"",INDEX(mf1port,MATCH(A19,'Results-simple'!$M$2:$M$26,0),2))) ->  | E19: =INDEX(mutualfund3s,MATCH(0,COUNTIF($E$1:E18,mutualfund3s),0)) ->  | G19: =IF(ISERROR(E19),"",IF(E19=0,"",INDEX(mf2port2,MATCH(E19,'Results-simple'!$T$2:$T$26,0),2))) ->  | K19: =INDEX(common3,MATCH(0,COUNTIF($K$1:K18,common3),0)) ->  | L19: 0
A20: =INDEX(mutualfund2s,MATCH(0,COUNTIF($A$1:A19,mutualfund2s),0)) ->  | C20: =IF(ISERROR(A20),"",IF(A20=0,"",INDEX(mf1port,MATCH(A20,'Results-simple'!$M$2:$M$26,0),2))) ->  | E20: =INDEX(mutualfund3s,MATCH(0,COUNTIF($E$1:E19,mutualfund3s),0)) ->  | G20: =IF(ISERROR(E20),"",IF(E20=0,"",INDEX(mf2port2,MATCH(E20,'Results-simple'!$T$2:$T$26,0),2))) ->  | K20: =INDEX(common3,MATCH(0,COUNTIF($K$1:K19,common3),0)) ->  | L20: 0
A21: =INDEX(mutualfund2s,MATCH(0,COUNTIF($A$1:A20,mutualfund2s),0)) ->  | C21: =IF(ISERROR(A21),"",IF(A21=0,"",INDEX(mf1port,MATCH(A21,'Results-simple'!$M$2:$M$26,0),2))) ->  | E21: =INDEX(mutualfund3s,MATCH(0,COUNTIF($E$1:E20,mutualfund3s),0)) ->  | G21: =IF(ISERROR(E21),"",IF(E21=0,"",INDEX(mf2port2,MATCH(E21,'Results-simple'!$T$2:$T$26,0),2))) ->  | K21: =INDEX(common3,MATCH(0,COUNTIF($K$1:K20,common3),0)) ->  | L21: 0
A22: =INDEX(mutualfund2s,MATCH(0,COUNTIF($A$1:A21,mutualfund2s),0)) ->  | C22: =IF(ISERROR(A22),"",IF(A22=0,"",INDEX(mf1port,MATCH(A22,'Results-simple'!$M$2:$M$26,0),2))) ->  | E22: =INDEX(mutualfund3s,MATCH(0,COUNTIF($E$1:E21,mutualfund3s),0)) ->  | G22: =IF(ISERROR(E22),"",IF(E22=0,"",INDEX(mf2port2,MATCH(E22,'Results-simple'!$T$2:$T$26,0),2))) ->  | K22: =INDEX(common3,MATCH(0,COUNTIF($K$1:K21,common3),0)) ->  | L22: 0
A23: =INDEX(mutualfund2s,MATCH(0,COUNTIF($A$1:A22,mutualfund2s),0)) ->  | C23: =IF(ISERROR(A23),"",IF(A23=0,"",INDEX(mf1port,MATCH(A23,'Results-simple'!$M$2:$M$26,0),2))) ->  | E23: =INDEX(mutualfund3s,MATCH(0,COUNTIF($E$1:E22,mutualfund3s),0)) ->  | G23: =IF(ISERROR(E23),"",IF(E23=0,"",INDEX(mf2port2,MATCH(E23,'Results-simple'!$T$2:$T$26,0),2))) ->  | K23: =INDEX(common3,MATCH(0,COUNTIF($K$1:K22,common3),0)) ->  | L23: 0
A24: =INDEX(mutualfund2s,MATCH(0,COUNTIF($A$1:A23,mutualfund2s),0)) ->  | C24: =IF(ISERROR(A24),"",IF(A24=0,"",INDEX(mf1port,MATCH(A24,'Results-simple'!$M$2:$M$26,0),2))) ->  | E24: =INDEX(mutualfund3s,MATCH(0,COUNTIF($E$1:E23,mutualfund3s),0)) ->  | G24: =IF(ISERROR(E24),"",IF(E24=0,"",INDEX(mf2port2,MATCH(E24,'Results-simple'!$T$2:$T$26,0),2))) ->  | K24: =INDEX(common3,MATCH(0,COUNTIF($K$1:K23,common3),0)) ->  | L24: 0
A25: =INDEX(mutualfund2s,MATCH(0,COUNTIF($A$1:A24,mutualfund2s),0)) ->  | C25: =IF(ISERROR(A25),"",IF(A25=0,"",INDEX(mf1port,MATCH(A25,'Results-simple'!$M$2:$M$26,0),2))) ->  | E25: =INDEX(mutualfund3s,MATCH(0,COUNTIF($E$1:E24,mutualfund3s),0)) ->  | G25: =IF(ISERROR(E25),"",IF(E25=0,"",INDEX(mf2port2,MATCH(E25,'Results-simple'!$T$2:$T$26,0),2))) ->  | K25: =INDEX(common3,MATCH(0,COUNTIF($K$1:K24,common3),0)) ->  | L25: 0
A26: =INDEX(mutualfund2s,MATCH(0,COUNTIF($A$1:A25,mutualfund2s),0)) ->  | C26: =IF(ISERROR(A26),"",IF(A26=0,"",INDEX(mf1port,MATCH(A26,'Results-simple'!$M$2:$M$26,0),2))) ->  | E26: =INDEX(mutualfund3s,MATCH(0,COUNTIF($E$1:E25,mutualfund3s),0)) ->  | G26: =IF(ISERROR(E26),"",IF(E26=0,"",INDEX(mf2port2,MATCH(E26,'Results-simple'!$T$2:$T$26,0),2))) ->  | K26: =INDEX(common3,MATCH(0,COUNTIF($K$1:K25,common3),0)) ->  | L26: 0
K27: =INDEX(common3,MATCH(0,COUNTIF($K$1:K26,common3),0)) -> 
A29: Common Stocks (% in equity folio) | B29: ='Results-simple'!D2 -> Quantum Long Term Equity | C29: ='Results-simple'!B2 -> IDFC Premier Equity Direct | E29: Stocks common to all three funds (if applicable)
A30: =INDEX(mutualfund4s,MATCH(0,COUNTIF($A$29:A29,mutualfund4s),0)) -> GAIL | B30: =IF(ISERROR(A30),"",IF(A30=0,"",INDEX(mf4port,MATCH(A30,mf4stocks,0),2))) -> 2.86 | C30: =IF(ISERROR(A30),"",IF(A30=0,"",INDEX(mf4port4,MATCH(A30,'Results-simple'!$AA$2:$AA$26,0),2))) -> 3 | F30: =IF(ISERROR(K2),"",IF(K2=0,"",K2)) -> 
A31: =INDEX(mutualfund4s,MATCH(0,COUNTIF($A$29:A30,mutualfund4s),0)) -> Container Corp. | B31: 4.14 | C31: =IF(ISERROR(A31),"",IF(A31=0,"",INDEX(mf4port4,MATCH(A31,'Results-simple'!$AA$2:$AA$26,0),2))) -> 2.84 | F31: =IF(ISERROR(K3),"",IF(K3=0,"",K3)) -> 
A32: =INDEX(mutualfund4s,MATCH(0,COUNTIF($A$29:A31,mutualfund4s),0)) -> PTC India | B32: 2.14 | C32: =IF(ISERROR(A32),"",IF(A32=0,"",INDEX(mf4port4,MATCH(A32,'Results-simple'!$AA$2:$AA$26,0),2))) -> 1.85
A33: =INDEX(mutualfund4s,MATCH(0,COUNTIF($A$29:A32,mutualfund4s),0)) -> 0 | C33: =IF(ISERROR(A33),"",IF(A33=0,"",INDEX(mf4port4,MATCH(A33,'Results-simple'!$AA$2:$AA$26,0),2))) -> 
A34: =INDEX(mutualfund4s,MATCH(0,COUNTIF($A$29:A33,mutualfund4s),0)) ->  | C34: =IF(ISERROR(A34),"",IF(A34=0,"",INDEX(mf4port4,MATCH(A34,'Results-simple'!$AA$2:$AA$26,0),2))) -> 
A35: =INDEX(mutualfund4s,MATCH(0,COUNTIF($A$29:A34,mutualfund4s),0)) ->  | C35: =IF(ISERROR(A35),"",IF(A35=0,"",INDEX(mf4port4,MATCH(A35,'Results-simple'!$AA$2:$AA$26,0),2))) -> 
A36: =INDEX(mutualfund4s,MATCH(0,COUNTIF($A$29:A35,mutualfund4s),0)) ->  | C36: =IF(ISERROR(A36),"",IF(A36=0,"",INDEX(mf4port4,MATCH(A36,'Results-simple'!$AA$2:$AA$26,0),2))) -> 
A37: =INDEX(mutualfund4s,MATCH(0,COUNTIF($A$29:A36,mutualfund4s),0)) ->  | C37: =IF(ISERROR(A37),"",IF(A37=0,"",INDEX(mf4port4,MATCH(A37,'Results-simple'!$AA$2:$AA$26,0),2))) -> 
A38: =INDEX(mutualfund4s,MATCH(0,COUNTIF($A$29:A37,mutualfund4s),0)) ->  | C38: =IF(ISERROR(A38),"",IF(A38=0,"",INDEX(mf4port4,MATCH(A38,'Results-simple'!$AA$2:$AA$26,0),2))) -> 
A39: =INDEX(mutualfund4s,MATCH(0,COUNTIF($A$29:A38,mutualfund4s),0)) ->  | C39: =IF(ISERROR(A39),"",IF(A39=0,"",INDEX(mf4port4,MATCH(A39,'Results-simple'!$AA$2:$AA$26,0),2))) -> 
A40: =INDEX(mutualfund4s,MATCH(0,COUNTIF($A$29:A39,mutualfund4s),0)) ->  | C40: =IF(ISERROR(A40),"",IF(A40=0,"",INDEX(mf4port4,MATCH(A40,'Results-simple'!$AA$2:$AA$26,0),2))) -> 
A41: =INDEX(mutualfund4s,MATCH(0,COUNTIF($A$29:A40,mutualfund4s),0)) ->  | C41: =IF(ISERROR(A41),"",IF(A41=0,"",INDEX(mf4port4,MATCH(A41,'Results-simple'!$AA$2:$AA$26,0),2))) -> 
A42: =INDEX(mutualfund4s,MATCH(0,COUNTIF($A$29:A41,mutualfund4s),0)) ->  | C42: =IF(ISERROR(A42),"",IF(A42=0,"",INDEX(mf4port4,MATCH(A42,'Results-simple'!$AA$2:$AA$26,0),2))) -> 
A43: =INDEX(mutualfund4s,MATCH(0,COUNTIF($A$29:A42,mutualfund4s),0)) ->  | C43: =IF(ISERROR(A43),"",IF(A43=0,"",INDEX(mf4port4,MATCH(A43,'Results-simple'!$AA$2:$AA$26,0),2))) -> 
A44: =INDEX(mutualfund4s,MATCH(0,COUNTIF($A$29:A43,mutualfund4s),0)) ->  | C44: =IF(ISERROR(A44),"",IF(A44=0,"",INDEX(mf4port4,MATCH(A44,'Results-simple'!$AA$2:$AA$26,0),2))) -> 
A45: =INDEX(mutualfund4s,MATCH(0,COUNTIF($A$29:A44,mutualfund4s),0)) ->  | C45: =IF(ISERROR(A45),"",IF(A45=0,"",INDEX(mf4port4,MATCH(A45,'Results-simple'!$AA$2:$AA$26,0),2))) -> 
A46: =INDEX(mutualfund4s,MATCH(0,COUNTIF($A$29:A45,mutualfund4s),0)) ->  | C46: =IF(ISERROR(A46),"",IF(A46=0,"",INDEX(mf4port4,MATCH(A46,'Results-simple'!$AA$2:$AA$26,0),2))) -> 
A47: =INDEX(mutualfund4s,MATCH(0,COUNTIF($A$29:A46,mutualfund4s),0)) ->  | C47: =IF(ISERROR(A47),"",IF(A47=0,"",INDEX(mf4port4,MATCH(A47,'Results-simple'!$AA$2:$AA$26,0),2))) -> 
A48: =INDEX(mutualfund4s,MATCH(0,COUNTIF($A$29:A47,mutualfund4s),0)) ->  | C48: =IF(ISERROR(A48),"",IF(A48=0,"",INDEX(mf4port4,MATCH(A48,'Results-simple'!$AA$2:$AA$26,0),2))) -> 
A49: =INDEX(mutualfund4s,MATCH(0,COUNTIF($A$29:A48,mutualfund4s),0)) ->  | C49: =IF(ISERROR(A49),"",IF(A49=0,"",INDEX(mf4port4,MATCH(A49,'Results-simple'!$AA$2:$AA$26,0),2))) -> 
A50: =INDEX(mutualfund4s,MATCH(0,COUNTIF($A$29:A49,mutualfund4s),0)) ->  | C50: =IF(ISERROR(A50),"",IF(A50=0,"",INDEX(mf4port4,MATCH(A50,'Results-simple'!$AA$2:$AA$26,0),2))) -> 
A51: =INDEX(mutualfund4s,MATCH(0,COUNTIF($A$29:A50,mutualfund4s),0)) ->  | C51: =IF(ISERROR(A51),"",IF(A51=0,"",INDEX(mf4port4,MATCH(A51,'Results-simple'!$AA$2:$AA$26,0),2))) -> 
A52: =INDEX(mutualfund4s,MATCH(0,COUNTIF($A$29:A51,mutualfund4s),0)) ->  | C52: =IF(ISERROR(A52),"",IF(A52=0,"",INDEX(mf4port4,MATCH(A52,'Results-simple'!$AA$2:$AA$26,0),2))) -> 
A53: =INDEX(mutualfund4s,MATCH(0,COUNTIF($A$29:A52,mutualfund4s),0)) ->  | C53: =IF(ISERROR(A53),"",IF(A53=0,"",INDEX(mf4port4,MATCH(A53,'Results-simple'!$AA$2:$AA$26,0),2))) -> 
A54: =INDEX(mutualfund4s,MATCH(0,COUNTIF($A$29:A53,mutualfund4s),0)) ->  | C54: =IF(ISERROR(A54),"",IF(A54=0,"",INDEX(mf4port4,MATCH(A54,'Results-simple'!$AA$2:$AA$26,0),2))) -> 

Sheet mf1
A1: IDFC Premier Equity Direct
A4: Category: | B4: Equity: Mid & Small Cap
A5: Net Assets: | B5: R 3,448 crore (As on Dec 31, 2013)
A6: Expense: | B6: 1.50% (As on Sep 30, 2013)
A8: Concentration & Valuation
A9: Number of Stocks | B9: 53
A10: Top 10 Stocks (%) | B10: 40.62
A11: Top 5 Stocks (%) | B11: 25.94
A12: Top 3 Sectors (%) | B12: 48.88
A13: Portfolio P/B Ratio | B13: 5.75
A14: Portfolio P/E Ratio | B14: 31
A16: Portfolio Aggregates
B17: Fund | C17: Benchmark | D17: Category
A18: Average Mkt Cap (Rs Cr) | B18: 6836.5 | C18: 112013.04 | D18: 6666.85
A19: Giant (%) | B19: 3.37 | C19: 55.15 | D19: 11.02
A20: Large (%) | B20: 17.21 | C20: 19.26 | D20: 10.51
A21: Mid (%) | B21: 53.02 | C21: 18.63 | D21: 53.08
A22: Small (%) | B22: 26.1 | C22: 5.95 | D22: 30.93
A23: Tiny (%) | B23: 0.3 | C23: 0 | D23: 1.5
A25: Top Holdings
B26: Company | C26: Sector | D26: PE | E26: 3Y High | F26: 3Y Low | G26: % Assets
B27: Page Industries | C27: Textiles | D27: 49.58 | E27: 6.9 | F27: 3.79 | G27: 6.9
B28: Kaveri Seed Company | C28: FMCG | D28: 18.18 | E28: 6.28 | F28: 0 | G28: 6.28
B29: Blue Dart Express | C29: Services | D29: 59.01 | E29: 5.21 | F29: 2.49 | G29: 4.62
B30: Bata India | C30: FMCG | D30: 36.1 | E30: 4.9 | F30: 3.28 | G30: 4.29
B31: MRF | C31: Automobile | D31: 10.76 | E31: 3.85 | F31: 0 | G31: 3.85
B32: Asian Paints | C32: Chemicals | D32: 39.87 | E32: 5.43 | F32: 3.27 | G32: 3.27
B33: GAIL | C33: Energy | D33: 12.1 | E33: 3.17 | F33: 0 | G33: 3
B34: Zee Entertainment Ent. | C34: Services | D34: 32.07 | E34: 3.22 | F34: 0 | G34: 2.98
B35: Container Corp. | C35: Services | D35: 17.13 | E35: 3.13 | F35: 0 | G35: 2.84
B36: United Spirits | C36: FMCG | D36: 106.41 | E36: 5.82 | F36: 0 | G36: 2.59
B37: Gujarat State Petronet | C37: Services | D37: 6.83 | E37: 4.2 | F37: 0 | G37: 2.42
B38: Coromandel International | C38: Chemicals | D38: 22.21 | E38: 5.42 | F38: 2.11 | G38: 2.33
B39: Shopper's Stop | C39: Services | D39: 70.43 | E39: 2.26 | F39: 0 | G39: 2.1
B40: Trent | C40: Services | D40: 43.79 | E40: 2.38 | F40: 0 | G40: 1.99
B41: HDFC Bank | C41: Financial | D41: 20.14 | E41: 2.96 | F41: 0 | G41: 1.93
B42: VA Tech Wabag | C42: Engineering | D42: 20.47 | E42: 1.92 | F42: 0 | G42: 1.92
B43: Shriram Transport Finance | C43: Financial | D43: 10.61 | E43: 5.77 | F43: 1.82 | G43: 1.9
B44: PTC India | C44: Energy | D44: 8.55 | E44: 2.18 | F44: 0 | G44: 1.85
B45: F A G Bearings India | C45: Engineering | D45: 24.26 | E45: 2.08 | F45: 0 | G45: 1.84
B46: Dish TV India | C46: Services | D46: - | E46: 1.88 | F46: 0 | G46: 1.81
B47: Torrent Power | C47: Energy | D47: - | E47: 3.21 | F47: 1.43 | G47: 1.73
B48: P&G Hygiene & Health Care | C48: FMCG | D48: 42.95 | E48: 1.65 | F48: 0 | G48: 1.62
B49: Siemens | C49: Engineering | D49: 118.39 | E49: 3.13 | F49: 0 | G49: 1.59
B50: Bosch | C50: Automobile | D50: 32.75 | E50: 1.73 | F50: 0 | G50: 1.53
B51: MindTree | C51: Technology | D51: 15.49 | E51: 1.52 | F51: 0 | G51: 1.52

Sheet mf2
A1: Franklin India Bluechip
A4: Category: | B4: Equity: Large Cap
A5: Net Assets: | B5: R 4,958 crore (As on Dec 31, 2013)
A6: Expense: | B6: 2.16% (As on Sep 30, 2013)
A8: Concentration & Valuation
A9: Number of Stocks | B9: 41
A10: Top 10 Stocks (%) | B10: 53.27
A11: Top 5 Stocks (%) | B11: 35.06
A12: Top 3 Sectors (%) | B12: 56.02
A13: Portfolio P/B Ratio | B13: 3.42
A14: Portfolio P/E Ratio | B14: 18.84
A16: Portfolio Aggregates
B17: Fund | C17: Benchmark | D17: Category
A18: Average Mkt Cap (Rs Cr) | B18: 68139.1 | C18: 172465.42 | D18: 95769.97
A19: Giant (%) | B19: 57.19 | C19: 88.53 | D19: 71.03
A20: Large (%) | B20: 29.19 | C20: 10.76 | D20: 20.25
A21: Mid (%) | B21: 13.6 | C21: 0.71 | D21: 7.85
A22: Small (%) | B22: - | C22: - | D22: 3.16
A23: Tiny (%) | B23: - | C23: - | D23: 0.06
A25: Top Holdings
B26: Company | C26: Sector | D26: PE | E26: 3Y High | F26: 3Y Low | G26: % Assets
B27: Infosys | C27: Technology | D27: 22.91 | E27: 9.79 | F27: 5.4 | G27: 9.79
B28: Bharti Airtel | C28: Communication | D28: 20.31 | E28: 9.12 | F28: 5.8 | G28: 8.13
B29: ICICI Bank | C29: Financial | D29: 13.83 | E29: 8.1 | F29: 5.05 | G29: 5.74
B30: Reliance Industries | C30: Energy | D30: 12.11 | E30: 5.97 | F30: 3.76 | G30: 5.72
B31: HDFC Bank | C31: Financial | D31: 20.14 | E31: 5.68 | F31: 3.12 | G31: 5.68
B32: Dr. Reddy's Lab | C32: Healthcare | D32: 26.15 | E32: 5.61 | F32: 1.09 | G32: 5.61
B33: Cognizant Technology Solutions Corp. | C33: Others | D33: - | E33: - | F33: - | G33: 3.59
B34: Wipro | C34: Technology | D34: 22.33 | E34: 3.34 | F34: 0 | G34: 3.34
B35: Grasim Industries | C35: Diversified | D35: 22.1 | E35: 4.66 | F35: 3.12 | G35: 3.32
B36: Indusind Bank | C36: Financial | D36: 16.76 | E36: 3.35 | F36: 0 | G36: 3.05
B37: ONGC | C37: Energy | D37: 12.84 | E37: 3.46 | F37: 1.5 | G37: 2.88
B38: NTPC | C38: Energy | D38: 7.85 | E38: 3.31 | F38: 1.35 | G38: 2.8
B39: Cadila Healthcare | C39: Healthcare | D39: 23.76 | E39: 2.31 | F39: 0.73 | G39: 2.29
B40: Coal India | C40: Energy | D40: 9.73 | E40: 2.73 | F40: 1.37 | G40: 2.13
B41: Larsen & Toubro | C41: Diversified | D41: 22.32 | E41: 2.61 | F41: 1.06 | G41: 2.12
B42: HDFC | C42: Financial | D42: 24.77 | E42: 2.5 | F42: 0 | G42: 2.09
B43: Kotak Mahindra Bank | C43: Financial | D43: 34.61 | E43: 4.09 | F43: 1.46 | G43: 1.98
B44: Yes Bank | C44: Financial | D44: 8.05 | E44: 2.18 | F44: 0 | G44: 1.92
B45: Oil India | C45: Energy | D45: 9.01 | E45: 1.82 | F45: 0 | G45: 1.73
B46: Cipla | C46: Healthcare | D46: 22.12 | E46: 1.99 | F46: 0 | G46: 1.68
B47: Hero Motocorp | C47: Automobile | D47: 18.87 | E47: 1.61 | F47: 0 | G47: 1.61
B48: Federal Bank | C48: Financial | D48: 8.83 | E48: 1.85 | F48: 0 | G48: 1.53
B49: Asian Paints | C49: Chemicals | D49: 39.87 | E49: 2 | F49: 0 | G49: 1.52
B50: BPCL | C50: Energy | D50: 6.05 | E50: 1.49 | F50: 0 | G50: 1.49
B51: ACC | C51: Construction | D51: 20.71 | E51: 1.49 | F51: 0 | G51: 1.46

Sheet mf3
A1: Quantum Long Term Equity
A4: Category: | B4: Equity: Large & Mid Cap
A5: Net Assets: | B5: R 201 crore (As on Dec 31, 2013)
A6: Expense: | B6: 1.25% (As on Sep 30, 2013)
A8: Concentration & Valuation
A9: Number of Stocks | B9: 27
A10: Top 10 Stocks (%) | B10: 42.72
A11: Top 5 Stocks (%) | B11: 24.51
A12: Top 3 Sectors (%) | B12: 42.01
A13: Portfolio P/B Ratio | B13: 2.93
A14: Portfolio P/E Ratio | B14: 16.43
A16: Portfolio Aggregates
B17: Fund | C17: Benchmark | D17: Category
A18: Average Mkt Cap (Rs Cr) | B18: 35661.22 | C18: 172465.42 | D18: 40279.06
A19: Giant (%) | B19: 45.16 | C19: 88.53 | D19: 47.89
A20: Large (%) | B20: 14.71 | C20: 10.76 | D20: 21.2
A21: Mid (%) | B21: 36.87 | C21: 0.71 | D21: 24.23
A22: Small (%) | B22: 3.26 | C22: - | D22: 5.46
A23: Tiny (%) | B23: - | C23: - | D23: -
A25: Top Holdings
B26: Company | C26: Sector | D26: PE | E26: 3Y High | F26: 3Y Low | G26: % Assets
B27: HDFC | C27: Financial | D27: 24.77 | E27: 6.55 | F27: 3.89 | G27: 5.61
B28: Bajaj Auto | C28: Automobile | D28: 17.45 | E28: 7.39 | F28: 4.2 | G28: 5.41
B29: Infosys | C29: Technology | D29: 22.91 | E29: 7.19 | F29: 3.17 | G29: 5.05
B30: Maruti Suzuki India | C30: Automobile | D30: 15.47 | E30: 4.99 | F30: 2.35 | G30: 4.3
B31: Container Corp. | C31: Services | D31: 17.13 | E31: 5.01 | F31: 3.59 | G31: 4.14
B32: Indian Hotels | C32: Services | D32: - | E32: 4.26 | F32: 2.91 | G32: 3.86
B33: ACC | C33: Construction | D33: 20.71 | E33: 3.73 | F33: 0 | G33: 3.63
B34: Voltas | C34: Cons Durable | D34: 42.01 | E34: 3.63 | F34: 2.33 | G34: 3.63
B35: ONGC | C35: Energy | D35: 12.84 | E35: 4.79 | F35: 3.07 | G35: 3.62
B36: Tata Consultancy Services | C36: Technology | D36: 26.29 | E36: 6.85 | F36: 3.47 | G36: 3.47
B37: Tata Chemicals | C37: Chemicals | D37: 14.42 | E37: 3.67 | F37: 0 | G37: 3.25
B38: Indian Oil Corp. | C38: Energy | D38: 5.28 | E38: 3.22 | F38: 0 | G38: 3.06
B39: Hero Motocorp | C39: Automobile | D39: 18.87 | E39: 3.97 | F39: 0 | G39: 2.88
B40: Crompton Greaves | C40: Engineering | D40: 17.44 | E40: 3.97 | F40: 2.18 | G40: 2.87
B41: GAIL | C41: Energy | D41: 12.1 | E41: 3.14 | F41: 0 | G41: 2.86
B42: State Bank of India | C42: Financial | D42: 10.55 | E42: 3.9 | F42: 2.79 | G42: 2.79
B43: ING Vysya Bank | C43: Financial | D43: 15.44 | E43: 3.56 | F43: 2.7 | G43: 2.77
B44: Larsen & Toubro | C44: Diversified | D44: 22.32 | E44: 2.85 | F44: 0 | G44: 2.31
B45: NTPC | C45: Energy | D45: 7.85 | E45: 3.71 | F45: 0 | G45: 2.29
B46: Axis Bank | C46: Financial | D46: 10.51 | E46: 2.89 | F46: 1.58 | G46: 2.22
B47: Cummins India | C47: Engineering | D47: 21.75 | E47: 3.38 | F47: 0 | G47: 2.16
B48: PTC India | C48: Energy | D48: 8.55 | E48: 2.97 | F48: 1.57 | G48: 2.14
B49: Tata Steel | C49: Metals | D49: 6.16 | E49: 3.76 | F49: 2.12 | G49: 2.12
B50: Exide Inds. | C50: Engineering | D50: 19.76 | E50: 2.1 | F50: 0 | G50: 2.1
B51: Petronet LNG | C51: Energy | D51: 12.03 | E51: 2.53 | F51: 0 | G51: 2.06
